Workbook

Sheet Member Videos
A1: Order to review videos:
A2: 1 | B2: Download Assets Here!
A3: 2 | B3: StratonMainspace System
A4: 3 | B4: ISM Filtering Report
A5: 4 | B5: Ideas & Themes: Keeping Track of Your Ideas
A6: 5 | B6: Creating Your Watchlist
A7: 6 | B7: Analyzing Average True Range
A8: 7 | B8: Analyzing Distribution and Descriptive Statistics
A9: 8 | B9: Setting Up Linear Regression on TradingView
A10: 9 | B10: Understanding How Linear Regression Works
A11: 10 | B11: Setting Up VIX Signals on trading view
A12: 11 | B12: Watching the Fed
A13: 12 | B13: Kelly Criterion

Sheet StratonMainspace

Sheet ISM
A1: ISM PMI | G1: * | H1: *
A2: 2021-07-01 | F2: =CONCATENATE($G$1,I2,$H$1) -> *Furniture* | I2: Furniture
A3: 0.595 | F3: =CONCATENATE($G$1,I3,$H$1) -> *Related* | I3: Related
F4: *Products* | I4: Products
F5: *Printing* | I5: Printing
A6: Growth | F6: *Support* | I6: Support
A7: Furniture | F7: *Activities* | I7: Activities
A8: Related | F8: *Apparel* | I8: Apparel
A9: Products | F9: *Leather* | I9: Leather
A10: Printing | F10: *Allied* | I10: Allied
A11: Support | F11: *Miscellaneous* | I11: Miscellaneous
A12: Activities | F12: *Manufacturing* | I12: Manufacturing
A13: Apparel | F13: *Computer* | I13: Computer
A14: Leather | F14: *Electronic* | I14: Electronic
A15: Allied | F15: *Nonmetallic* | I15: Nonmetallic
A16: Miscellaneous | F16: *Mineral* | I16: Mineral
A17: Manufacturing | F17: *Machinery* | I17: Machinery
A18: Computer | F18: *Fabricated* | I18: Fabricated
A19: Electronic | F19: *Metal* | I19: Metal
A20: Nonmetallic | F20: *Paper* | I20: Paper
A21: Mineral | F21: *Chemical* | I21: Chemical
A22: Machinery | F22: *Food* | I22: Food
A23: Fabricated | F23: *Beverage* | I23: Beverage
A24: Metal | F24: *Tobacco* | I24: Tobacco
A25: Paper | F25: *Primary* | I25: Primary
A26: Chemical | F26: *Metals* | I26: Metals
A27: Food | F27: *Plastics* | I27: Plastics
A28: Beverage | F28: *Rubber* | I28: Rubber
A29: Tobacco | F29: *Transportation* | I29: Transportation
A30: Primary | F30: *Equipment* | I30: Equipment
A31: Metals | F31: *Electrical* | I31: Electrical
A32: Plastics | F32: *Appliances* | I32: Appliances
A33: Rubber | F33: *Components* | I33: Components
A34: Transportation | F34: *Wood* | I34: Wood
A35: Equipment | F35: *Petroleum* | I35: Petroleum
A36: Electrical | F36: *Coal* | I36: Coal
A37: Appliances | F37: *Products* | I37: Products
A38: Components | F38: **
A39: Wood | F39: **
A40: Petroleum | F40: **
A41: Coal | F41: **
A42: Products | F42: **
A43: Contracting | F43: **
A44: Textile | F44: **
A45: Mills | F45: **
F46: **
F47: **
F48: **
F49: **
F50: **
F51: **
F52: **
F53: **
F54: **
F55: **
F56: **
F57: **
F58: **
F59: **
F60: **
F61: **
F62: **
F63: **
F64: **

Sheet Ideas&Themes
B2: IDEAS. | C2: REASONS. | D2: ACTIONS.
B3: Company CEO has huge influence on stock price volatility through tweeting | C3: P/E ratio is low but KPI forecast shows Revenue growth projections so stock may be undervalued | D3: Possible Buy
B5: Oil going up | C5: New bill to create oil jobs in usa | D5: Buy company that rents out rigs to oil companies
B7: Mortgage lending will rise | C7: Economic stimulus package into place with low rates | D7: Long Retail Banks
B8: Mortgage lending will slow | C8: Fed forcast to raise interest rates potentioal home defaults on unsecured loans | D8: Short Retail Banks
B10: Economic Fear | C10: Go into safe defensive stocks | D10: Buy Defensive stock and Sell Cyclical stock in watchlist
B11: Economic Stimulus | C11: Go into tech and cyclical assets | D11: Sell defensives and safe stock. Go into Cyclicals and higher performers.
B13: Commodites are going up | C13: Inflation expectations are high because to much stimulus | D13: But common commodites, copper, silver, lumber
B14: Commodities are going down | C14: Repo operations to control inflation | D14: Keep stop loss tight look to take profits
B16: Oil Price might go up | C16: War breaking out in middle east | D16: Buy Oil
B17: Oil Price might go down | C17: Middle east relation very good | D17: Sell Oil
B20: House Prices starting to increase | C20: Building permits were high and starting to see it in houseing prices | D20: Buy property stocks & building materials, lumber, homedepot
B21: House Prices starting to decrease | C21: Building permits were low and starting to see it in houseing prices | D21: Sell property stocks & building materials, lumber, homedepot
B23: Serious war in middle east | C23: Global oil supply will go down | D23: Buy Oil
B24: Foreign affairs in middle east are peaceful | C24: Global oil supply will increase | D24: Sell Oil
B26: Consumer indicators are up | C26: Look into retail companies and sales going up | D26: Buy Retailers.
B27: Consumer indicators are down | C27: Look into retail companies and see if sales are going down | D27: Short Retailers.

Sheet Watchlist
A1: Symbol | F1: 1 WEEK | G1: 1 MONTHS | H1: 3 MONTHS | I1: 1 YEAR | J1: 2 YEARS | N1: Monthly
A2: Ticker | B2: =_FV(B1,"Ticker symbol",TRUE) -> MSFT | E2: Days | F2: 6 | G2: 24 | H2: 72 | I2: 288 | J2: 576 | K2: Avg Daily ATR | L2: 0.02625947472
A3: Price | B3: =_FV(B1,"Price") -> 320.4 | F3: 0.02339453628 | G3: 0.03247795611 | H3: 0.0357456037 | I3: 0.02645285167 | J3: 0.01322642584 | N3: Mean | O3: 0.02563571019
A4: Marketcap | B4: =_FV(B1,"Market cap",TRUE) -> 2391344000000 | N4: Standard Error | O4: 0.013298393
A5: P/E | B5: =_FV(B1,"P/E",TRUE) -> 33.0831 | F5: 3 MONTHS | G5: 6 MONTHS | H5: 1 YEAR | I5: 2 YEARS | J5: 3 YEARS | N5: Median | O5: 0.02147474151
A6: Shares | B6: =_FV(B1,"Shares outstanding",TRUE) -> 7429764000 | E6: Weeks | F6: 12 | G6: 26 | H6: 52 | I6: 104 | J6: 156 | K6: Avg Weekly ATR | L6: 0.1104142298 | N6: Mode
A7: Volume | B7: =_FV(B1,"Volume") -> 10501 | F7: 0.07749454146 | G7: 0.1064030804 | H7: 0.121908906 | I7: 0.1279251914 | J7: 0.1183394298 | N7: Standard Deviation | O7: 0.1539400284
A8: Avg Volume | B8: =_FV(B1,"Volume average",TRUE) -> 30333345 | N8: Sample Variance | O8: 0.02369753235
A9: Beta | B9: =_FV(B1,"Beta") -> 0.9074 | F9: 6 MONTHS | G9: 1 YEAR | H9: 2 YEARS | I9: 3 YEARS | J9: 5 YEARS | N9: Kurtosis | O9: 0.3925087828
A10: Employees | B10: =_FV(B1,"Employees") -> 221000 | E10: Months | F10: 6 | G10: 12 | H10: 24 | I10: 36 | J10: 60 | K10: Avg Monthly ATR | L10: 0.2393805658 | N10: Skewness | O10: 0.006928349582
A11: Industry | B11: =_FV(B1,"Industry") -> Software & IT Services | F11: 0.1781269291 | G11: 0.2393444038 | H11: 0.2960991158 | I11: 0.2636468014 | J11: 0.219685579 | N11: Range | O11: 0.8376796568
A12: Stop Loss | B12: 220 | K12: Monthly | N12: Minimum | O12: -0.4112301587
A13: Entry 1 | B13: 265 | E13: Date | F13: Price | H13: Date | I13: Price | K13: Positive Probability | L13: 0.6194029851 | N13: Maximum | O13: 0.4264494981
A14: Entry 2 | D14: Open | E14: 2021-07-11 | F14: 265 | G14: Open | K14: Negative Probability | L14: 0.3358208955 | N14: Sum | O14: 3.435185165
A15: Entry 3 | D15: Close | E15: 2021-08-11 | F15: 300 | G15: Close | N15: Count | O15: 134
A16: Entry 4 | E16: Gains | F16: =F15-F14 -> 35 | H16: Gains | I16: =I15-I14 -> 0 | K16: Weekly
E18: Date | F18: Price | H18: Date | I18: Price
D19: Open
D20: Close | K20: Daily
E21: Gains | F21: =F20-F19 -> 0 | H21: Gains | I21: =I20-I19 -> 0

Sheet ATR_Index
A1: Symbol
A2: tsla
B4: 1 WEEK | C4: 1 MONTHS | D4: 3 MONTHS | E4: 1 YEAR | F4: 2 YEARS
A5: Days | B5: 6 | C5: 24 | D5: 72 | E5: 288 | F5: 576 | G5: Avg Daily ATR | H5: =AVERAGE(B6:F6) -> 0.02878551907
B6: ='Daily ATR'!I4 -> 0.03098331685 | C6: ='Daily ATR'!J4 -> 0.0351889537 | D6: ='Daily ATR'!K4 -> 0.0367827507 | E6: ='Daily ATR'!L4 -> 0.0273150494 | F6: ='Daily ATR'!M4 -> 0.0136575247
B8: 3 MONTHS | C8: 6 MONTHS | D8: 1 YEAR | E8: 2 YEARS | F8: 3 YEARS
A9: Weeks | B9: 12 | C9: 26 | D9: 52 | E9: 104 | F9: 156 | G9: Avg Weekly ATR | H9: =AVERAGE(B10:F10) -> 0.1055905925
B10: ='Weekly ATR'!I4 -> 0.09019414884 | C10: ='Weekly ATR'!J4 -> 0.09843958515 | D10: ='Weekly ATR'!K4 -> 0.1119683966 | E10: ='Weekly ATR'!L4 -> 0.1125903695 | F10: ='Weekly ATR'!M4 -> 0.1147604623
B12: 6 MONTHS | C12: 1 YEAR | D12: 2 YEARS | E12: 3 YEARS | F12: 5 YEARS
A13: Months | B13: 6 | C13: 12 | D13: 24 | E13: 36 | F13: 60 | G13: Avg Monthly ATR | H13: =AVERAGE(B14:F14) -> 0.2478131882
B14: ='Monthly ATR'!I4 -> 0.2235036527 | C14: ='Monthly ATR'!J4 -> 0.2530391542 | D14: ='Monthly ATR'!K4 -> 0.2566208552 | E14: ='Monthly ATR'!L4 -> 0.2520969565 | F14: ='Monthly ATR'!M4 -> 0.2538053224
G18: Avg Daily ATR | H18: =H5 -> 0.02878551907
G19: Avg Weekly ATR | H19: =H9 -> 0.1055905925
G20: Avg Monthly ATR | H20: =H13 -> 0.2478131882

Sheet Monthly
A1: =_xlfn.STOCKHISTORY(P8,"1-jan-2006",TODAY(),2,1,0,2,3,4,1) -> Date | B1: Open | C1: High | D1: Low | E1: Close | F1: Open To Open | G1: High to Low | J1: Intervals | K1: Intervals | L1: Frequency | M1: Text Labels | N1: Probabilities | R1: Monthly
A2: 2010-06-01 | B2: 1.2667 | C2: 2.0279 | D2: 1.1693 | E2: 1.5887 | F2: =(B3-B2)/B3 -> 0.2399952001 | G2: =(D2-E2)/D2 -> -0.358676131 | J2: -0.4 | K2: -0.4 | L2: 1 | M2: <-10.00% | N2: =L2/$S$15 -> 0.007462686567 | O2: Positive Probability | P2: =SUM(N42:N83) -> 0.6194029851
A3: 2010-07-01 | B3: 1.6667 | C3: 1.728 | D3: 0.9987 | E3: 1.3293 | F3: -0.2195068413 | G3: -0.3310303394 | J3: -0.39 | K3: -0.39 | L3: 0 | M3: -10.00% to -9.75% | N3: =L3/$S$15 -> 0 | O3: Negative Probability | P3: =SUM(N2:N40) -> 0.3358208955 | R3: Mean | S3: 0.02563571019
A4: 2010-08-01 | B4: 1.3667 | C4: 1.4787 | D4: 1.1593 | E4: 1.2987 | F4: -0.04487767584 | G4: -0.1202449754 | J4: -0.38 | K4: -0.38 | L4: 0 | M4: -9.75% to -9.50% | N4: 0 | R4: Standard Error | S4: 0.013298393
A5: 2010-09-01 | B5: 1.308 | C5: 1.544 | D5: 1.3 | E5: 1.3603 | F5: 0.0516928877 | G5: -0.04638461538 | J5: -0.37 | K5: -0.37 | L5: 0 | M5: -9.50% to -9.25% | N5: 0 | R5: Median | S5: 0.02147474151
A6: 2010-10-01 | B6: 1.3793 | C6: 1.458 | D6: 1.3333 | E6: 1.456 | F6: 0.05701784371 | G6: -0.09202730068 | J6: -0.36 | K6: -0.36 | L6: 0 | M6: -9.25% to -9.00% | N6: 0 | R6: Mode
A7: 2010-11-01 | B7: 1.4627 | C7: 2.4 | D7: 1.4033 | E7: 2.3553 | F7: 0.3883243424 | G7: -0.6784009121 | J7: -0.35 | K7: -0.35 | L7: 0 | M7: -9.00% to -8.75% | N7: 0 | P7: SYMBOL | R7: Standard Deviation | S7: 0.1539400284
A8: 2010-12-01 | B8: 2.3913 | C8: 2.428 | D8: 1.6667 | E8: 1.7753 | F8: -0.3364444196 | G8: -0.06515869683 | J8: -0.34 | K8: -0.34 | L8: 1 | M8: -8.75% to -8.50% | N8: 0.007462686567 | P8: tsla | R8: Sample Variance | S8: 0.02369753235
A9: 2011-01-01 | B9: 1.7893 | C9: 1.914 | D9: 1.4913 | E9: 1.6067 | F9: -0.1040291232 | G9: -0.0773821498 | J9: -0.33 | K9: -0.33 | L9: 1 | M9: -8.50% to -8.25% | N9: 0.007462686567 | R9: Kurtosis | S9: 0.3925087828
A10: 2011-02-01 | B10: 1.6207 | C10: 1.6993 | D10: 1.4073 | E10: 1.5927 | F10: -0.01085261648 | G10: -0.1317416329 | J10: -0.32 | K10: -0.32 | L10: 0 | M10: -8.25% to -8.00% | N10: 0 | R10: Skewness | S10: 0.006928349582
A11: 2011-03-01 | B11: 1.6033 | C11: 1.914 | D11: 1.4513 | E11: 1.85 | F11: 0.1238797814 | G11: -0.2747192173 | J11: -0.31 | K11: -0.31 | L11: 0 | M11: -8.00% to -7.75% | N11: 0 | R11: Range | S11: 0.8376796568
A12: 2011-04-01 | B12: 1.83 | C12: 1.8786 | D12: 1.6133 | E12: 1.84 | F12: 0.005434782609 | G12: -0.1405194322 | J12: -0.3 | K12: -0.3 | L12: 0 | M12: -7.75% to -7.50% | N12: 0 | R12: Minimum | S12: -0.4112301587
A13: 2011-05-01 | B13: 1.84 | C13: 2.0186 | D13: 1.7013 | E13: 2.0093 | F13: 0.08 | G13: -0.1810380297 | J13: -0.29 | K13: -0.29 | L13: 1 | M13: -7.50% to -7.25% | N13: 0.007462686567 | R13: Maximum | S13: 0.4264494981
A14: 2011-06-01 | B14: 2 | C14: 2.1 | D14: 1.7 | E14: 1.942 | F14: -0.03199174407 | G14: -0.1423529412 | J14: -0.28 | K14: -0.28 | L14: 1 | M14: -7.25% to -7.00% | N14: 0.007462686567 | R14: Sum | S14: 3.435185165
A15: 2011-07-01 | B15: 1.938 | C15: 2.0293 | D15: 1.7753 | E15: 1.878 | F15: -0.01396954952 | G15: -0.05784937757 | J15: -0.27 | K15: -0.27 | L15: 0 | M15: -7.00% to -6.75% | N15: 0 | R15: Count | S15: 134
A16: 2011-08-01 | B16: 1.9113 | C16: 1.9466 | D16: 1.4333 | E16: 1.6493 | F16: -0.1625912409 | G16: -0.1507011791 | J16: -0.26 | K16: -0.26 | L16: 0 | M16: -6.75% to -6.50% | N16: 0 | S16: 0
A17: 2011-09-01 | B17: 1.644 | C17: 1.7993 | D17: 1.486 | E17: 1.626 | F17: 0.01160343895 | G17: -0.09421265141 | J17: -0.25 | K17: -0.25 | L17: 0 | M17: -6.50% to -6.25% | N17: 0
A18: 2011-10-01 | B18: 1.6633 | C18: 2 | D18: 1.5287 | E18: 1.958 | F18: 0.1211560816 | G18: -0.2808268463 | J18: -0.24 | K18: -0.24 | L18: 0 | M18: -6.25% to -6.00% | N18: 0
A19: 2011-11-01 | B19: 1.8926 | C19: 2.3333 | D19: 1.8666 | E19: 2.1826 | F19: 0.1283562843 | G19: -0.1692917604 | J19: -0.23 | K19: -0.23 | L19: 0 | M19: -6.00% to -5.75% | N19: 0
A20: 2011-12-01 | B20: 2.1713 | C20: 2.3333 | D20: 1.7353 | E20: 1.904 | F20: -0.1254340953 | G20: -0.0972166196 | J20: -0.22 | K20: -0.22 | L20: 1 | M20: -5.75% to -5.50% | N20: 0.007462686567
A21: 2012-01-01 | B21: 1.9293 | C21: 2 | D21: 1.5093 | E21: 1.938 | F21: 0.004489164087 | G21: -0.2840389585 | J21: -0.21 | K21: -0.21 | L21: 1 | M21: -5.50% to -5.25% | N21: 0.007462686567
A22: 2012-02-01 | B22: 1.938 | C22: 2.3313 | D22: 1.9333 | E22: 2.2273 | F22: 0.1324977619 | G22: -0.1520715874 | J22: -0.2 | K22: -0.2 | L22: 1 | M22: -5.25% to -5.00% | N22: 0.007462686567
A23: 2012-03-01 | B23: 2.234 | C23: 2.6633 | D23: 2.1746 | E23: 2.4826 | F23: 0.1023065177 | G23: -0.1416352433 | J23: -0.19 | K23: -0.19 | L23: 0 | M23: -5.00% to -4.75% | N23: 0
A24: 2012-04-01 | B24: 2.4886 | C24: 2.5646 | D24: 2.0666 | E24: 2.2086 | F24: -0.1267771439 | G24: -0.06871189393 | J24: -0.18 | K24: -0.18 | L24: 3 | M24: -4.75% to -4.50% | N24: 0.0223880597
A25: 2012-05-01 | B25: 2.2086 | C25: 2.312 | D25: 1.7886 | E25: 1.9666 | F25: -0.1611987382 | G25: -0.09951917701 | J25: -0.17 | K25: -0.17 | L25: 2 | M25: -4.50% to -4.25% | N25: 0.01492537313
A26: 2012-06-01 | B26: 1.902 | C26: 2.3 | D26: 1.8073 | E26: 2.086 | F26: 0.08995215311 | G26: -0.1542079345 | J26: -0.16 | K26: -0.16 | L26: 2 | M26: -4.25% to -4.00% | N26: 0.01492537313
A27: 2012-07-01 | B27: 2.09 | C27: 2.4 | D27: 1.814 | E27: 1.828 | F27: -0.1200428725 | G27: -0.007717750827 | J27: -0.15 | K27: -0.15 | L27: 0 | M27: -4.00% to -3.75% | N27: 0
A28: 2012-08-01 | B28: 1.866 | C28: 2.0866 | D28: 1.7013 | E28: 1.9013 | F28: 0.01856624415 | G28: -0.1175571622 | J28: -0.14 | K28: -0.14 | L28: 1 | M28: -3.75% to -3.50% | N28: 0.007462686567
A29: 2012-09-01 | B29: 1.9013 | C29: 2.1853 | D29: 1.8196 | E29: 1.952 | F29: 0.03320451541 | G29: -0.07276324467 | J29: -0.13 | K29: -0.13 | L29: 3 | M29: -3.50% to -3.25% | N29: 0.0223880597
A30: 2012-10-01 | B30: 1.9666 | C30: 2.0066 | D30: 1.7906 | E30: 1.8754 | F30: -0.04423087134 | G30: -0.04735842734 | J30: -0.12 | K30: -0.12 | L30: 5 | M30: -3.25% to -3.00% | N30: 0.03731343284
A31: 2012-11-01 | B31: 1.8833 | C31: 2.286 | D31: 1.88 | E31: 2.2546 | F31: 0.1664232284 | G31: -0.1992553191 | J31: -0.11 | K31: -0.11 | L31: 1 | M31: -3.00% to -2.75% | N31: 0.007462686567
A32: 2012-12-01 | B32: 2.2593 | C32: 2.3866 | D32: 2.1833 | E32: 2.258 | F32: 0.03171473878 | G32: -0.03421426281 | J32: -0.1 | K32: -0.1 | L32: 2 | M32: -2.75% to -2.50% | N32: 0.01492537313
A33: 2013-01-01 | B33: 2.3333 | C33: 2.5806 | D33: 2.1406 | E33: 2.5006 | F33: 0.08303859153 | G33: -0.1681771466 | J33: -0.09 | K33: -0.09 | L33: 3 | M33: -2.50% to -2.25% | N33: 0.0223880597
A34: 2013-02-01 | B34: 2.5446 | C34: 2.6666 | D34: 2.2533 | E34: 2.322 | F34: -0.09055843655 | G34: -0.0304886167 | J34: -0.08 | K34: -0.08 | L34: 4 | M34: -2.00% to -1.75% | N34: 0.02985074627
A35: 2013-03-01 | B35: 2.3333 | C35: 2.6326 | D35: 2.2833 | E35: 2.526 | F35: 0.1737606232 | G35: -0.1062935225 | J35: -0.07 | K35: -0.07 | L35: 4 | M35: -1.75% to -1.50% | N35: 0.02985074627
A36: 2013-04-01 | B36: 2.824 | C36: 3.8786 | D36: 2.6807 | E36: 3.5993 | F36: 0.2434228152 | G36: -0.3426716902 | J36: -0.06 | K36: -0.06 | L36: 0 | M36: -1.50% to -1.25% | N36: 0
A37: 2013-05-01 | B37: 3.7326 | C37: 7.6599 | D37: 3.5333 | E37: 6.5173 | F37: 0.4264509289 | G37: -0.8445362692 | J37: -0.05 | K37: -0.05 | L37: 1 | M37: -1.25% to -1.00% | N37: 0.007462686567
A38: 2013-06-01 | B38: 6.5079 | C38: 7.3499 | D38: 5.8833 | E38: 7.1573 | F38: 0.1073574191 | G38: -0.2165451362 | J38: -0.04 | K38: -0.04 | L38: 2 | M38: -1.00% to -0.75% | N38: 0.01492537313
A39: 2013-07-01 | B39: 7.2906 | C39: 9.1659 | D39: 6.9666 | E39: 8.9519 | F39: 0.1899243325 | G39: -0.2849740189 | J39: -0.03 | K39: -0.03 | L39: 3 | M39: -0.75% to -0.50% | N39: 0.0223880597
A40: 2013-08-01 | B40: 8.9999 | C40: 11.5332 | D40: 8.8239 | E40: 11.2666 | F40: 0.2214552029 | G40: -0.2768277066 | J40: -0.02 | K40: -0.02 | L40: 1 | M40: -0.50% to -0.25% | N40: 0.007462686567
A41: 2013-09-01 | B41: 11.5599 | C41: 12.9665 | D41: 10.5672 | E41: 12.8912 | F41: 0.1059974479 | G41: -0.2199258082 | J41: -0.01 | K41: -0.01 | L41: 5 | M41: -0.25% to 0.00% | N41: 0.03731343284
A42: 2013-10-01 | B42: 12.9305 | C42: 12.9485 | D42: 10.1999 | E42: 10.6626 | F42: -0.1899306131 | G42: -0.04536318984 | J42: 0 | K42: 0 | L42: 7 | M42: 0.00% to 0.25% | N42: 0.05223880597
A43: 2013-11-01 | B43: 10.8666 | C43: 12.0952 | D43: 7.7399 | E43: 8.4852 | F43: -0.2900797797 | G43: -0.09629323376 | J43: 0.01 | K43: 0.01 | L43: 6 | M43: 0.25% to 0.50% | N43: 0.0447761194
A44: 2013-12-01 | B44: 8.4232 | C44: 10.5332 | D44: 8.262 | E44: 10.0285 | F44: 0.1565497767 | G44: -0.2138102154 | J44: 0.02 | K44: 0.02 | L44: 3 | M44: 0.50% to 0.75% | N44: 0.0223880597
A45: 2014-01-01 | B45: 9.9866 | C45: 12.3999 | D45: 9.1113 | E45: 12.0939 | F45: 0.1809226984 | G45: -0.32735175 | J45: 0.03 | K45: 0.03 | L45: 6 | M45: 0.75% to 1.00% | N45: 0.0447761194
A46: 2014-02-01 | B46: 12.1925 | C46: 17.6665 | D46: 11.2906 | E46: 16.3205 | F46: 0.229161925 | G46: -0.4454944821 | J46: 0.04 | K46: 0.04 | L46: 3 | M46: 1.00% to 1.25% | N46: 0.0223880597
A47: 2014-03-01 | B47: 15.8172 | C47: 17.3332 | D47: 13.5332 | E47: 13.8965 | F47: -0.1351106965 | G47: -0.02684509207 | J47: 0.05 | K47: 0.05 | L47: 0 | M47: 1.25% to 1.50% | N47: 0
A48: 2014-04-01 | B48: 13.9345 | C48: 15.7152 | D48: 12.2879 | E48: 13.8592 | F48: -0.009366035986 | G48: -0.127873762 | J48: 0.06 | K48: 0.06 | L48: 4 | M48: 1.50% to 1.75% | N48: 0.02985074627
A49: 2014-05-01 | B49: 13.8052 | C49: 14.5772 | D49: 11.8145 | E49: 13.8512 | F49: 0.001208227523 | G49: -0.1723898599 | J49: 0.07 | K49: 0.07 | L49: 1 | M49: 1.75% to 2.00% | N49: 0.007462686567
A50: 2014-06-01 | B50: 13.8219 | C50: 16.2992 | D50: 13.2833 | E50: 16.0038 | F50: 0.1448854848 | G50: -0.2048060346 | J50: 0.08 | K50: 0.08 | L50: 3 | M50: 2.00% to 2.00% | N50: 0.0223880597
A51: 2014-07-01 | B51: 16.1638 | C51: 16.2292 | D51: 14.2399 | E51: 14.8865 | F51: -0.07240338365 | G51: -0.04540762224 | J51: 0.09 | K51: 0.09 | L51: 7 | M51: 2.25% to 2.50% | N51: 0.05223880597
A52: 2014-08-01 | B52: 15.0725 | C52: 18.1332 | D52: 15.0665 | E52: 17.9798 | F52: 0.1793482699 | G52: -0.1933627584 | J52: 0.1 | K52: 0.1 | L52: 3 | M52: 2.50% to 2.75% | N52: 0.0223880597
A53: 2014-09-01 | B53: 18.3665 | C53: 19.4278 | D53: 16.0082 | E53: 16.1785 | F53: -0.1374910971 | G53: -0.01063829787 | J53: 0.11 | K53: 0.11 | L53: 3 | M53: 2.75% to 3.00% | N53: 0.0223880597
A54: 2014-10-01 | B54: 16.1465 | C54: 17.7025 | D54: 14.4879 | E54: 16.1132 | F54: 0.003290164076 | G54: -0.1121832702 | J54: 0.12 | K54: 0.12 | L54: 3 | M54: 3.00% to 3.25% | N54: 0.0223880597
A55: 2014-11-01 | B55: 16.1998 | C55: 17.3325 | D55: 15.2332 | E55: 16.3012 | F55: -0.007625705969 | G55: -0.07011002284 | J55: 0.13 | K55: 0.13 | L55: 7 | M55: 3.25% to 3.50% | N55: 0.05223880597
A56: 2014-12-01 | B56: 16.0772 | C56: 16.1645 | D56: 12.8432 | E56: 14.8272 | F56: -0.08206408712 | G56: -0.1544786346 | J56: 0.14 | K56: 0.14 | L56: 1 | M56: 3.75% to 4.00% | N56: 0.007462686567
A57: 2015-01-01 | B57: 14.8579 | C57: 14.8832 | D57: 12.3332 | E57: 13.5732 | F57: -0.09266136683 | G57: -0.1005416275 | J57: 0.15 | K57: 0.15 | L57: 1 | M57: 3.75% to 4.00% | N57: 0.007462686567
A58: 2015-02-01 | B58: 13.5979 | C58: 15.0318 | D58: 12.8852 | E58: 13.5559 | F58: -0.006267945416 | G58: -0.0520519666 | J58: 0.16 | K58: 0.16 | L58: 2 | M58: 4.00% to 4.25% | N58: 0.01492537313
A59: 2015-03-01 | B59: 13.5132 | C59: 13.7459 | D59: 12.0932 | E59: 12.5845 | F59: -0.07418977893 | G59: -0.040626137 | J59: 0.17 | K59: 0.17 | L59: 2 | M59: 4.25% to 4.50% | N59: 0.01492537313
A60: 2015-04-01 | B60: 12.5799 | C60: 15.9165 | D60: 12.4032 | E60: 15.0698 | F60: 0.1793505206 | G60: -0.2149929051 | J60: 0.18 | K60: 0.18 | L60: 3 | M60: 4.50% to 4.75% | N60: 0.0223880597
A61: 2015-05-01 | B61: 15.3292 | C61: 16.8577 | D61: 14.6832 | E61: 16.7198 | F61: 0.08539721369 | G61: -0.1387027351 | J61: 0.19 | K61: 0.19 | L61: 2 | M61: 4.75% to 5.00% | N61: 0.01492537313
A62: 2015-06-01 | B62: 16.7605 | C62: 18.0938 | D62: 16.3785 | E62: 17.8838 | F62: 0.07266319202 | G62: -0.0919070733 | J62: 0.2 | K62: 0.2 | L62: 1 | M62: 5.00% to 5.25% | N62: 0.007462686567
A63: 2015-07-01 | B63: 18.0738 | C63: 19.1098 | D63: 16.7192 | E63: 17.7432 | F63: -0.01809885932 | G63: -0.06124694961 | J63: 0.21 | K63: 0.21 | L63: 3 | M63: 5.25% to 5.50% | N63: 0.0223880597
A64: 2015-08-01 | B64: 17.7525 | C64: 18.0665 | D64: 12.9999 | E64: 16.6038 | F64: -0.1079731627 | G64: -0.2772252094 | J64: 0.22 | K64: 0.22 | L64: 0 | M64: 5.50% to 5.75% | N64: 0
A65: 2015-09-01 | B65: 16.0225 | C65: 18.1045 | D65: 15.7978 | E65: 16.5598 | F65: 0.02896881913 | G65: -0.04823456431 | J65: 0.23 | K65: 0.23 | L65: 3 | M65: 5.75% to 6.00% | N65: 0.0223880597
A66: 2015-10-01 | B66: 16.5005 | C66: 16.6558 | D66: 13.4665 | E66: 13.7952 | F66: =(B67-B66)/B67 -> -0.1847083911 | G66: =(D66-E66)/D66 -> -0.02440871793 | J66: 0.24 | K66: 0.24 | L66: 1 | M66: 6.00% to 6.25% | N66: =L66/$S$15 -> 0.007462686567
A67: 2015-11-01 | B67: 13.9279 | C67: 15.6388 | D67: 13.7199 | E67: 15.3505 | F67: 0.09581401992 | G67: -0.1188492627 | J67: 0.25 | K67: 0.25 | L67: 1 | M67: 6.25% to 6.50% | N67: 0.007462686567
A68: 2015-12-01 | B68: 15.4038 | C68: 16.2421 | D68: 14.3245 | E68: 16.0005 | F68: -0.00146932619 | G68: -0.1170023387 | J68: 0.26 | K68: 0.26 | L68: 1 | M68: 6.50% to 6.75% | N68: 0.007462686567
A69: 2016-01-01 | B69: 15.3812 | C69: 15.4252 | D69: 12.1605 | E69: 12.7465 | F69: -0.2222919763 | G69: -0.04818880803 | J69: 0.27 | K69: 0.27 | L69: 0 | M69: 6.75% to 7.00% | N69: 0
A70: 2016-02-01 | B70: 12.5839 | C70: 13.3012 | D70: 9.4032 | E70: 12.7952 | F70: 0.02826276651 | G70: -0.3607282627 | J70: 0.28 | K70: 0.28 | L70: 0 | M70: 7.00% to 7.25% | N70: 0
A71: 2016-03-01 | B71: 12.9499 | C71: 15.9918 | D71: 12.0999 | E71: 15.3178 | F71: 0.2065741507 | G71: -0.2659443466 | J71: 0.29 | K71: 0.29 | L71: 0 | M71: 7.25% to 7.50% | N71: 0
A72: 2016-04-01 | B72: 16.3215 | C72: 17.9558 | D72: 15.5498 | E72: 16.0505 | F72: -0.0137703574 | G72: -0.03219977106 | J72: 0.3 | K72: 0.3 | L72: 0 | M72: 7.50% to 7.75% | N72: 0
A73: 2016-05-01 | B73: 16.0998 | C73: 16.2125 | D73: 13.577 | E73: 14.8819 | F73: -0.09038821012 | G73: -0.09611107019 | J73: 0.31 | K73: 0.31 | L73: 0 | M73: 7.75% to 8.00% | N73: 0
A74: 2016-06-01 | B74: 14.7652 | C74: 16.0562 | D74: 12.5245 | E74: 14.1519 | F74: -0.07441877388 | G74: -0.1299373228 | J74: 0.32 | K74: 0.32 | L74: 0 | M74: 8.00% to 8.25% | N74: 0
A75: 2016-07-01 | B75: 13.7425 | C75: 15.6852 | D75: 13.7332 | E75: 15.6525 | F75: 0.124670378 | G75: -0.1397562112 | J75: 0.33 | K75: 0.33 | L75: 0 | M75: 8.25%to 8.50% | N75: 0
A76: 2016-08-01 | B76: 15.6998 | C76: 15.7752 | D76: 13.9099 | E76: 14.1339 | F76: -0.1267340802 | G76: -0.01610363842 | J76: 0.34 | K76: 0.34 | L76: 1 | M76: 8.50% to 8.75% | N76: 0.007462686567
A77: 2016-09-01 | B77: 13.9339 | C77: 14.0732 | D77: 12.8965 | E77: 13.6019 | F77: 0.01549472911 | G77: -0.05469701082 | J77: 0.35 | K77: 0.35 | L77: 1 | M77: 8.75% to 9.00% | N77: 0.007462686567
A78: 2016-10-01 | B78: 14.1532 | C78: 14.3778 | D78: 12.7999 | E78: 13.1819 | F78: -0.07200908919 | G78: -0.02984398316 | J78: 0.36 | K78: 0.36 | L78: 0 | M78: 9.00% to 9.25% | N78: 0
A79: 2016-11-01 | B79: 13.2025 | C79: 13.2899 | D79: 11.8792 | E79: 12.6265 | F79: -0.05200041435 | G79: -0.06290827665 | J79: 0.37 | K79: 0.37 | L79: 1 | M79: 9.25% to 9.50% | N79: 0.007462686567
A80: 2016-12-01 | B80: 12.5499 | C80: 14.9199 | D80: 11.9999 | E80: 14.2459 | F80: 0.1238489518 | G80: -0.1871682264 | J80: 0.38 | K80: 0.38 | L80: 0 | M80: 9.50% to 9.75% | N80: 0
A81: 2017-01-01 | B81: 14.3239 | C81: 17.2305 | D81: 14.0639 | E81: 16.7952 | F81: 0.1509146522 | G81: -0.1942064434 | J81: 0.39 | K81: 0.39 | L81: 1 | M81: 9.75% to 10.00% | N81: 0.007462686567
A82: 2017-02-01 | B82: 16.8698 | C82: 19.1591 | D82: 16.1338 | E82: 16.6658 | F82: 0.004449637656 | G82: -0.03297425281 | J82: 0.4 | K82: 0.4 | L82: 0 | M82: < 10% | N82: 0
A83: 2017-03-01 | B83: 16.9452 | C83: 18.7998 | D83: 16.1852 | E83: 18.5531 | F83: 0.1140459572 | G83: -0.1463003238 | K83: More | L83: 2 | N83: 0.01492537313
A84: 2017-04-01 | B84: 19.1265 | C84: 20.9865 | D84: 18.9718 | E84: 20.9378 | F84: 0.08885850665 | G84: -0.1036274892
A85: 2017-05-01 | B85: 20.9918 | C85: 22.8591 | D85: 19.3838 | E85: 22.7338 | F85: 0.08465057057 | G85: -0.1728247299
A86: 2017-06-01 | B86: 22.9331 | C86: 25.7991 | D86: 22.2804 | E86: 24.1071 | F86: 0.07087236249 | G86: -0.0819868584
A87: 2017-07-01 | B87: 24.6824 | C87: 24.7564 | D87: 20.2085 | E87: 21.5645 | F87: -0.1462539068 | G87: -0.06710047752
A88: 2017-08-01 | B88: 21.5331 | C88: 24.6664 | D88: 20.7478 | E88: 23.7264 | F88: 0.09300327281 | G88: -0.143562209
A89: 2017-09-01 | B89: 23.7411 | C89: 25.9737 | D89: 22.3598 | E89: 22.7398 | F89: -0.0397076341 | G89: -0.01699478528
A90: 2017-10-01 | B90: 22.8344 | C90: 24.1998 | D90: 21.1105 | E90: 22.1018 | F90: -0.03090772829 | G90: -0.04695767509
A91: 2017-11-01 | B91: 22.1498 | C91: 22.1737 | D91: 19.5085 | E91: 20.5898 | F91: -0.08777409454 | G91: -0.05542712151
A92: 2017-12-01 | B92: 20.3625 | C92: 23.1624 | D92: 19.9998 | E92: 20.7565 | F92: 0.02102424062 | G92: -0.03783537835
A93: 2018-01-01 | B93: 20.7998 | C93: 24.0331 | D93: 20.3785 | E93: 23.6204 | F93: 0.1111120608 | G93: -0.1590843291
A94: 2018-02-01 | B94: 23.3998 | C94: 23.9991 | D94: 19.6505 | E94: 22.8704 | F94: -0.01736491539 | G94: -0.163858426
A95: 2018-03-01 | B95: 23.0004 | C95: 23.2444 | D95: 16.5472 | E95: 17.7418 | F95: -0.3463281003 | G95: -0.07219348289
A96: 2018-04-01 | B96: 17.0838 | C96: 20.6331 | D96: 16.3058 | E96: 19.5931 | F96: 0.1269120105 | G96: -0.2016031105
A97: 2018-05-01 | B97: 19.5671 | C97: 20.8658 | D97: 18.228 | E97: 18.9818 | F97: -0.02676167937 | G97: -0.04135396094
A98: 2018-06-01 | B98: 19.0571 | C98: 24.9151 | D98: 18.9224 | E98: 22.8631 | F98: 0.2060997151 | G98: -0.2082558238
A99: 2018-07-01 | B99: 24.0044 | C99: 24.3184 | D99: 19.0751 | E99: 19.8758 | F99: -0.2083278801 | G99: -0.04197618885
A100: 2018-08-01 | B100: 19.8658 | C100: 25.8304 | D100: 19.2131 | E100: 20.1105 | F100: -0.003536103618 | G100: -0.04670771505
A101: 2018-09-01 | B101: 19.7958 | C101: 20.9971 | D101: 16.8168 | E101: 17.6512 | F101: 0.02887978611 | G101: -0.04961704962
A102: 2018-10-01 | B102: 20.3845 | C102: 23.1438 | D102: 16.5178 | E102: 22.4878 | F102: 0.09604707677 | G102: -0.3614282774
A103: 2018-11-01 | B103: 22.5504 | C103: 24.4498 | D103: 21.6665 | E103: 23.3651 | F103: 0.06039216993 | G103: -0.07839752613
A104: 2018-12-01 | B104: 23.9998 | C104: 25.2991 | D104: 19.6058 | E104: 22.1864 | F104: -0.176086051 | G104: -0.1316243153
A105: 2019-01-01 | B105: 20.4065 | C105: 23.4664 | D105: 18.6187 | E105: 20.4678 | F105: -0.002229742008 | G105: -0.09931413042
A106: 2019-02-01 | B106: 20.3611 | C106: 21.6158 | D106: 19.2511 | E106: 21.3251 | F106: 0.004955406231 | G106: -0.1077341035
A107: 2019-03-01 | B107: 20.4625 | C107: 20.4751 | D107: 16.9638 | E107: 18.6571 | F107: -0.08605654659 | G107: -0.09981843691
A108: 2019-04-01 | B108: 18.8411 | C108: 19.7445 | D108: 15.4085 | E108: 15.9125 | F108: -0.183248342 | G108: -0.03270921894
A109: 2019-05-01 | B109: 15.9232 | C109: 17.2232 | D109: 12.2732 | E109: 12.3439 | F109: -0.2875347694 | G109: -0.005760518854
A110: 2019-06-01 | B110: 12.3672 | C110: 15.6492 | D110: 11.7993 | E110: 14.8972 | F110: 0.1941722269 | G110: -0.2625494733
A111: 2019-07-01 | B111: 15.3472 | C111: 17.7378 | D111: 14.8145 | E111: 16.1072 | F111: 0.05126572497 | G111: -0.08725910426
A112: 2019-08-01 | B112: 16.1765 | C112: 16.3005 | D112: 14.0665 | E112: 15.0405 | F112: -0.0828731131 | G112: -0.06924252657
A113: 2019-09-01 | B113: 14.9385 | C113: 16.8998 | D113: 14.5572 | E113: 16.0578 | F113: 0.07213133082 | G113: -0.1030830105
A114: 2019-10-01 | B114: 16.0998 | C114: 22.7224 | D114: 14.9519 | E114: 20.9945 | F114: 0.2365348685 | G114: -0.4041359292
A115: 2019-11-01 | B115: 21.0878 | C115: 24.0798 | D115: 20.6171 | E115: 21.9958 | F115: 0.03970892267 | G115: -0.06687167448
A116: 2019-12-01 | B116: 21.9598 | C116: 29.0204 | D116: 21.8164 | E116: 27.8884 | F116: 0.2240271098 | G116: -0.2783227297
A117: 2020-01-01 | B117: 28.2997 | C117: 43.5329 | D117: 28.1137 | E117: 43.3709 | F117: 0.36988836 | G117: -0.5426962655
A118: 2020-02-01 | B118: 44.9122 | C118: 64.5987 | D118: 40.7676 | E118: 44.5322 | F118: 0.05282293866 | G118: -0.092342939
A119: 2020-03-01 | B119: 47.4169 | C119: 53.7981 | D119: 23.3671 | E119: 34.933 | F119: -0.4112298622 | G119: -0.4949651433
A120: 2020-04-01 | B120: 33.5997 | C120: 57.9874 | D120: 29.7597 | E120: 52.1248 | F120: 0.332449218 | G120: -0.7515230328
A121: 2020-05-01 | B121: 50.3328 | C121: 56.2188 | D121: 45.5355 | E121: 55.6661 | F121: 0.1200467138 | G121: -0.2224769685
A122: 2020-06-01 | B122: 57.1994 | C122: 72.5119 | D122: 56.9394 | E122: 71.9866 | F122: 0.2077568619 | G122: -0.2642669224
A123: 2020-07-01 | B123: 72.1993 | C123: 119.6648 | D123: 72.0326 | E123: 95.383 | F123: 0.2526911659 | G123: -0.3241643367
A124: 2020-08-01 | B124: 96.6124 | C124: 166.7117 | D124: 90.9991 | E124: 166.105 | F124: 0.4227901705 | G124: -0.8253477232
A125: 2020-09-01 | B125: 167.3783 | C125: 167.495 | D125: 109.9589 | E125: 143.0019 | F125: -0.1392595214 | G125: -0.300503188
A126: 2020-10-01 | B126: 146.9185 | C126: 155.2984 | D126: 126.3687 | E126: 129.3454 | F126: -0.1186801389 | G126: -0.02355567478
A127: 2020-11-01 | B127: 131.332 | C127: 202.598 | D127: 130.7654 | E127: 189.1981 | F127: 0.3406852692 | G127: -0.4468513842
A128: 2020-12-01 | B128: 199.1947 | C128: 239.5709 | D128: 180.4015 | E128: 235.221 | F128: 0.1693908204 | G128: -0.3038749678
A129: 2021-01-01 | B129: 239.8176 | C129: 300.1303 | D129: 239.0608 | E129: 264.5074 | F129: 0.116457335 | G129: -0.1064440511
A130: 2021-02-01 | B130: 271.4273 | C130: 293.4971 | D130: 206.3313 | E130: 225.1644 | F130: =(B131-B130)/B131 -> -0.1799422173 | G130: =(D130-E130)/D130 -> -0.09127602065
A131: 2021-03-01 | B131: 230.0344 | C131: 240.3676 | D131: 179.8282 | E131: 222.6411 | F131: -0.002527735358 | G131: -0.2380766754
A132: 2021-04-01 | B132: 229.4544 | C132: 260.2607 | D132: 219.8045 | E132: 236.4776 | F132: 0.02192391486 | G132: -0.075854225
A133: 2021-05-01 | B133: 234.5977 | C133: 235.331 | D133: 182.3248 | E133: 208.4046 | F133: -0.1210577422 | G133: -0.1430403324
A134: 2021-06-01 | B134: 209.2646 | C134: 232.5377 | D134: 190.4048 | E134: 226.5644 | F134: 0.08205645365 | G134: -0.1899090779
A135: 2021-07-01 | B135: 227.9711 | C135: 233.331 | D135: 206.8179 | E135: 229.0644 | F135: 0.02297122971 | G135: -0.1075656411
A136: 2021-08-01 | B136: 233.331 | C136: 246.7942 | D136: 216.2778 | E136: 245.2375 | F136: 0.04642551072 | G136: -0.1339004743
A137: 2021-09-01 | B137: 244.6909 | C137: 266.3307 | D137: 236.281 | E137: 258.4907 | F137: 0.05693735665 | G137: -0.09399697817
A138: 2021-10-01 | B138: 259.4641 | C138: 371.7329 | D138: 254.5275 | E138: 371.3296 | F138: 0.3201746882 | G138: -0.4588977615
A139: 2021-11-01 | B139: 381.6629 | C139: 414.4925 | D139: 326.1967 | E139: 381.5829 | F139: 0.01352203249 | G139: -0.1697938698
A140: 2021-12-01 | B140: 386.8945 | C140: 390.9427 | D140: 295.3704 | E140: 352.2565 | F140: -0.01127870155 | G140: -0.1925924196
A141: 2022-01-01 | B141: 382.5795 | C141: 402.6626 | D141: 264.0007 | E141: 312.2369 | F141: -0.2272646347 | G141: -0.1827123943
A142: 2022-02-01 | B142: 311.7335 | C142: 315.9202 | D142: 233.331 | E142: 290.1404 | F142: -0.0753495114 | G142: -0.2434712919
A143: 2022-03-01 | B143: 289.8904 | C143: 371.5863 | D143: 252.0108 | E143: 359.1964 | F143: 0.1955973103 | G143: -0.4253214545
A144: 2022-04-01 | B144: 360.3797 | C144: 384.2862 | D144: 273.8973 | E144: 290.2504 | F144: -0.2560263209 | G144: -0.05970522528
A145: 2022-05-01 | B145: 286.9205 | C145: 318.4968 | D145: 206.8546 | E145: 252.7508 | F145: -0.1398512221 | G145: -0.2218766225
A146: 2022-06-01 | B146: 251.7175 | C146: 264.2074 | D146: 208.6912 | E146: 224.4711 | F146: -0.1088989007 | G146: -0.07561363392
A147: 2022-07-01 | B147: 226.9977 | C147: 298.317 | D147: 216.1645 | E147: 297.147 | F147: 0.2465356887 | G147: -0.3746336702
A148: 2022-08-01 | B148: 301.272 | C148: 314.6635 | D148: 271.81 | E148: 275.61 | F148: -0.1052811153 | G148: -0.01398035392
A149: 2022-09-01 | B149: 272.575 | C149: 313.8 | D149: 262.47 | E149: 265.25 | F149: -0.071021611 | G149: -0.01059168667
A150: 2022-10-01 | B150: 254.5 | C150: 257.5 | D150: 198.5863 | E150: 227.54 | F150: -0.08737449263 | G150: -0.1457990808
A151: 2022-11-01 | B151: 234.05 | C151: 237.3951 | D151: 166.185 | E151: 194.7 | F151: -0.1875887964 | G151: -0.1715858832
A152: 2022-12-01 | B152: 197.08 | C152: 198.92 | D152: 108.24 | E152: 123.18 | F152: -0.6635435131 | G152: -0.1380266075
A153: 2023-01-01 | B153: 118.47 | C153: 180.68 | D153: 101.81 | E153: 173.22 | F153: 0.3187072287 | G153: -0.7014045772
A154: 2023-02-01 | B154: 173.89 | C154: 217.65 | D154: 169.93 | E154: 205.71 | F154: 0.1567334271 | G154: -0.2105572883
A155: 2023-03-01 | B155: 206.21 | C155: 207.79 | D155: 163.91 | E155: 207.46 | F155: -0.03151418138 | G155: -0.2656945885
A156: 2023-04-01 | B156: 199.91 | C156: 202.6897 | D156: 152.37 | E156: 164.31 | F156: -0.2251639394 | G156: -0.07836188226
A157: 2023-05-01 | B157: 163.17 | C157: 204.48 | D157: 158.83 | E157: 203.93 | F157: 0.1945801866 | G157: -0.2839513946
A158: 2023-06-01 | B158: 202.59 | C158: 276.99 | D158: 199.37 | E158: 261.77 | F158: 0.2672791059 | G158: -0.3129859056
A159: 2023-07-01 | B159: 276.49 | C159: 299.29 | D159: 254.12 | E159: 267.43 | F159: -0.03842109217 | G159: -0.05237682984
A160: 2023-08-01 | B160: 266.26 | C160: 266.47 | D160: 225.38 | E160: 225.6 | G160: -0.000976129204
F194: =(B195-B194)/B195 ->  | G194: =(D194-E194)/D194 -> 
F258: =(B259-B258)/B259 ->  | G258: =(D258-E258)/D258 -> 
F322: =(B323-B322)/B323 ->  | G322: =(D322-E322)/D322 -> 
F386: =(B387-B386)/B387 ->  | G386: =(D386-E386)/D386 -> 
F450: =(B451-B450)/B451 ->  | G450: =(D450-E450)/D450 -> 
F514: =(B515-B514)/B515 ->  | G514: =(D514-E514)/D514 -> 
F578: =(B579-B578)/B579 ->  | G578: =(D578-E578)/D578 -> 
F642: =(B643-B642)/B643 ->  | G642: =(D642-E642)/D642 -> 
F706: =(B707-B706)/B707 ->  | G706: =(D706-E706)/D706 -> 
F770: =(B771-B770)/B771 ->  | G770: =(D770-E770)/D770 -> 
F834: =(B835-B834)/B835 ->  | G834: =(D834-E834)/D834 -> 
F898: =(B899-B898)/B899 ->  | G898: =(D898-E898)/D898 -> 
F962: =(B963-B962)/B963 ->  | G962: =(D962-E962)/D962 -> 
F1026: =(B1027-B1026)/B1027 ->  | G1026: =(D1026-E1026)/D1026 -> 
F1090: =(B1091-B1090)/B1091 ->  | G1090: =(D1090-E1090)/D1090 -> 
F1154: =(B1155-B1154)/B1155 ->  | G1154: =(D1154-E1154)/D1154 -> 
F1218: =(B1219-B1218)/B1219 ->  | G1218: =(D1218-E1218)/D1218 -> 
F1282: =(B1283-B1282)/B1283 ->  | G1282: =(D1282-E1282)/D1282 -> 
F1346: =(B1347-B1346)/B1347 ->  | G1346: =(D1346-E1346)/D1346 -> 
F1410: =(B1411-B1410)/B1411 ->  | G1410: =(D1410-E1410)/D1410 -> 
F1474: =(B1475-B1474)/B1475 ->  | G1474: =(D1474-E1474)/D1474 -> 
F1538: =(B1539-B1538)/B1539 ->  | G1538: =(D1538-E1538)/D1538 -> 
F1602: =(B1603-B1602)/B1603 ->  | G1602: =(D1602-E1602)/D1602 -> 
F1666: =(B1667-B1666)/B1667 ->  | G1666: =(D1666-E1666)/D1666 -> 
F1730: =(B1731-B1730)/B1731 ->  | G1730: =(D1730-E1730)/D1730 -> 
F1794: =(B1795-B1794)/B1795 ->  | G1794: =(D1794-E1794)/D1794 -> 
F1858: =(B1859-B1858)/B1859 ->  | G1858: =(D1858-E1858)/D1858 -> 
F1922: =(B1923-B1922)/B1923 ->  | G1922: =(D1922-E1922)/D1922 -> 
F1986: =(B1987-B1986)/B1987 ->  | G1986: =(D1986-E1986)/D1986 -> 
F2050: =(B2051-B2050)/B2051 ->  | G2050: =(D2050-E2050)/D2050 -> 
F2114: =(B2115-B2114)/B2115 ->  | G2114: =(D2114-E2114)/D2114 -> 
F2178: =(B2179-B2178)/B2179 ->  | G2178: =(D2178-E2178)/D2178 -> 
F2242: =(B2243-B2242)/B2243 ->  | G2242: =(D2242-E2242)/D2242 -> 
F2306: =(B2307-B2306)/B2307 ->  | G2306: =(D2306-E2306)/D2306 -> 
F2370: =(B2371-B2370)/B2371 ->  | G2370: =(D2370-E2370)/D2370 -> 
F2434: =(B2435-B2434)/B2435 ->  | G2434: =(D2434-E2434)/D2434 -> 
F2498: =(B2499-B2498)/B2499 ->  | G2498: =(D2498-E2498)/D2498 -> 
F2562: =(B2563-B2562)/B2563 ->  | G2562: =(D2562-E2562)/D2562 -> 
F2626: =(B2627-B2626)/B2627 ->  | G2626: =(D2626-E2626)/D2626 -> 
F2690: =(B2691-B2690)/B2691 ->  | G2690: =(D2690-E2690)/D2690 -> 
... 18 more rows

Sheet Weekly
A1: =_xlfn.STOCKHISTORY(P8,"1-jan-2006",TODAY(),1,1,0,2,3,4,1) -> Date | B1: Open | C1: High | D1: Low | E1: Close | F1: Open To Open | G1: High to Low | J1: Intervals | K1: Bin | L1: Frequency | M1: Text Labels | N1: Probabilities | R1: daily
A2: 2006-01-03 | B2: 26.25 | C2: 27.13 | D2: 26.1 | E2: 26.91 | F2: =(B3-B2)/B3 -> 0.02525064983 | G2: =(D2-E2)/D2 -> -0.03103448276 | J2: -0.2 | K2: -0.1 | M2: <-10.00% | N2: =L2/$S$15 -> 0 | O2: Positive Probability | P2: =SUM(N42:N83) -> 0
A3: 2006-01-09 | B3: 26.93 | C3: 27.39 | D3: 26.59 | E3: 27.19 | F3: -0.001115241636 | G3: -0.02256487401 | J3: -0.195 | K3: -0.0975 | M3: -10.00% to -9.75% | N3: 0 | O3: Negative Probability | P3: =SUM(N2:N40) -> 0 | R3: Mean | S3: 0.001045588981
A4: 2006-01-17 | B4: 26.9 | C4: 27.24 | D4: 26.26 | E4: 26.41 | F4: -0.01855357819 | G4: -0.005712109673 | J4: -0.19 | K4: -0.095 | M4: -9.75% to -9.50% | N4: 0 | R4: Standard Error | S4: 0.0004494166395
A5: 2006-01-23 | B5: 26.41 | C5: 27.9501 | D5: 26.22 | E5: 27.79 | F5: 0.0506829619 | G5: -0.05987795576 | J5: -0.185 | K5: -0.0925 | M5: -9.50% to -9.25% | N5: 0 | R5: Median | S5: 0.001411072526
A6: 2006-01-30 | B6: 27.82 | C6: 28.38 | D6: 27.34 | E6: 27.54 | F6: -0.01126862959 | G6: -0.007315288954 | J6: -0.18 | K6: -0.09 | M6: -9.25% to -9.00% | N6: 0 | R6: Mode | S6: 0
A7: 2006-02-06 | B7: 27.51 | C7: 27.54 | D7: 26.51 | E7: 26.69 | F7: -0.03304543748 | G7: -0.006789890607 | J7: -0.175 | K7: -0.0875 | M7: -9.00% to -8.75% | N7: 0 | P7: SYMBOL | R7: Standard Deviation | S7: 0.01594004226
A8: 2006-02-13 | B8: 26.63 | C8: 26.93 | D8: 26.34 | E8: 26.7 | F8: 0.003368263473 | G8: -0.01366742597 | J8: -0.17 | K8: -0.085 | M8: -8.75% to -8.50% | N8: 0 | P8: msft | R8: Sample Variance | S8: 0.0002540849474
A9: 2006-02-21 | B9: 26.72 | C9: 26.8901 | D9: 26.34 | E9: 26.63 | F9: 0.001121495327 | G9: -0.01100987092 | J9: -0.165 | K9: -0.0825 | M9: -8.50% to -8.25% | N9: 0 | R9: Kurtosis | S9: 4.384620239
A10: 2006-02-27 | B10: 26.75 | C10: 27.3 | D10: 26.67 | E10: 26.93 | F10: 0.006315007429 | G10: -0.009748781402 | J10: -0.16 | K10: -0.08 | M10: -8.25% to -8.00% | N10: 0 | R10: Skewness | S10: -0.5877866307
A11: 2006-03-06 | B11: 26.92 | C11: 27.5 | D11: 26.81 | E11: 27.17 | F11: 0.009565857248 | G11: -0.01342782544 | J11: -0.155 | K11: -0.0775 | M11: -8.00% to -7.75% | N11: 0 | R11: Range | S11: 0.1698274668
A12: 2006-03-13 | B12: 27.18 | C12: 27.66 | D12: 26.94 | E12: 27.5 | F12: 0.01859541433 | G12: -0.02078693393 | J12: -0.15 | K12: -0.075 | M12: -7.75% to -7.50% | N12: 0 | R12: Minimum | S12: -0.09179229603
A13: 2006-03-20 | B13: 27.695 | C13: 28.22 | D13: 26.62 | E13: 27.01 | F13: -0.02422337278 | G13: -0.01465063862 | J13: -0.145 | K13: -0.0725 | M13: -7.50% to -7.25% | N13: 0 | R13: Maximum | S13: 0.07803517081
A14: 2006-03-27 | B14: 27.04 | C14: 27.541 | D14: 26.81 | E14: 27.21 | F14: 0.02276834116 | G14: -0.01491980604 | J14: -0.14 | K14: -0.07 | M14: -7.25% to -7.00% | N14: 0 | R14: Sum | S14: 1.315350938
A15: 2006-04-03 | B15: 27.67 | C15: 27.941 | D15: 27.23 | E15: 27.25 | F15: -0.01615864855 | G15: -0.000734484025 | J15: -0.135 | K15: -0.0675 | M15: -7.00% to -6.75% | N15: 0 | R15: Count | S15: 1258
A16: 2006-04-10 | B16: 27.23 | C16: 27.44 | D16: 26.97 | E16: 27.07 | F16: -0.00739918609 | G16: -0.003707823508 | J16: -0.13 | K16: -0.065 | M16: -6.75% to -6.50% | N16: 0 | S16: 0
A17: 2006-04-17 | B17: 27.03 | C17: 27.5 | D17: 26.7 | E17: 27.15 | F17: 0.001477650536 | G17: -0.01685393258 | J17: -0.125 | K17: -0.0625 | M17: -6.50% to -6.25% | N17: 0
A18: 2006-04-24 | B18: 27.07 | C18: 27.63 | D18: 24 | E18: 24.15 | F18: -0.1130756579 | G18: -0.00625 | J18: -0.12 | K18: -0.06 | M18: -6.25% to -6.00% | N18: 0
A19: 2006-05-01 | B19: 24.32 | C19: 25 | D19: 23.14 | E19: 23.8 | F19: -0.01970649895 | G19: -0.02852203976 | J19: -0.115 | K19: -0.0575 | M19: -6.00% to -5.75% | N19: 0
A20: 2006-05-08 | B20: 23.85 | C20: 25 | D20: 23.05 | E20: 23.17 | F20: -0.03246753247 | G20: -0.005206073753 | J20: -0.11 | K20: -0.055 | M20: -5.75% to -5.50% | N20: 0
A21: 2006-05-15 | B21: 23.1 | C21: 24 | D21: 22.52 | E21: 22.56 | F21: -0.02758007117 | G21: -0.001776198934 | J21: -0.105 | K21: -0.0525 | M21: -5.50% to -5.25% | N21: 0
A22: 2006-05-22 | B22: 22.48 | C22: 23.9201 | D22: 22.45 | E22: 23.72 | F22: 0.04543524416 | G22: -0.0565701559 | J22: -0.1 | K22: -0.05 | M22: -5.25% to -5.00% | N22: 0
A23: 2006-05-30 | B23: 23.55 | C23: 23.76 | D23: 22.62 | E23: 22.76 | F23: -0.03653169014 | G23: -0.006189213086 | J23: -0.095 | K23: -0.0475 | M23: -5.00% to -4.75% | N23: 0
A24: 2006-06-05 | B24: 22.72 | C24: 22.73 | D24: 21.89 | E24: 21.92 | F24: -0.03460837887 | G24: -0.001370488808 | J24: -0.09 | K24: -0.045 | M24: -4.75% to -4.50% | N24: 0
A25: 2006-06-12 | B25: 21.96 | C25: 22.28 | D25: 21.4599 | E25: 22.1 | F25: 0.008130081301 | G25: -0.0298277252 | J25: -0.085 | K25: -0.0425 | M25: -4.50% to -4.25% | N25: 0
A26: 2006-06-19 | B26: 22.14 | C26: 23.17 | D26: 22.12 | E26: 22.5 | F26: 0.02251655629 | G26: -0.01717902351 | J26: -0.08 | K26: -0.04 | M26: -4.25% to -4.00% | N26: 0
A27: 2006-06-26 | B27: 22.65 | C27: 23.65 | D27: 22.63 | E27: 23.3 | F27: 0.03739906502 | G27: -0.02960671675 | J27: -0.075 | K27: -0.0375 | M27: -4.00% to -3.75% | N27: 0
A28: 2006-07-03 | B28: 23.53 | C28: 23.72 | D28: 23.3 | E28: 23.3 | F28: -0.004268032437 | G28: 0 | J28: -0.07 | K28: -0.035 | M28: -3.75% to -3.50% | N28: 0
A29: 2006-07-10 | B29: 23.43 | C29: 23.66 | D29: 22.23 | E29: 22.29 | F29: -0.05114401077 | G29: -0.002699055331 | J29: -0.065 | K29: -0.0325 | M29: -3.50% to -3.25% | N29: 0
A30: 2006-07-17 | B30: 22.29 | C30: 24.15 | D30: 22.26 | E30: 23.87 | F30: 0.07163681799 | G30: -0.07232704403 | J30: -0.06 | K30: -0.03 | M30: -3.25% to -3.00% | N30: 0
A31: 2006-07-24 | B31: 24.01 | C31: 24.6 | D31: 23.77 | E31: 24.25 | F31: 0.002492729539 | G31: -0.02019352125 | J31: -0.055 | K31: -0.0275 | M31: -3.00% to -2.75% | N31: 0
A32: 2006-07-31 | B32: 24.07 | C32: 24.4901 | D32: 23.85 | E32: 24.29 | F32: 0.008649093904 | G32: -0.01844863732 | J32: -0.05 | K32: -0.025 | M32: -2.75% to -2.50% | N32: 0
A33: 2006-08-07 | B33: 24.28 | C33: 24.64 | D33: 24.19 | E33: 24.43 | F33: 0.009787928222 | G33: -0.009921455147 | J33: -0.045 | K33: -0.0225 | M33: -2.50% to -2.25% | N33: 0
A34: 2006-08-14 | B34: 24.52 | C34: 25.8 | D34: 24.35 | E34: 25.79 | F34: 0.04442712393 | G34: -0.059137577 | J34: -0.04 | K34: -0.02 | M34: -2.00% to -1.75% | N34: 0
A35: 2006-08-21 | B35: 25.66 | C35: 26.2501 | D35: 25.5 | E35: 25.85 | F35: 0.006965944272 | G35: -0.0137254902 | J35: -0.035 | K35: -0.0175 | M35: -1.75% to -1.50% | N35: 0
A36: 2006-08-28 | B36: 25.84 | C36: 26 | D36: 25.63 | E36: 25.84 | F36: -0.005838847801 | G36: -0.008193523215 | J36: -0.03 | K36: -0.015 | M36: -1.50% to -1.25% | N36: 0
A37: 2006-09-05 | B37: 25.69 | C37: 25.96 | D37: 25.39 | E37: 25.6 | F37: -0.01022414471 | G37: -0.008270972824 | J37: -0.025 | K37: -0.0125 | M37: -1.25% to -1.00% | N37: 0
A38: 2006-09-11 | B38: 25.43 | C38: 26.94 | D38: 25.42 | E38: 26.85 | F38: 0.04899027674 | G38: -0.05625491739 | J38: -0.02 | K38: -0.01 | M38: -1.00% to -0.75% | N38: 0
A39: 2006-09-18 | B39: 26.74 | C39: 27.25 | D39: 26.48 | E39: 26.66 | F39: 0.002610966057 | G39: -0.006797583082 | J39: -0.015 | K39: -0.0075 | M39: -0.75% to -0.50% | N39: 0
A40: 2006-09-25 | B40: 26.81 | C40: 27.52 | D40: 26.79 | E40: 27.35 | F40: 0.01866764275 | G40: -0.02090332214 | J40: -0.01 | K40: -0.005 | M40: -0.50% to -0.25% | N40: 0
A41: 2006-10-02 | B41: 27.32 | C41: 28.11 | D41: 27.15 | E41: 27.87 | F41: 0.01726618705 | G41: -0.02651933702 | J41: -0.005 | K41: -0.0025 | M41: -0.25% to 0.00% | N41: 0
A42: 2006-10-09 | B42: 27.8 | C42: 28.69 | D42: 27.42 | E42: 28.37 | F42: 0.02387640449 | G42: -0.03464624362 | J42: 0 | K42: 0 | M42: 0.00% to 0.25% | N42: 0
A43: 2006-10-16 | B43: 28.48 | C43: 28.7001 | D43: 28.12 | E43: 28.43 | F43: -0.006360424028 | G43: -0.01102418208 | J43: 0.005 | K43: 0.0025 | M43: 0.25% to 0.50% | N43: 0
A44: 2006-10-23 | B44: 28.3 | C44: 28.79 | D44: 28.04 | E44: 28.34 | F44: 0.00176366843 | G44: -0.01069900143 | J44: 0.01 | K44: 0.005 | M44: 0.50% to 0.75% | N44: 0
A45: 2006-10-30 | B45: 28.35 | C45: 28.99 | D45: 28.32 | E45: 28.73 | F45: 0.01459854015 | G45: -0.01447740113 | J45: 0.015 | K45: 0.0075 | M45: 0.75% to 1.00% | N45: 0
A46: 2006-11-06 | B46: 28.77 | C46: 29.4 | D46: 28.66 | E46: 29.24 | F46: 0.01438848921 | G46: -0.02023726448 | J46: 0.02 | K46: 0.01 | M46: 1.00% to 1.25% | N46: 0
A47: 2006-11-13 | B47: 29.19 | C47: 29.64 | D47: 29.07 | E47: 29.4 | F47: 0.01117886179 | G47: -0.01135190918 | J47: 0.025 | K47: 0.0125 | M47: 1.25% to 1.50% | N47: 0
A48: 2006-11-20 | B48: 29.52 | C48: 30.0001 | D48: 29.5 | E48: 29.76 | F48: 0.005725833614 | G48: -0.008813559322 | J48: 0.03 | K48: 0.015 | M48: 1.50% to 1.75% | N48: 0
A49: 2006-11-27 | B49: 29.69 | C49: 29.78 | D49: 28.8999 | E49: 29.12 | F49: -0.01573725624 | G49: -0.007615943308 | J49: 0.035 | K49: 0.0175 | M49: 1.75% to 2.00% | N49: 0
A50: 2006-12-04 | B50: 29.23 | C50: 29.52 | D50: 28.8 | E50: 29.4 | F50: -0.001370332306 | G50: -0.02083333333 | J50: 0.04 | K50: 0.02 | M50: 2.00% to 2.00% | N50: 0
A51: 2006-12-11 | B51: 29.19 | C51: 30.23 | D51: 29.11 | E51: 30.19 | F51: 0.03312355084 | G51: -0.0371006527 | J51: 0.045 | K51: 0.0225 | M51: 2.25% to 2.50% | N51: 0
A52: 2006-12-18 | B52: 30.19 | C52: 30.26 | D52: 29.53 | E52: 29.64 | F52: -0.02235015239 | G52: -0.003725025398 | J52: 0.05 | K52: 0.025 | M52: 2.50% to 2.75% | N52: 0
A53: 2006-12-26 | B53: 29.53 | C53: 30.15 | D53: 29.4 | E53: 29.86 | F53: 0.01270478101 | G53: -0.0156462585 | J53: 0.055 | K53: 0.0275 | M53: 2.75% to 3.00% | N53: 0
A54: 2007-01-03 | B54: 29.91 | C54: 30.25 | D54: 29.4 | E54: 29.64 | F54: -0.008768971332 | G54: -0.008163265306 | J54: 0.06 | K54: 0.03 | M54: 3.00% to 3.25% | N54: 0
A55: 2007-01-08 | B55: 29.65 | C55: 31.39 | D55: 29.43 | E55: 31.21 | F55: 0.05150351887 | G55: -0.06048250085 | J55: 0.065 | K55: 0.0325 | M55: 3.25% to 3.50% | N55: 0
A56: 2007-01-16 | B56: 31.26 | C56: 31.45 | D56: 30.69 | E56: 31.11 | F56: -0.006439150032 | G56: -0.01368523949 | J56: 0.07 | K56: 0.035 | M56: 3.75% to 4.00% | N56: 0
A57: 2007-01-22 | B57: 31.06 | C57: 31.48 | D57: 30.45 | E57: 30.6 | F57: -0.01337683524 | G57: -0.004926108374 | J57: 0.075 | K57: 0.0375 | M57: 3.75% to 4.00% | N57: 0
A58: 2007-01-29 | B58: 30.65 | C58: 31.1 | D58: 30.13 | E58: 30.19 | F58: -0.02268935602 | G58: -0.001991370727 | J58: 0.08 | K58: 0.04 | M58: 4.00% to 4.25% | N58: 0
A59: 2007-02-05 | B59: 29.97 | C59: 30.02 | D59: 28.93 | E59: 28.98 | F59: -0.03738317757 | G59: -0.001728309713 | J59: 0.085 | K59: 0.0425 | M59: 4.25% to 4.50% | N59: 0
A60: 2007-02-12 | B60: 28.89 | C60: 29.69 | D60: 28.6499 | E60: 28.74 | F60: -0.009081383165 | G60: -0.003144862635 | J60: 0.09 | K60: 0.045 | M60: 4.50% to 4.75% | N60: 0
A61: 2007-02-20 | B61: 28.63 | C61: 29.54 | D61: 28.47 | E61: 28.9 | F61: 0.01139502762 | G61: -0.01510361784 | J61: 0.095 | K61: 0.0475 | M61: 4.75% to 5.00% | N61: 0
A62: 2007-02-26 | B62: 28.96 | C62: 29.12 | D62: 27.73 | E62: 27.76 | F62: -0.05347399054 | G62: -0.001081860801 | J62: 0.1 | K62: 0.05 | M62: 5.00% to 5.25% | N62: 0
A63: 2007-03-05 | B63: 27.49 | C63: 27.94 | D63: 26.6 | E63: 27.29 | F63: -0.01140544518 | G63: -0.02593984962 | J63: 0.105 | K63: 0.0525 | M63: 5.25% to 5.50% | N63: 0
A64: 2007-03-12 | B64: 27.18 | C64: 27.48 | D64: 26.71 | E64: 27.33 | F64: 0.005852231163 | G64: -0.02321228004 | J64: 0.11 | K64: 0.055 | M64: 5.50% to 5.75% | N64: 0
A65: 2007-03-19 | B65: 27.34 | C65: 28.55 | D65: 27.2 | E65: 28.02 | F65: 0.0214745884 | G65: -0.03014705882 | J65: 0.115 | K65: 0.0575 | M65: 5.75% to 6.00% | N65: 0
A66: 2007-03-26 | B66: 27.94 | C66: 28.22 | D66: 27.4 | E66: 27.87 | F66: =(B67-B66)/B67 -> -0.001792757261 | G66: =(D66-E66)/D66 -> -0.01715328467 | J66: 0.12 | K66: 0.06 | M66: 6.00% to 6.25% | N66: =L66/$S$15 -> 0
A67: 2007-04-02 | B67: 27.89 | C67: 28.78 | D67: 27.56 | E67: 28.55 | F67: 0.0239720035 | G67: -0.03592162554 | J67: 0.125 | K67: 0.0625 | M67: 6.25% to 6.50% | N67: 0
A68: 2007-04-09 | B68: 28.575 | C68: 28.72 | D68: 27.99 | E68: 28.61 | F68: 0.0008741258741 | G68: -0.02215076813 | J68: 0.13 | K68: 0.065 | M68: 6.50% to 6.75% | N68: 0
A69: 2007-04-16 | B69: 28.6 | C69: 29.1 | D69: 28.21 | E69: 29.02 | F69: 0.01243093923 | G69: -0.02871322226 | J69: 0.135 | K69: 0.0675 | M69: 6.75% to 7.00% | N69: 0
A70: 2007-04-23 | B70: 28.96 | C70: 30.74 | D70: 28.59 | E70: 30.12 | F70: 0.03883172917 | G70: -0.05351521511 | J70: 0.14 | K70: 0.07 | M70: 7.00% to 7.25% | N70: 0
A71: 2007-04-30 | B71: 30.13 | C71: 31 | D71: 29.9 | E71: 30.56 | F71: 0.0127785059 | G71: -0.0220735786 | J71: 0.145 | K71: 0.0725 | M71: 7.25% to 7.50% | N71: 0
A72: 2007-05-07 | B72: 30.52 | C72: 30.98 | D72: 30.48 | E72: 30.89 | F72: 0.01037613489 | G72: -0.01345144357 | J72: 0.15 | K72: 0.075 | M72: 7.50% to 7.75% | N72: 0
A73: 2007-05-14 | B73: 30.84 | C73: 31.14 | D73: 30.58 | E73: 30.83 | F73: -0.003579563944 | G73: -0.008175277959 | J73: 0.155 | K73: 0.0775 | M73: 7.75% to 8.00% | N73: 0
A74: 2007-05-21 | B74: 30.73 | C74: 31.16 | D74: 29.96 | E74: 30.48 | F74: -0.007871433257 | G74: -0.0173564753 | J74: 0.16 | K74: 0.08 | M74: 8.00% to 8.25% | N74: 0
A75: 2007-05-29 | B75: 30.49 | C75: 31.16 | D75: 30.39 | E75: 30.59 | F75: -0.002301117686 | G75: -0.006581112208 | J75: 0.165 | K75: 0.0825 | M75: 8.25%to 8.50% | N75: 0
A76: 2007-06-04 | B76: 30.42 | C76: 30.76 | D76: 29.41 | E76: 30.05 | F76: -0.01603206413 | G76: -0.02176130568 | J76: 0.17 | K76: 0.085 | M76: 8.50% to 8.75% | N76: 0
A77: 2007-06-11 | B77: 29.94 | C77: 30.88 | D77: 29.77 | E77: 30.49 | F77: 0.02443792766 | G77: -0.02418542157 | J77: 0.175 | K77: 0.0875 | M77: 8.75% to 9.00% | N77: 0
A78: 2007-06-18 | B78: 30.69 | C78: 30.72 | D78: 29.45 | E78: 29.49 | F78: -0.0413980319 | G78: -0.001358234295 | J78: 0.18 | K78: 0.09 | M78: 9.00% to 9.25% | N78: 0
A79: 2007-06-25 | B79: 29.47 | C79: 29.97 | D79: 29.04 | E79: 29.47 | F79: 0.006740815639 | G79: -0.01480716253 | J79: 0.185 | K79: 0.0925 | M79: 9.25% to 9.50% | N79: 0
A80: 2007-07-02 | B80: 29.67 | C80: 30.22 | D80: 29.49 | E80: 29.97 | F80: 0.006363027461 | G80: -0.01627670397 | J80: 0.19 | K80: 0.095 | M80: 9.50% to 9.75% | N80: 0
A81: 2007-07-09 | B81: 29.86 | C81: 30.11 | D81: 29.18 | E81: 29.82 | F81: -0.003360215054 | G81: -0.02193283071 | J81: 0.195 | K81: 0.0975 | M81: 9.75% to 10.00% | N81: 0
A82: 2007-07-16 | B82: 29.76 | C82: 31.84 | D82: 29.72 | E82: 31.16 | F82: 0.04889741131 | G82: -0.04845222073 | J82: 0.2 | K82: 0.1 | M82: < 10% | N82: 0
A83: 2007-07-23 | B83: 31.29 | C83: 31.52 | D83: 29.36 | E83: 29.3901 | F83: -0.06410474409 | G83: -0.00102520436 | K83: More | N83: 0
A84: 2007-07-30 | B84: 29.405 | C84: 29.79 | D84: 28.82 | E84: 28.9601 | F84: -0.01222030981 | G84: -0.004861207495
A85: 2007-08-06 | B85: 29.05 | C85: 30.1 | D85: 28.26 | E85: 28.71 | F85: -0.003800967519 | G85: -0.01592356688
A86: 2007-08-13 | B86: 28.94 | C86: 28.99 | D86: 27.51 | E86: 28.25 | F86: -0.0269694819 | G86: -0.02689930934
A87: 2007-08-20 | B87: 28.18 | C87: 28.84 | D87: 27.87 | E87: 28.81 | F87: 0.01502970989 | G87: -0.03372802296
A88: 2007-08-27 | B88: 28.61 | C88: 28.93 | D88: 27.82 | E88: 28.73 | F88: -0.003859649123 | G88: -0.03271028037
A89: 2007-09-04 | B89: 28.5 | C89: 29.1 | D89: 28.32 | E89: 28.44 | F89: 0.005929543076 | G89: -0.004237288136
A90: 2007-09-10 | B90: 28.67 | C90: 29.26 | D90: 28.41 | E90: 29.04 | F90: 0.004168113928 | G90: -0.02217529039
A91: 2007-09-17 | B91: 28.79 | C91: 28.965 | D91: 28.27 | E91: 28.6499 | F91: 0.0006942034016 | G91: -0.01343827379
A92: 2007-09-24 | B92: 28.81 | C92: 29.85 | D92: 28.8 | E92: 29.46 | F92: 0.02206381534 | G92: -0.02291666667
A93: 2007-10-01 | B93: 29.46 | C93: 29.99 | D93: 29.29 | E93: 29.84 | F93: 0.006743088334 | G93: -0.01877773984
A94: 2007-10-08 | B94: 29.66 | C94: 30.63 | D94: 29.6 | E94: 30.17 | F94: 0.0146179402 | G94: -0.01925675676
A95: 2007-10-15 | B95: 30.1 | C95: 31.23 | D95: 30 | E95: 30.17 | F95: 0.0006640106242 | G95: -0.005666666667
A96: 2007-10-22 | B96: 30.12 | C96: 36.03 | D96: 30.12 | E96: 35.03 | F96: 0.1357245337 | G96: -0.1630146082
A97: 2007-10-29 | B97: 34.85 | C97: 37.5 | D97: 34.35 | E97: 37.06 | F97: 0.05195865071 | G97: -0.0788937409
A98: 2007-11-05 | B98: 36.76 | C98: 37.1 | D98: 33.65 | E98: 33.73 | F98: -0.1032412965 | G98: -0.002377414562
A99: 2007-11-12 | B99: 33.32 | C99: 34.75 | D99: 33.02 | E99: 34.09 | F99: 0.01884570082 | G99: -0.03240460327
A100: 2007-11-19 | B100: 33.96 | C100: 34.97 | D100: 33.71 | E100: 34.11 | F100: 0.003813435025 | G100: -0.01186591516
A101: 2007-11-26 | B101: 34.09 | C101: 34.37 | D101: 32.68 | E101: 33.6 | F101: -0.0176119403 | G101: -0.02815177479
A102: 2007-12-03 | B102: 33.5 | C102: 34.7 | D102: 32.63 | E102: 34.53 | F102: 0.03290993072 | G102: -0.05822862397
A103: 2007-12-10 | B103: 34.64 | C103: 35.84 | D103: 33.93 | E103: 35.31 | F103: 0.0111333143 | G103: -0.04067197171
A104: 2007-12-17 | B104: 35.03 | C104: 36.0625 | D104: 34.21 | E104: 36.06 | F104: 0.03044561306 | G104: -0.05407775504
A105: 2007-12-24 | B105: 36.13 | C105: 36.72 | D105: 35.67 | E105: 36.12 | F105: -0.006406685237 | G105: -0.0126156434
A106: 2007-12-31 | B106: 35.9 | C106: 35.99 | D106: 34.09 | E106: 34.38 | F106: -0.03907380608 | G106: -0.008506893517
A107: 2008-01-07 | B107: 34.55 | C107: 34.8 | D107: 33.35 | E107: 33.91 | F107: -0.002611723738 | G107: -0.0167916042
A108: 2008-01-14 | B108: 34.46 | C108: 34.57 | D108: 32.51 | E108: 33.01 | F108: -0.09258084971 | G108: -0.01537988311
A109: 2008-01-22 | B109: 31.54 | C109: 35 | D109: 31.04 | E109: 32.94 | F109: 0.04482132041 | G109: -0.06121134021
A110: 2008-01-28 | B110: 33.02 | C110: 33.25 | D110: 30.25 | E110: 30.4498 | F110: -0.08297802558 | G110: -0.006604958678
A111: 2008-02-04 | B111: 30.49 | C111: 30.72 | D111: 27.9 | E111: 28.56 | F111: -0.0690743338 | G111: -0.02365591398
A112: 2008-02-11 | B112: 28.52 | C112: 29.05 | D112: 27.91 | E112: 28.42 | F112: 0.009722222222 | G112: -0.01827302042
A113: 2008-02-19 | B113: 28.8 | C113: 28.96 | D113: 27.2 | E113: 27.68 | F113: -0.04159132007 | G113: -0.01764705882
A114: 2008-02-25 | B114: 27.65 | C114: 28.86 | D114: 27.02 | E114: 27.1999 | F114: -0.01505139501 | G114: -0.006658031088
A115: 2008-03-03 | B115: 27.24 | C115: 28.41 | D115: 26.87 | E115: 27.87 | F115: 0.02120014373 | G115: -0.03721622627
A116: 2008-03-10 | B116: 27.83 | C116: 29.49 | D116: 27.64 | E116: 27.96 | F116: -0.01941391941 | G116: -0.01157742402
A117: 2008-03-17 | B117: 27.3 | C117: 29.59 | D117: 27.28 | E117: 29.18 | F117: 0.0692124105 | G117: -0.06964809384
A118: 2008-03-24 | B118: 29.33 | C118: 29.4 | D118: 27.83 | E118: 27.91 | F118: -0.05200860832 | G118: -0.00287459576
A119: 2008-03-31 | B119: 27.88 | C119: 29.58 | D119: 27.84 | E119: 29.16 | F119: 0.0565143824 | G119: -0.0474137931
A120: 2008-04-07 | B120: 29.55 | C120: 29.59 | D120: 28.21 | E120: 28.28 | F120: -0.04638810198 | G120: -0.002481389578
A121: 2008-04-14 | B121: 28.24 | C121: 30.1 | D121: 27.93 | E121: 30 | F121: 0.06459092415 | G121: -0.07411385607
A122: 2008-04-21 | B122: 30.19 | C122: 32.1 | D122: 29.6 | E122: 29.83 | F122: -0.01308724832 | G122: -0.00777027027
A123: 2008-04-28 | B123: 29.8 | C123: 29.835 | D123: 28.45 | E123: 29.24 | F123: 0.004343468092 | G123: -0.02776801406
A124: 2008-05-05 | B124: 29.93 | C124: 30.23 | D124: 28.93 | E124: 29.39 | F124: -0.01802721088 | G124: -0.01590044936
A125: 2008-05-12 | B125: 29.4 | C125: 30.53 | D125: 29.35 | E125: 29.99 | F125: 0.01573485102 | G125: -0.02180579216
A126: 2008-05-19 | B126: 29.87 | C126: 29.89 | D126: 27.95 | E126: 28.05 | F126: -0.0626111704 | G126: -0.003577817531
A127: 2008-05-27 | B127: 28.11 | C127: 28.7 | D127: 28.04 | E127: 28.32 | F127: 0.004603399433 | G127: -0.009985734665
A128: 2008-06-02 | B128: 28.24 | C128: 28.36 | D128: 27.2 | E128: 27.49 | F128: -0.02133815552 | G128: -0.01066176471
A129: 2008-06-09 | B129: 27.65 | C129: 29.57 | D129: 27.11 | E129: 29.07 | F129: 0.0472088215 | G129: -0.072298045
A130: 2008-06-16 | B130: 29.02 | C130: 29.19 | D130: 28.1 | E130: 28.23 | F130: =(B131-B130)/B131 -> -0.02544169611 | G130: =(D130-E130)/D130 -> -0.00462633452
A131: 2008-06-23 | B131: 28.3 | C131: 28.67 | D131: 27.46 | E131: 27.63 | F131: -0.02055535521 | G131: -0.006190823015
A132: 2008-06-30 | B132: 27.73 | C132: 27.98 | D132: 25.6 | E132: 25.98 | F132: -0.06204519341 | G132: -0.01484375
A133: 2008-07-07 | B133: 26.11 | C133: 26.39 | D133: 24.87 | E133: 25.25 | F133: -0.02472527473 | G133: -0.01527945316
A134: 2008-07-14 | B134: 25.48 | C134: 27.91 | D134: 24.93 | E134: 25.86 | F134: 0.007014809041 | G134: -0.03730445247
A135: 2008-07-21 | B135: 25.66 | C135: 26.84 | D135: 25.44 | E135: 26.16 | F135: 0.01534919417 | G135: -0.02830188679
A136: 2008-07-28 | B136: 26.06 | C136: 26.49 | D136: 25.07 | E136: 25.44 | F136: -0.02638834187 | G136: -0.01475867571
A137: 2008-08-04 | B137: 25.39 | C137: 28.23 | D137: 25.11 | E137: 28.13 | F137: 0.08865757358 | G137: -0.1202708084
A138: 2008-08-11 | B138: 27.86 | C138: 28.5 | D138: 27.56 | E138: 27.81 | F138: -0.002879769618 | G138: -0.009071117562
A139: 2008-08-18 | B139: 27.78 | C139: 28.05 | D139: 26.86 | E139: 27.84 | F139: -0.006157189424 | G139: -0.03648548027
A140: 2008-08-25 | B140: 27.61 | C140: 28.01 | D140: 27.13 | E140: 27.29 | F140: 0.001988071571 | G140: -0.005897530409
A141: 2008-09-02 | B141: 27.665 | C141: 27.76 | D141: 25.63 | E141: 25.65 | F141: -0.05551316291 | G141: -0.0007803355443
A142: 2008-09-08 | B142: 26.21 | C142: 27.74 | D142: 25.67 | E142: 27.62 | F142: 0.02637444279 | G142: -0.0759641605
A143: 2008-09-15 | B143: 26.92 | C143: 27.49 | D143: 23.5 | E143: 25.16 | F143: -0.02669717773 | G143: -0.07063829787
A144: 2008-09-22 | B144: 26.22 | C144: 27.56 | D144: 25.32 | E144: 27.4 | F144: 0.02672605791 | G144: -0.08214849921
A145: 2008-09-29 | B145: 26.94 | C145: 27.66 | D145: 25.0089 | E145: 26.32 | F145: -0.05111197815 | G145: -0.05242533658
A146: 2008-10-06 | B146: 25.63 | C146: 25.99 | D146: 20.65 | E146: 21.5 | F146: -0.1211723535 | G146: -0.0411622276
A147: 2008-10-13 | B147: 22.86 | C147: 25.73 | D147: 21.31 | E147: 23.93 | F147: 0.05537190083 | G147: -0.1229469733
A148: 2008-10-20 | B148: 24.2 | C148: 25.01 | D148: 20.89 | E148: 21.96 | F148: -0.116751269 | G148: -0.05122067975
A149: 2008-10-27 | B149: 21.67 | C149: 23.97 | D149: 21.02 | E149: 22.33 | F149: 0.03603202847 | G149: -0.06232159848
A150: 2008-11-03 | B150: 22.48 | C150: 23.66 | D150: 20.86 | E150: 21.5 | F150: -0.02906843671 | G150: -0.03068072867
A151: 2008-11-10 | B151: 21.845 | C151: 21.97 | D151: 18.74 | E151: 20.06 | F151: -0.1066362715 | G151: -0.0704375667
A152: 2008-11-17 | B152: 19.74 | C152: 20.24 | D152: 17.5 | E152: 19.68 | F152: 0.00754147813 | G152: -0.1245714286
A153: 2008-11-24 | B153: 19.89 | C153: 20.94 | D153: 19.55 | E153: 20.22 | F153: -0.0007547169811 | G153: -0.03427109974
A154: 2008-12-01 | B154: 19.875 | C154: 19.98 | D154: 18.47 | E154: 19.87 | F154: 0.02334152334 | G154: -0.07579859231
A155: 2008-12-08 | B155: 20.35 | C155: 21.25 | D155: 18.7 | E155: 19.36 | F155: -0.05222337125 | G155: -0.03529411765
A156: 2008-12-15 | B156: 19.34 | C156: 20.18 | D156: 18.89 | E156: 19.12 | F156: -0.005197505198 | G156: -0.01217575437
A157: 2008-12-22 | B157: 19.24 | C157: 19.57 | D157: 18.89 | E157: 19.13 | F157: -0.004699738903 | G157: -0.01270513499
A158: 2008-12-29 | B158: 19.15 | C158: 20.4 | D158: 18.64 | E158: 20.33 | F158: 0.05198019802 | G158: -0.09066523605
A159: 2009-01-05 | B159: 20.2 | C159: 21 | D159: 19.41 | E159: 19.52 | F159: -0.02486047692 | G159: -0.005667181865
A160: 2009-01-12 | B160: 19.71 | C160: 19.99 | D160: 18.52 | E160: 19.71 | F160: -0.01284686536 | G160: -0.06425485961
A161: 2009-01-20 | B161: 19.46 | C161: 19.62 | D161: 16.75 | E161: 17.2 | F161: -0.1255060729 | G161: -0.02686567164
A162: 2009-01-26 | B162: 17.29 | C162: 18.31 | D162: 17.1 | E162: 17.1 | F162: -0.01526717557 | G162: 0
A163: 2009-02-02 | B163: 17.03 | C163: 19.93 | D163: 17 | E163: 19.66 | F163: 0.132892057 | G163: -0.1564705882
A164: 2009-02-09 | B164: 19.64 | C164: 19.8 | D164: 18.54 | E164: 19.09 | F164: -0.0621957815 | G164: -0.02966558792
A165: 2009-02-17 | B165: 18.49 | C165: 18.5 | D165: 17.66 | E165: 18 | F165: -0.02608213097 | G165: -0.01925254813
A166: 2009-02-23 | B166: 18.02 | C166: 18.15 | D166: 16.1 | E166: 16.15 | F166: -0.1290726817 | G166: -0.003105590062
A167: 2009-03-02 | B167: 15.96 | C167: 16.4 | D167: 14.87 | E167: 15.28 | F167: -0.05 | G167: -0.02757229321
A168: 2009-03-09 | B168: 15.2 | C168: 17.2 | D168: 15.1 | E168: 16.65 | F168: 0.09631391201 | G168: -0.1026490066
A169: 2009-03-16 | B169: 16.82 | C169: 17.65 | D169: 16.24 | E169: 17.06 | F169: 0.03166378814 | G169: -0.05049261084
A170: 2009-03-23 | B170: 17.37 | C170: 18.88 | D170: 17.31 | E170: 18.13 | F170: 0.02085682074 | G170: -0.04737146158
A171: 2009-03-30 | B171: 17.74 | C171: 19.89 | D171: 17.27 | E171: 18.75 | F171: 0.04314994606 | G171: -0.08569774175
A172: 2009-04-06 | B172: 18.54 | C172: 19.7 | D172: 18.265 | E172: 19.67 | F172: 0.05840528187 | G172: -0.07692307692
A173: 2009-04-13 | B173: 19.69 | C173: 19.85 | D173: 18.51 | E173: 19.2 | F173: -0.04235044997 | G173: -0.03727714749
A174: 2009-04-20 | B174: 18.89 | C174: 21.2 | D174: 18.47 | E174: 20.91 | F174: 0.08077858881 | G174: -0.132106118
A175: 2009-04-27 | B175: 20.55 | C175: 21.1 | D175: 19.79 | E175: 20.24 | F175: -0.0088365243 | G175: -0.02273875695
A176: 2009-05-04 | B176: 20.37 | C176: 20.4 | D176: 19.14 | E176: 19.42 | F176: -0.0609375 | G176: -0.01462904911
A177: 2009-05-11 | B177: 19.2 | C177: 20.5 | D177: 19.01 | E177: 20.22 | F177: 0.05697445972 | G177: -0.06365071015
A178: 2009-05-18 | B178: 20.36 | C178: 20.74 | D178: 19.47 | E178: 19.75 | F178: -0.04196519959 | G178: -0.01438109913
A179: 2009-05-26 | B179: 19.54 | C179: 20.94 | D179: 19.45 | E179: 20.89 | F179: 0.06952380952 | G179: -0.07403598972
A180: 2009-06-01 | B180: 21 | C180: 22.31 | D180: 20.86 | E180: 22.14 | F180: 0.04458598726 | G180: -0.06136145733
A181: 2009-06-08 | B181: 21.98 | C181: 23.38 | D181: 21.63 | E181: 23.33 | F181: 0.0538097288 | G181: -0.07859454461
A182: 2009-06-15 | B182: 23.23 | C182: 24.34 | D182: 23.02 | E182: 24.07 | F182: 0.03006263048 | G182: -0.04561251086
A183: 2009-06-22 | B183: 23.95 | C183: 23.95 | D183: 23.2 | E183: 23.35 | F183: -0.01483050847 | G183: -0.006465517241
A184: 2009-06-29 | B184: 23.6 | C184: 24.3 | D184: 23.21 | E184: 23.37 | F184: -0.01680310211 | G184: -0.006893580353
A185: 2009-07-06 | B185: 23.21 | C185: 23.28 | D185: 22 | E185: 22.39 | F185: -0.03523639607 | G185: -0.01772727273
A186: 2009-07-13 | B186: 22.42 | C186: 24.45 | D186: 22.14 | E186: 24.29 | F186: 0.08265139116 | G186: -0.09710930443
A187: 2009-07-20 | B187: 24.44 | C187: 25.72 | D187: 22.81 | E187: 23.45 | F187: -0.04266211604 | G187: -0.02805786936
A188: 2009-07-27 | B188: 23.44 | C188: 24.43 | D188: 22.9 | E188: 23.52 | F188: 0.01595298069 | G188: -0.02707423581
A189: 2009-08-03 | B189: 23.82 | C189: 24.25 | D189: 23.27 | E189: 23.56 | F189: -0.01534526854 | G189: -0.01246239794
A190: 2009-08-10 | B190: 23.46 | C190: 23.9 | D190: 23.03 | E190: 23.692 | F190: -0.006003430532 | G190: -0.02874511507
A191: 2009-08-17 | B191: 23.32 | C191: 24.42 | D191: 23.23 | E191: 24.41 | F191: 0.0446538304 | G191: -0.05079638399
A192: 2009-08-24 | B192: 24.41 | C192: 25.49 | D192: 24.28 | E192: 24.68 | F192: 0.006512006512 | G192: -0.01647446458
A193: 2009-08-31 | B193: 24.57 | C193: 24.85 | D193: 23.76 | E193: 24.62 | F193: 0.002030869212 | G193: -0.0361952862
A194: 2009-09-08 | B194: 24.62 | C194: 25.17 | D194: 24.41 | E194: 24.86 | F194: =(B195-B194)/B195 -> 0.00121703854 | G194: =(D194-E194)/D194 -> -0.0184350676
A195: 2009-09-14 | B195: 24.65 | C195: 25.48 | D195: 24.64 | E195: 25.26 | F195: 0.01831939466 | G195: -0.02516233766
A196: 2009-09-21 | B196: 25.11 | C196: 26.25 | D196: 25.1 | E196: 25.55 | F196: 0.019140625 | G196: -0.01792828685
A197: 2009-09-28 | B197: 25.6 | C197: 26.16 | D197: 24.43 | E197: 24.96 | F197: -0.02481985588 | G197: -0.02169463774
A198: 2009-10-05 | B198: 24.98 | C198: 25.9 | D198: 24.52 | E198: 25.55 | F198: 0.02650038971 | G198: -0.04200652529
A199: 2009-10-12 | B199: 25.66 | C199: 26.71 | D199: 25.52 | E199: 26.5 | F199: 0.03133257833 | G199: -0.03840125392
A200: 2009-10-19 | B200: 26.49 | C200: 29.35 | D200: 25.94 | E200: 28.02 | F200: 0.05813333333 | G200: -0.08018504241
... 767 more rows

Sheet Daily
A1: =_xlfn.STOCKHISTORY(P8,"1-jan-2006",TODAY(),0,1,0,2,3,4,1) -> Date | B1: Open | C1: High | D1: Low | E1: Close | F1: Open To Open | G1: High to Low | J1: Intervals | K1: Intervals | L1: Frequency | M1: Text Labels | N1: Probabilities | R1: daily
A2: 2010-06-29 | B2: 1.2667 | C2: 1.6667 | D2: 1.1693 | E2: 1.5927 | F2: =(B3-B2)/B3 -> 0.2632466702 | G2: =(D2-E2)/D2 -> -0.3620969811 | J2: -0.1 | K2: -0.1 | L2: 34 | M2: <-10.00% | N2: =L2/$S$15 -> 0.01216893343 | O2: Positive Probability | P2: =SUM(N42:N83) -> 0.5697924123
A3: 2010-06-30 | B3: 1.7193 | C3: 2.0279 | D3: 1.5533 | E3: 1.5887 | F3: -0.03155936881 | G3: -0.02279018863 | J3: -0.0975 | K3: -0.0975 | L3: 1 | M3: -10.00% to -9.75% | N3: 0.0003579098067 | O3: Negative Probability | P3: =SUM(N2:N41) -> 0.4302075877 | R3: Mean | S3: 0.001115151001
A4: 2010-07-01 | B4: 1.6667 | C4: 1.728 | D4: 1.3513 | E4: 1.464 | F4: -0.08700189135 | G4: -0.08340116924 | J4: -0.095 | K4: -0.095 | L4: 2 | M4: -9.75% to -9.50% | N4: 0.0007158196135 | R4: Standard Error | S4: 0.0006822303851
A5: 2010-07-02 | B5: 1.5333 | C5: 1.54 | D5: 1.2473 | E5: 1.28 | F5: -0.1500037501 | G5: -0.02621662792 | J5: -0.0925 | K5: -0.0925 | L5: 4 | M5: -9.50% to -9.25% | N5: 0.001431639227 | P5: =SUM(P2,P3) -> 1 | R5: Median | S5: 0.001307801966
A6: 2010-07-06 | B6: 1.3333 | C6: 1.3333 | D6: 1.0553 | E6: 1.074 | F6: -0.2195188878 | G6: -0.0177200796 | J6: -0.09 | K6: -0.09 | L6: 1 | M6: -9.25% to -9.00% | N6: 0.0003579098067 | R6: Mode | S6: 0
A7: 2010-07-07 | B7: 1.0933 | C7: 1.1087 | D7: 0.9987 | E7: 1.0533 | F7: -0.01607806691 | G7: -0.05467107239 | J7: -0.0875 | K7: -0.0875 | L7: 2 | M7: -9.00% to -8.75% | N7: 0.0007158196135 | P7: SYMBOL | R7: Standard Deviation | S7: 0.03606153915
A8: 2010-07-08 | B8: 1.076 | C8: 1.168 | D8: 1.038 | E8: 1.164 | F8: 0.0819112628 | G8: -0.1213872832 | J8: -0.085 | K8: -0.085 | L8: 2 | M8: -8.75% to -8.50% | N8: 0.0007158196135 | P8: tsla | R8: Sample Variance | S8: 0.001300434606
A9: 2010-07-09 | B9: 1.172 | C9: 1.1933 | D9: 1.1033 | E9: 1.16 | F9: 0.02064009359 | G9: -0.0513912807 | J9: -0.0825 | K9: -0.0825 | L9: 4 | M9: -8.50% to -8.25% | N9: 0.001431639227 | R9: Kurtosis | S9: 5.668464941
A10: 2010-07-12 | B10: 1.1967 | C10: 1.2047 | D10: 1.1333 | E10: 1.1367 | F10: -0.03199379096 | G10: -0.003000088238 | J10: -0.08 | K10: -0.08 | L10: 3 | M10: -8.25% to -8.00% | N10: 0.00107372942 | R10: Skewness | S10: -0.3309377705
A11: 2010-07-13 | B11: 1.1596 | C11: 1.2427 | D11: 1.1267 | E11: 1.2093 | F11: 0.03043478261 | G11: -0.07331144049 | J11: -0.0775 | K11: -0.0775 | L11: 1 | M11: -8.00% to -7.75% | N11: 0.0003579098067 | R11: Range | S11: 0.504316598
A12: 2010-07-14 | B12: 1.196 | C12: 1.3433 | D12: 1.184 | E12: 1.3227 | F12: 0.100278342 | G12: -0.1171452703 | J12: -0.075 | K12: -0.075 | L12: 8 | M12: -7.75% to -7.50% | N12: 0.002863278454 | R12: Minimum | S12: -0.2673069939
A13: 2010-07-15 | B13: 1.3293 | C13: 1.4333 | D13: 1.2667 | E13: 1.326 | F13: 0.03673913043 | G13: -0.04681455751 | J13: -0.0725 | K13: -0.0725 | L13: 10 | M13: -7.50% to -7.25% | N13: 0.003579098067 | R13: Maximum | S13: 0.2370096041
A14: 2010-07-16 | B14: 1.38 | C14: 1.42 | D14: 1.3367 | E14: 1.376 | F14: 0.03137502632 | G14: -0.02940076307 | J14: -0.07 | K14: -0.07 | L14: 9 | M14: -7.25% to -7.00% | N14: 0.003221188261 | R14: Sum | S14: 3.115731896
A15: 2010-07-19 | B15: 1.4247 | C15: 1.4833 | D15: 1.3947 | E15: 1.4607 | F15: 0.0219674607 | G15: -0.04732200473 | J15: -0.0675 | K15: -0.0675 | L15: 2 | M15: -7.00% to -6.75% | N15: 0.0007158196135 | R15: Count | S15: 2794
A16: 2010-07-20 | B16: 1.4567 | C16: 1.4567 | D16: 1.3367 | E16: 1.3533 | F16: -0.05764902345 | G16: -0.01241864293 | J16: -0.065 | K16: -0.065 | L16: 5 | M16: -6.75% to -6.50% | N16: 0.001789549034 | S16: 0
A17: 2010-07-21 | B17: 1.3773 | C17: 1.3933 | D17: 1.3 | E17: 1.348 | F17: -0.007755908392 | G17: -0.03692307692 | J17: -0.0625 | K17: -0.0625 | L17: 4 | M17: -6.50% to -6.25% | N17: 0.001431639227
A18: 2010-07-22 | B18: 1.3667 | C18: 1.4167 | D18: 1.358 | E18: 1.4 | F18: 0.03256176117 | G18: -0.03092783505 | J18: -0.06 | K18: -0.06 | L18: 7 | M18: -6.25% to -6.00% | N18: 0.002505368647
A19: 2010-07-23 | B19: 1.4127 | C19: 1.4373 | D19: 1.404 | E19: 1.4193 | F19: 0.01437242727 | G19: -0.0108974359 | J19: -0.0575 | K19: -0.0575 | L19: 13 | M19: -6.00% to -5.75% | N19: 0.004652827487
A20: 2010-07-26 | B20: 1.4333 | C20: 1.4333 | D20: 1.3533 | E20: 1.3967 | F20: -0.02819225251 | G20: -0.03206975541 | J20: -0.055 | K20: -0.055 | L20: 14 | M20: -5.75% to -5.50% | N20: 0.005010737294
A21: 2010-07-27 | B21: 1.394 | C21: 1.412 | D21: 1.3507 | E21: 1.37 | F21: -0.01751824818 | G21: -0.01428888724 | J21: -0.0525 | K21: -0.0525 | L21: 14 | M21: -5.50% to -5.25% | N21: 0.005010737294
A22: 2010-07-28 | B22: 1.37 | C22: 1.3933 | D22: 1.3673 | E22: 1.3813 | F22: 0.01061601791 | G22: -0.01023915746 | J22: -0.05 | K22: -0.05 | L22: 13 | M22: -5.25% to -5.00% | N22: 0.004652827487
A23: 2010-07-29 | B23: 1.3847 | C23: 1.392 | D23: 1.3333 | E23: 1.3567 | F23: -0.02821712334 | G23: -0.01755043876 | J23: -0.0475 | K23: -0.0475 | L23: 24 | M23: -5.00% to -4.75% | N23: 0.008589835361
A24: 2010-07-30 | B24: 1.3467 | C24: 1.3627 | D24: 1.3033 | E24: 1.3293 | F24: 0.01463378942 | G24: -0.01994935932 | J24: -0.045 | K24: -0.045 | L24: 19 | M24: -4.75% to -4.50% | N24: 0.006800286328
A25: 2010-08-02 | B25: 1.3667 | C25: 1.398 | D25: 1.3555 | E25: 1.3947 | F25: 0.02378571429 | G25: -0.028919218 | J25: -0.0425 | K25: -0.0425 | L25: 17 | M25: -4.50% to -4.25% | N25: 0.006084466714
A26: 2010-08-03 | B26: 1.4 | C26: 1.4633 | D26: 1.388 | E26: 1.4633 | F26: 0.04325838857 | G26: -0.05425072046 | J26: -0.04 | K26: -0.04 | L26: 23 | M26: -4.25% to -4.00% | N26: 0.008231925555
A27: 2010-08-04 | B27: 1.4633 | C27: 1.4787 | D27: 1.39 | E27: 1.4173 | F27: -0.01901114206 | G27: -0.01964028777 | J27: -0.0375 | K27: -0.0375 | L27: 26 | M27: -4.00% to -3.75% | N27: 0.009305654975
A28: 2010-08-05 | B28: 1.436 | C28: 1.4367 | D28: 1.3367 | E28: 1.3633 | F28: -0.07164179104 | G28: -0.01989975312 | J28: -0.035 | K28: -0.035 | L28: 34 | M28: -3.75% to -3.50% | N28: 0.01216893343
A29: 2010-08-06 | B29: 1.34 | C29: 1.344 | D29: 1.3013 | E29: 1.306 | F29: -0.01002487375 | G29: -0.003611772843 | J29: -0.0325 | K29: -0.0325 | L29: 35 | M29: -3.50% to -3.25% | N29: 0.01252684324
A30: 2010-08-09 | B30: 1.3267 | C30: 1.332 | D30: 1.2967 | E30: 1.3067 | F30: -0.0127480916 | G30: -0.007711884013 | J30: -0.03 | K30: -0.03 | L30: 34 | M30: -3.25% to -3.00% | N30: 0.01216893343
A31: 2010-08-10 | B31: 1.31 | C31: 1.31 | D31: 1.2547 | E31: 1.2687 | F31: -0.05136436597 | G31: -0.01115804575 | J31: -0.0275 | K31: -0.0275 | L31: 52 | M31: -3.00% to -2.75% | N31: 0.01861130995
A32: 2010-08-11 | B32: 1.246 | C32: 1.2587 | D32: 1.19 | E32: 1.1933 | F32: -0.04997050645 | G32: -0.002773109244 | J32: -0.025 | K32: -0.025 | L32: 67 | M32: -2.75% to -2.50% | N32: 0.02397995705
A33: 2010-08-12 | B33: 1.1867 | C33: 1.1933 | D33: 1.1593 | E33: 1.1733 | F33: 0.02087458746 | G33: -0.01207625291 | J33: -0.0225 | K33: -0.0225 | L33: 51 | M33: -2.50% to -2.25% | N33: 0.01825340014
A34: 2010-08-13 | B34: 1.212 | C34: 1.23 | D34: 1.1773 | E34: 1.2213 | F34: 0.01463414634 | G34: -0.03737365158 | J34: -0.02 | K34: -0.02 | L34: 60 | M34: -2.00% to -1.75% | N34: 0.0214745884
A35: 2010-08-16 | B35: 1.23 | C35: 1.2533 | D35: 1.2174 | E35: 1.252 | F35: 0.02689873418 | G35: -0.02842122556 | J35: -0.0175 | K35: -0.0175 | L35: 76 | M35: -1.75% to -1.50% | N35: 0.02720114531
A36: 2010-08-17 | B36: 1.264 | C36: 1.2933 | D36: 1.252 | E36: 1.2767 | F36: 0.03215926493 | G36: -0.0197284345 | J36: -0.015 | K36: -0.015 | L36: 63 | M36: -1.50% to -1.25% | N36: 0.02254831782
A37: 2010-08-18 | B37: 1.306 | C37: 1.306 | D37: 1.24 | E37: 1.2513 | F37: -0.05663430421 | G37: -0.009112903226 | J37: -0.0125 | K37: -0.0125 | L37: 79 | M37: -1.25% to -1.00% | N37: 0.02827487473
A38: 2010-08-19 | B38: 1.236 | C38: 1.2833 | D38: 1.222 | E38: 1.2527 | F38: 0.005871471085 | G38: -0.02512274959 | J38: -0.01 | K38: -0.01 | L38: 85 | M38: -1.00% to -0.75% | N38: 0.03042233357
A39: 2010-08-20 | B39: 1.2433 | C39: 1.274 | D39: 1.234 | E39: 1.2733 | F39: 0.02310049501 | G39: -0.03184764992 | J39: -0.0075 | K39: -0.0075 | L39: 98 | M39: -0.75% to -0.50% | N39: 0.03507516106
A40: 2010-08-23 | B40: 1.2727 | C40: 1.3593 | D40: 1.2667 | E40: 1.342 | F40: 0.008259954804 | G40: -0.05944580406 | J40: -0.005 | K40: -0.005 | L40: 110 | M40: -0.50% to -0.25% | N40: 0.03937007874
A41: 2010-08-24 | B41: 1.2833 | C41: 1.314 | D41: 1.2633 | E41: 1.28 | F41: -0.004697408596 | G41: -0.01321934616 | J41: -0.0025 | K41: -0.0025 | L41: 96 | M41: -0.25% to 0.00% | N41: 0.03435934145
A42: 2010-08-25 | B42: 1.2773 | C42: 1.332 | D42: 1.2373 | E42: 1.3267 | F42: 0.03672699849 | G42: -0.07225410167 | J42: 0 | K42: 0 | L42: 141 | M42: 0.00% to 0.25% | N42: 0.05046528275
A43: 2010-08-26 | B43: 1.326 | C43: 1.3513 | D43: 1.3067 | E43: 1.3167 | F43: -0.007063112326 | G43: -0.007652865998 | J43: 0.0025 | K43: 0.0025 | L43: 110 | M43: 0.25% to 0.50% | N43: 0.03937007874
A44: 2010-08-27 | B44: 1.3167 | C44: 1.3243 | D44: 1.3 | E44: 1.3133 | F44: -0.002588898195 | G44: -0.01023076923 | J44: 0.005 | K44: 0.005 | L44: 111 | M44: 0.50% to 0.75% | N44: 0.03972798855
A45: 2010-08-30 | B45: 1.3133 | C45: 1.346 | D45: 1.3073 | E45: 1.3247 | F45: -0.001983672847 | G45: -0.01330987532 | J45: 0.0075 | K45: 0.0075 | L45: 112 | M45: 0.75% to 1.00% | N45: 0.04008589835
A46: 2010-08-31 | B46: 1.3107 | C46: 1.3193 | D46: 1.2887 | E46: 1.2987 | F46: -0.002064220183 | G46: -0.007759757896 | J46: 0.01 | K46: 0.01 | L46: 96 | M46: 1.00% to 1.25% | N46: 0.03435934145
A47: 2010-09-01 | B47: 1.308 | C47: 1.3793 | D47: 1.3067 | E47: 1.3633 | F47: 0.03681885125 | G47: -0.04331522155 | J47: 0.0125 | K47: 0.0125 | L47: 92 | M47: 1.25% to 1.50% | N47: 0.03292770222
A48: 2010-09-02 | B48: 1.358 | C48: 1.416 | D48: 1.354 | E48: 1.404 | F48: 0.0239344498 | G48: -0.03692762186 | J48: 0.015 | K48: 0.015 | L48: 90 | M48: 1.50% to 1.75% | N48: 0.03221188261
A49: 2010-09-03 | B49: 1.3913 | C49: 1.42 | D49: 1.3773 | E49: 1.4033 | F49: -0.01259097525 | G49: -0.01887751398 | J49: 0.0175 | K49: 0.0175 | L49: 97 | M49: 1.75% to 2.00% | N49: 0.03471725125
A50: 2010-09-07 | B50: 1.374 | C50: 1.4 | D50: 1.3667 | E50: 1.3693 | F50: 0.002395992159 | G50: -0.001902392625 | J50: 0.02 | K50: 0.02 | L50: 68 | M50: 2.00% to 2.00% | N50: 0.02433786686
A51: 2010-09-08 | B51: 1.3773 | C51: 1.3967 | D51: 1.3733 | E51: 1.3933 | F51: 0.01621428571 | G51: -0.01456346028 | J51: 0.0225 | K51: 0.0225 | L51: 72 | M51: 2.25% to 2.50% | N51: 0.02576950608
A52: 2010-09-09 | B52: 1.4 | C52: 1.4033 | D52: 1.3793 | E52: 1.3807 | F52: -0.01207258006 | G52: -0.001015007613 | J52: 0.025 | K52: 0.025 | L52: 59 | M52: 2.50% to 2.75% | N52: 0.0211166786
A53: 2010-09-10 | B53: 1.3833 | C53: 1.3953 | D53: 1.3173 | E53: 1.3447 | F53: 0.006749479428 | G53: -0.02080012146 | J53: 0.0275 | K53: 0.0275 | L53: 66 | M53: 2.75% to 3.00% | N53: 0.02362204724
A54: 2010-09-13 | B54: 1.3927 | C54: 1.3933 | D54: 1.3667 | E54: 1.3813 | F54: -0.01708902359 | G54: -0.01068266628 | J54: 0.03 | K54: 0.03 | L54: 44 | M54: 3.00% to 3.25% | N54: 0.0157480315
A55: 2010-09-14 | B55: 1.3693 | C55: 1.44 | D55: 1.3687 | E55: 1.408 | F55: 0.02101951812 | G55: -0.02871337766 | J55: 0.0325 | K55: 0.0325 | L55: 48 | M55: 3.25% to 3.50% | N55: 0.01717967072
A56: 2010-09-15 | B56: 1.3987 | C56: 1.4667 | D56: 1.386 | E56: 1.4653 | F56: 0.05282047809 | G56: -0.05721500722 | J56: 0.035 | K56: 0.035 | L56: 47 | M56: 3.75% to 4.00% | N56: 0.01682176092
A57: 2010-09-16 | B57: 1.4767 | C57: 1.544 | D57: 1.3893 | E57: 1.396 | F57: -0.05380717905 | G57: -0.004822572519 | J57: 0.0375 | K57: 0.0375 | L57: 29 | M57: 3.75% to 4.00% | N57: 0.0103793844
A58: 2010-09-17 | B58: 1.4013 | C58: 1.4213 | D58: 1.32 | E58: 1.3487 | F58: -0.01690856313 | G58: -0.02174242424 | J58: 0.04 | K58: 0.04 | L58: 36 | M58: 4.00% to 4.25% | N58: 0.01288475304
A59: 2010-09-20 | B59: 1.378 | C59: 1.4233 | D59: 1.344 | E59: 1.4037 | F59: 0.01055503698 | G59: -0.04441964286 | J59: 0.0425 | K59: 0.0425 | L59: 31 | M59: 4.25% to 4.50% | N59: 0.01109520401
A60: 2010-09-21 | B60: 1.3927 | C60: 1.4367 | D60: 1.378 | E60: 1.3847 | F60: -0.001006253145 | G60: -0.004862119013 | J60: 0.045 | K60: 0.045 | L60: 36 | M60: 4.50% to 4.75% | N60: 0.01288475304
A61: 2010-09-22 | B61: 1.3913 | C61: 1.3967 | D61: 1.32 | E61: 1.3247 | F61: -0.04924585219 | G61: -0.003560606061 | J61: 0.0475 | K61: 0.0475 | L61: 22 | M61: 4.75% to 5.00% | N61: 0.007874015748
A62: 2010-09-23 | B62: 1.326 | C62: 1.3427 | D62: 1.3 | E62: 1.304 | F62: 0.003007518797 | G62: -0.003076923077 | J62: 0.05 | K62: 0.05 | L62: 28 | M62: 5.00% to 5.25% | N62: 0.01002147459
A63: 2010-09-24 | B63: 1.33 | C63: 1.346 | D63: 1.31 | E63: 1.34 | F63: 0.02205882353 | G63: -0.02290076336 | J63: 0.0525 | K63: 0.0525 | L63: 17 | M63: 5.25% to 5.50% | N63: 0.006084466714
A64: 2010-09-27 | B64: 1.36 | C64: 1.3873 | D64: 1.3367 | E64: 1.3687 | F64: 0.03044129179 | G64: -0.02393955263 | J64: 0.055 | K64: 0.055 | L64: 13 | M64: 5.50% to 5.75% | N64: 0.004652827487
A65: 2010-09-28 | B65: 1.4027 | C65: 1.4327 | D65: 1.384 | E65: 1.4267 | F65: 0.007078643732 | G65: -0.03085260116 | J65: 0.0575 | K65: 0.0575 | L65: 12 | M65: 5.75% to 6.00% | N65: 0.004294917681
A66: 2010-09-29 | B66: 1.4127 | C66: 1.4687 | D66: 1.4087 | E66: 1.4653 | F66: =(B67-B66)/B67 -> 0.03681734506 | G66: =(D66-E66)/D66 -> -0.04017888834 | J66: 0.06 | K66: 0.06 | L66: 11 | M66: 6.00% to 6.25% | N66: =L66/$S$15 -> 0.003937007874
A67: 2010-09-30 | B67: 1.4667 | C67: 1.4766 | D67: 1.346 | E67: 1.3603 | F67: -0.06336547524 | G67: -0.01062407132 | J67: 0.0625 | K67: 0.0625 | L67: 10 | M67: 6.25% to 6.50% | N67: 0.003579098067
A68: 2010-10-01 | B68: 1.3793 | C68: 1.3833 | D68: 1.354 | E68: 1.3733 | F68: -0.01270190896 | G68: -0.01425406204 | J68: 0.065 | K68: 0.065 | L68: 7 | M68: 6.50% to 6.75% | N68: 0.002505368647
A69: 2010-10-04 | B69: 1.362 | C69: 1.4113 | D69: 1.3533 | E69: 1.3993 | F69: 0.03404255319 | G69: -0.033990985 | J69: 0.0675 | K69: 0.0675 | L69: 4 | M69: 6.75% to 7.00% | N69: 0.001431639227
A70: 2010-10-05 | B70: 1.41 | C70: 1.4187 | D70: 1.4007 | E70: 1.408 | F70: -0.004273504274 | G70: -0.005211679874 | J70: 0.07 | K70: 0.07 | L70: 5 | M70: 7.00% to 7.25% | N70: 0.001789549034
A71: 2010-10-06 | B71: 1.404 | C71: 1.4172 | D71: 1.3547 | E71: 1.364 | F71: -0.02384598556 | G71: -0.006864988558 | J71: 0.0725 | K71: 0.0725 | L71: 3 | M71: 7.25% to 7.50% | N71: 0.00107372942
A72: 2010-10-07 | B72: 1.3713 | C72: 1.376 | D72: 1.356 | E72: 1.362 | F72: -0.006828193833 | G72: -0.004424778761 | J72: 0.075 | K72: 0.075 | L72: 5 | M72: 7.50% to 7.75% | N72: 0.001789549034
A73: 2010-10-08 | B73: 1.362 | C73: 1.386 | D73: 1.3593 | E73: 1.362 | F73: 0.0005136860644 | G73: -0.001986316486 | J73: 0.0775 | K73: 0.0775 | L73: 9 | M73: 7.75% to 8.00% | N73: 0.003221188261
A74: 2010-10-11 | B74: 1.3627 | C74: 1.3799 | D74: 1.338 | E74: 1.3493 | F74: -0.01188089404 | G74: -0.008445440957 | J74: 0.08 | K74: 0.08 | L74: 1 | M74: 8.00% to 8.25% | N74: 0.0003579098067
A75: 2010-10-12 | B75: 1.3467 | C75: 1.3522 | D75: 1.3353 | E75: 1.3493 | F75: 0.02129360465 | G75: -0.01048453531 | J75: 0.0825 | K75: 0.0825 | L75: 6 | M75: 8.25%to 8.50% | N75: 0.00214745884
A76: 2010-10-13 | B76: 1.376 | C76: 1.39 | D76: 1.3573 | E76: 1.3693 | F76: 0.01714285714 | G76: -0.008841081559 | J76: 0.085 | K76: 0.085 | L76: 3 | M76: 8.50% to 8.75% | N76: 0.00107372942
A77: 2010-10-14 | B77: 1.4 | C77: 1.402 | D77: 1.36 | E77: 1.3833 | F77: -0.005241617003 | G77: -0.01713235294 | J77: 0.0875 | K77: 0.0875 | L77: 2 | M77: 8.75% to 9.00% | N77: 0.0007158196135
A78: 2010-10-15 | B78: 1.3927 | C78: 1.3933 | D78: 1.35 | E78: 1.3693 | F78: -0.01805555556 | G78: -0.0142962963 | J78: 0.09 | K78: 0.09 | L78: 6 | M78: 9.00% to 9.25% | N78: 0.00214745884
A79: 2010-10-18 | B79: 1.368 | C79: 1.376 | D79: 1.348 | E79: 1.3487 | F79: -0.01581644019 | G79: -0.0005192878338 | J79: 0.0925 | K79: 0.0925 | L79: 10 | M79: 9.25% to 9.50% | N79: 0.003579098067
A80: 2010-10-19 | B80: 1.3467 | C80: 1.3604 | D80: 1.3333 | E80: 1.3367 | F80: -0.002008928571 | G80: -0.002550063752 | J80: 0.095 | K80: 0.095 | L80: 3 | M80: 9.50% to 9.75% | N80: 0.00107372942
A81: 2010-10-20 | B81: 1.344 | C81: 1.3793 | D81: 1.336 | E81: 1.3767 | F81: 0.02183406114 | G81: -0.03046407186 | J81: 0.0975 | K81: 0.0975 | L81: 1 | M81: 9.75% to 10.00% | N81: 0.0003579098067
A82: 2010-10-21 | B82: 1.374 | C82: 1.3967 | D82: 1.3633 | E82: 1.3833 | F82: 0.003409008486 | G82: -0.01467028534 | J82: 0.1 | K82: 0.1 | L82: 0 | M82: < 10% | N82: 0
A83: 2010-10-22 | B83: 1.3787 | C83: 1.3953 | D83: 1.37 | E83: 1.3813 | F83: 0.01239255014 | G83: -0.008248175182 | K83: More | L83: 29 | N83: 0.0103793844
A84: 2010-10-25 | B84: 1.396 | C84: 1.3987 | D84: 1.382 | E84: 1.39 | F84: -0.006706569554 | G84: -0.005788712012
A85: 2010-10-26 | B85: 1.3867 | C85: 1.458 | D85: 1.3673 | E85: 1.424 | F85: 0.02117597233 | G85: -0.04146858773
A86: 2010-10-27 | B86: 1.4167 | C86: 1.4253 | D86: 1.3767 | E86: 1.4 | F86: 0.00652173913 | G86: -0.01692452967
A87: 2010-10-28 | B87: 1.426 | C87: 1.4333 | D87: 1.3973 | E87: 1.4127 | F87: -0.01184985454 | G87: -0.01102125528
A88: 2010-10-29 | B88: 1.4093 | C88: 1.4567 | D88: 1.4035 | E88: 1.456 | F88: 0.03650782799 | G88: -0.03740648379
A89: 2010-11-01 | B89: 1.4627 | C89: 1.5167 | D89: 1.4207 | E89: 1.4273 | F89: -0.01203902304 | G89: -0.004645597241
A90: 2010-11-02 | B90: 1.4453 | C90: 1.4586 | D90: 1.4033 | E90: 1.4167 | F90: -0.01874955946 | G90: -0.009548920402
A91: 2010-11-03 | B91: 1.4187 | C91: 1.5 | D91: 1.4107 | E91: 1.4513 | F91: 0.05840578748 | G91: -0.02878003828
A92: 2010-11-04 | B92: 1.5067 | C92: 1.6886 | D92: 1.4767 | E92: 1.66 | F92: 0.09125452352 | G92: -0.1241281235
A93: 2010-11-05 | B93: 1.658 | C93: 1.6647 | D93: 1.5813 | E93: 1.6293 | F93: -0.01512275761 | G93: -0.03035477139
A94: 2010-11-08 | B94: 1.6333 | C94: 1.6667 | D94: 1.602 | E94: 1.6653 | F94: 0.02003959921 | G94: -0.03951310861
A95: 2010-11-09 | B95: 1.6667 | C95: 1.7126 | D95: 1.6033 | E95: 1.642 | F95: -0.0212622549 | G95: -0.02413771596
A96: 2010-11-10 | B96: 1.632 | C96: 1.998 | D96: 1.6033 | E96: 1.9573 | F96: 0.1440260149 | G96: -0.2207946111
A97: 2010-11-11 | B97: 1.9066 | C97: 1.94 | D97: 1.822 | E97: 1.869 | F97: -0.01237190039 | G97: -0.02579582876
A98: 2010-11-12 | B98: 1.8833 | C98: 2.0333 | D98: 1.8713 | E98: 1.9893 | F98: 0.06517422813 | G98: -0.06305776733
A99: 2010-11-15 | B99: 2.0146 | C99: 2.1959 | D99: 2.0146 | E99: 2.0533 | F99: 0.025162102 | G99: -0.01920976869
A100: 2010-11-16 | B100: 2.0666 | C100: 2.0933 | D100: 1.8946 | E100: 1.978 | F100: -0.02647394824 | G100: -0.04401984588
A101: 2010-11-17 | B101: 2.0133 | C101: 2.05 | D101: 1.9073 | E101: 1.966 | F101: 0.01530861782 | G101: -0.03077649033
A102: 2010-11-18 | B102: 2.0446 | C102: 2.0493 | D102: 1.928 | E102: 1.9926 | F102: -0.01691037501 | G102: -0.03350622407
A103: 2010-11-19 | B103: 2.0106 | C103: 2.0913 | D103: 1.98 | E103: 2.066 | F103: 0.04466406918 | G103: -0.04343434343
A104: 2010-11-22 | B104: 2.1046 | C104: 2.23 | D104: 2.1 | E104: 2.2266 | F104: 0.0516829631 | G104: -0.06028571429
A105: 2010-11-23 | B105: 2.2193 | C105: 2.3786 | D105: 2.146 | E105: 2.3046 | F105: 0.05613915706 | G105: -0.07390493942
A106: 2010-11-24 | B106: 2.3513 | C106: 2.398 | D106: 2.2889 | E106: 2.3646 | F106: 0.009269793115 | G106: -0.03307265499
A107: 2010-11-26 | B107: 2.3733 | C107: 2.4 | D107: 2.3166 | E107: 2.3546 | F107: -0.005294815317 | G107: -0.01640334974
A108: 2010-11-29 | B108: 2.3608 | C108: 2.3966 | D108: 2.222 | E108: 2.2886 | F108: -0.04957097764 | G108: -0.0299729973
A109: 2010-11-30 | B109: 2.2493 | C109: 2.3553 | D109: 2.2273 | E109: 2.3553 | F109: 0.05938192615 | G109: -0.05746868406
A110: 2010-12-01 | B110: 2.3913 | C110: 2.428 | D110: 2.23 | E110: 2.29 | F110: -0.05469060116 | G110: -0.0269058296
A111: 2010-12-02 | B111: 2.2673 | C111: 2.2865 | D111: 2.08 | E111: 2.1566 | F111: -0.06246485473 | G111: -0.03682692308
A112: 2010-12-03 | B112: 2.134 | C112: 2.15 | D112: 2.058 | E112: 2.0993 | F112: -0.02105263158 | G112: -0.02006802721
A113: 2010-12-06 | B113: 2.09 | C113: 2.0966 | D113: 1.9706 | E113: 2.0206 | F113: -0.028239693 | G113: -0.02537298285
A114: 2010-12-07 | B114: 2.0326 | C114: 2.16 | D114: 2.0033 | E114: 2.104 | F114: 0.06128481042 | G114: -0.05026705935
A115: 2010-12-08 | B115: 2.1653 | C115: 2.166 | D115: 2.1013 | E115: 2.158 | F115: 0.0009228071794 | G115: -0.02698329605
A116: 2010-12-09 | B116: 2.1673 | C116: 2.1813 | D116: 2.11 | E116: 2.1366 | F116: -0.01436862305 | G116: -0.01260663507
A117: 2010-12-10 | B117: 2.1366 | C117: 2.1946 | D117: 2.0753 | E117: 2.1013 | F117: -0.01294268241 | G117: -0.01252830916
A118: 2010-12-13 | B118: 2.1093 | C118: 2.118 | D118: 2.0266 | E118: 2.0366 | F118: -0.04456990046 | G118: -0.004934372841
A119: 2010-12-14 | B119: 2.0193 | C119: 2.026 | D119: 1.8507 | E119: 1.902 | F119: -0.05650604301 | G119: -0.02771924137
A120: 2010-12-15 | B120: 1.9113 | C120: 1.998 | D120: 1.902 | E120: 1.9733 | F120: 0.04435 | G120: -0.03748685594
A121: 2010-12-16 | B121: 2 | C121: 2.0606 | D121: 1.9767 | E121: 2.054 | F121: 0.04274158809 | G121: -0.03910558001
A122: 2010-12-17 | B122: 2.0893 | C122: 2.1026 | D122: 2.0473 | E122: 2.0906 | F122: 0.009481818613 | G122: -0.02114980706
A123: 2010-12-20 | B123: 2.1093 | C123: 2.146 | D123: 2.084 | E123: 2.1133 | F123: 0.005047169811 | G123: -0.01405950096
A124: 2010-12-21 | B124: 2.12 | C124: 2.1793 | D124: 2.114 | E124: 2.1506 | F124: 0.01395348837 | G124: -0.01731315043
A125: 2010-12-22 | B125: 2.15 | C125: 2.1906 | D125: 2.1133 | E125: 2.1753 | F125: -0.03166986564 | G125: -0.02933800218
A126: 2010-12-23 | B126: 2.084 | C126: 2.1653 | D126: 1.9946 | E126: 2.006 | F126: -0.1156316916 | G126: -0.005715431665
A127: 2010-12-27 | B127: 1.868 | C127: 1.9053 | D127: 1.6706 | E127: 1.7032 | F127: -0.08396680787 | G127: -0.01951394708
A128: 2010-12-28 | B128: 1.7233 | C128: 1.7833 | D128: 1.6667 | E128: 1.7606 | F128: 0.04367369589 | G128: -0.05633887322
A129: 2010-12-29 | B129: 1.802 | C129: 1.8673 | D129: 1.7666 | E129: 1.8486 | F129: 0.02415249648 | G129: -0.04641684592
A130: 2010-12-30 | B130: 1.8466 | C130: 1.86 | D130: 1.7586 | E130: 1.7666 | F130: =(B131-B130)/B131 -> -0.04251115 | G130: =(D130-E130)/D130 -> -0.004549073126
A131: 2010-12-31 | B131: 1.7713 | C131: 1.8166 | D131: 1.7666 | E131: 1.7753 | F131: 0.01005979992 | G131: -0.00492471414
A132: 2011-01-03 | B132: 1.7893 | C132: 1.8 | D132: 1.7266 | E132: 1.7746 | F132: -0.00675181455 | G132: -0.02780030117
A133: 2011-01-04 | B133: 1.7773 | C133: 1.7966 | D133: 1.7346 | E133: 1.778 | F133: -0.006797711437 | G133: -0.02502017756
A134: 2011-01-05 | B134: 1.7653 | C134: 1.7933 | D134: 1.746 | E134: 1.7886 | F134: 0.01302694845 | G134: -0.02439862543
A135: 2011-01-06 | B135: 1.7886 | C135: 1.8666 | D135: 1.7873 | E135: 1.8586 | F135: 0.04178720669 | G135: -0.03989257539
A136: 2011-01-07 | B136: 1.8666 | C136: 1.9053 | D136: 1.86 | E136: 1.8826 | F136: 0.00607028754 | G136: -0.01215053763
A137: 2011-01-10 | B137: 1.878 | C137: 1.912 | D137: 1.87 | E137: 1.8966 | F137: 0.01469045121 | G137: -0.01422459893
A138: 2011-01-11 | B138: 1.906 | C138: 1.914 | D138: 1.7946 | E138: 1.7973 | F138: -0.05853604354 | G138: -0.001504513541
A139: 2011-01-12 | B139: 1.8006 | C139: 1.8266 | D139: 1.768 | E139: 1.7973 | F139: -0.001836087465 | G139: -0.01657239819
A140: 2011-01-13 | B140: 1.7973 | C140: 1.798 | D140: 1.744 | E140: 1.748 | F140: -0.03097573567 | G140: -0.002293577982
A141: 2011-01-14 | B141: 1.7433 | C141: 1.772 | D141: 1.7073 | E141: 1.7166 | F141: -0.02631578947 | G141: -0.005447197329
A142: 2011-01-18 | B142: 1.6986 | C142: 1.7093 | D142: 1.65 | E142: 1.7093 | F142: -0.008310578179 | G142: -0.03593939394
A143: 2011-01-19 | B143: 1.6846 | C143: 1.698 | D143: 1.5833 | E143: 1.602 | F143: -0.05156054931 | G143: -0.01181077496
A144: 2011-01-20 | B144: 1.602 | C144: 1.63 | D144: 1.4913 | E144: 1.508 | F144: -0.03938233958 | G144: -0.01119828338
A145: 2011-01-21 | B145: 1.5413 | C145: 1.5727 | D145: 1.514 | E145: 1.536 | F145: 0.01746669217 | G145: -0.01453104359
A146: 2011-01-24 | B146: 1.5687 | C146: 1.654 | D146: 1.5487 | E146: 1.6327 | F146: 0.04539645835 | G146: -0.05423903919
A147: 2011-01-25 | B147: 1.6433 | C147: 1.6593 | D147: 1.6013 | E147: 1.6453 | F147: 0.002428215868 | G147: -0.02747767439
A148: 2011-01-26 | B148: 1.6473 | C148: 1.6587 | D148: 1.6067 | E148: 1.65 | F148: 0.001212635664 | G148: -0.02694964835
A149: 2011-01-27 | B149: 1.6493 | C149: 1.672 | D149: 1.6353 | E149: 1.6613 | F149: 0.005667088684 | G149: -0.01589922338
A150: 2011-01-28 | B150: 1.6587 | C150: 1.6587 | D150: 1.5833 | E150: 1.6007 | F150: -0.03455373293 | G150: -0.01098970505
A151: 2011-01-31 | B151: 1.6033 | C151: 1.608 | D151: 1.5667 | E151: 1.6067 | F151: 0.01073610168 | G151: -0.02553137167
A152: 2011-02-01 | B152: 1.6207 | C152: 1.6487 | D152: 1.5693 | E152: 1.594 | F152: -0.006208480785 | G152: -0.01573950169
A153: 2011-02-02 | B153: 1.6107 | C153: 1.612 | D153: 1.5779 | E153: 1.596 | F153: -0.01429471033 | G153: -0.01147094239
A154: 2011-02-03 | B154: 1.588 | C154: 1.5933 | D154: 1.5433 | E154: 1.5753 | F154: -0.01618992769 | G154: -0.02073478909
A155: 2011-02-04 | B155: 1.5627 | C155: 1.578 | D155: 1.548 | E155: 1.564 | F155: -0.007738440704 | G155: -0.01033591731
A156: 2011-02-07 | B156: 1.5507 | C156: 1.5507 | D156: 1.5253 | E156: 1.538 | F156: 0.02182552198 | G156: -0.008326230905
A157: 2011-02-08 | B157: 1.5853 | C157: 1.6833 | D157: 1.5333 | E157: 1.6327 | F157: 0.01454590663 | G157: -0.06482749625
A158: 2011-02-09 | B158: 1.6087 | C158: 1.612 | D158: 1.5193 | E158: 1.5473 | F158: -0.0374024634 | G158: -0.01842953992
A159: 2011-02-10 | B159: 1.5507 | C159: 1.576 | D159: 1.5207 | E159: 1.5477 | F159: -0.0004516129032 | G159: -0.01775498126
A160: 2011-02-11 | B160: 1.55 | C160: 1.5833 | D160: 1.5293 | E160: 1.55 | F160: 0.01649746193 | G160: -0.01353560452
A161: 2011-02-14 | B161: 1.576 | C161: 1.6093 | D161: 1.5367 | E161: 1.5387 | F161: -0.02737940026 | G161: -0.001301490206
A162: 2011-02-15 | B162: 1.534 | C162: 1.5447 | D162: 1.504 | E162: 1.5227 | F162: 0.003896103896 | G162: -0.01243351064
A163: 2011-02-16 | B163: 1.54 | C163: 1.6647 | D163: 1.538 | E163: 1.6487 | F163: 0.06211936663 | G163: -0.07197659298
A164: 2011-02-17 | B164: 1.642 | C164: 1.6993 | D164: 1.57 | E164: 1.5733 | F164: -0.05574487237 | G164: -0.002101910828
A165: 2011-02-18 | B165: 1.5553 | C165: 1.566 | D165: 1.5307 | E165: 1.5453 | F165: -0.01966826198 | G165: -0.009538119814
A166: 2011-02-22 | B166: 1.5253 | C166: 1.5333 | D166: 1.452 | E166: 1.458 | F166: -0.03151416785 | G166: -0.004132231405
A167: 2011-02-23 | B167: 1.4787 | C167: 1.5 | D167: 1.4073 | E167: 1.4553 | F167: -0.01838842975 | G167: -0.03410786613
A168: 2011-02-24 | B168: 1.452 | C168: 1.5053 | D168: 1.4333 | E168: 1.502 | F168: 0.04517656342 | G168: -0.04793134724
A169: 2011-02-25 | B169: 1.5207 | C169: 1.59 | D169: 1.5127 | E169: 1.574 | F169: 0.03917356416 | G169: -0.04052356713
A170: 2011-02-28 | B170: 1.5827 | C170: 1.6067 | D170: 1.5667 | E170: 1.5927 | F170: 0.01284849997 | G170: -0.01659539159
A171: 2011-03-01 | B171: 1.6033 | C171: 1.6213 | D171: 1.58 | E171: 1.596 | F171: -0.009634760705 | G171: -0.01012658228
A172: 2011-03-02 | B172: 1.588 | C172: 1.6187 | D172: 1.5817 | E172: 1.6013 | F172: 0.02696078431 | G172: -0.01239173042
A173: 2011-03-03 | B173: 1.632 | C173: 1.6527 | D173: 1.604 | E173: 1.624 | F173: 0 | G173: -0.01246882793
A174: 2011-03-04 | B174: 1.632 | C174: 1.666 | D174: 1.5853 | E174: 1.6633 | F174: 0.01805054152 | G174: -0.04920204378
A175: 2011-03-07 | B175: 1.662 | C175: 1.6933 | D175: 1.6467 | E175: 1.6627 | F175: -0.01341463415 | G175: -0.009716402502
A176: 2011-03-08 | B176: 1.64 | C176: 1.664 | D176: 1.6 | E176: 1.644 | F176: 0.002433090024 | G176: -0.0275
A177: 2011-03-09 | B177: 1.644 | C177: 1.666 | D177: 1.618 | E177: 1.648 | F177: -0.009022279507 | G177: -0.01854140915
A178: 2011-03-10 | B178: 1.6293 | C178: 1.6327 | D178: 1.582 | E178: 1.6007 | F178: -0.02471698113 | G178: -0.0118204804
A179: 2011-03-11 | B179: 1.59 | C179: 1.6167 | D179: 1.5687 | E179: 1.6047 | F179: -0.001259445844 | G179: -0.02294893861
A180: 2011-03-14 | B180: 1.588 | C180: 1.6 | D180: 1.5467 | E180: 1.55 | F180: -0.07297297297 | G180: -0.002133574707
A181: 2011-03-15 | B181: 1.48 | C181: 1.5307 | D181: 1.4533 | E181: 1.53 | F181: 0.02887139108 | G181: -0.05277643983
A182: 2011-03-16 | B182: 1.524 | C182: 1.55 | D182: 1.5127 | E182: 1.5213 | F182: 0.01632995546 | G182: -0.005685198651
A183: 2011-03-17 | B183: 1.5493 | C183: 1.562 | D183: 1.5093 | E183: 1.5207 | F183: -0.00213454075 | G183: -0.007553170344
A184: 2011-03-18 | B184: 1.546 | C184: 1.546 | D184: 1.5007 | E184: 1.5307 | F184: -0.006051929459 | G184: -0.01999067102
A185: 2011-03-21 | B185: 1.5367 | C185: 1.5367 | D185: 1.5027 | E185: 1.5153 | F185: -0.01412261598 | G185: -0.008384907167
A186: 2011-03-22 | B186: 1.5153 | C186: 1.524 | D186: 1.4667 | E186: 1.4793 | F186: -0.02801899593 | G186: -0.008590713847
A187: 2011-03-23 | B187: 1.474 | C187: 1.4847 | D187: 1.4513 | E187: 1.4807 | F187: 0.00135501355 | G187: -0.02025769999
A188: 2011-03-24 | B188: 1.476 | C188: 1.492 | D188: 1.4653 | E188: 1.4887 | F188: 0.01290710894 | G188: -0.01596942606
A189: 2011-03-25 | B189: 1.4953 | C189: 1.5333 | D189: 1.4933 | E189: 1.5167 | F189: 0.01189453512 | G189: -0.01566999263
A190: 2011-03-28 | B190: 1.5133 | C190: 1.5692 | D190: 1.5033 | E190: 1.55 | F190: 0.02575162557 | G190: -0.03106499035
A191: 2011-03-29 | B191: 1.5533 | C191: 1.6 | D191: 1.5473 | E191: 1.5947 | F191: 0.03359671499 | G191: -0.03063400763
A192: 2011-03-30 | B192: 1.6073 | C192: 1.6327 | D192: 1.534 | E192: 1.5807 | F192: 0.09192090395 | G192: -0.03044328553
A193: 2011-03-31 | B193: 1.77 | C193: 1.914 | D193: 1.7666 | E193: 1.85 | F193: 0.03278688525 | G193: -0.04720932865
A194: 2011-04-01 | B194: 1.83 | C194: 1.8786 | D194: 1.7713 | E194: 1.7773 | F194: =(B195-B194)/B195 -> -0.0231465951 | G194: =(D194-E194)/D194 -> -0.00338734263
A195: 2011-04-04 | B195: 1.7886 | C195: 1.8 | D195: 1.682 | E195: 1.722 | F195: -0.03590872234 | G195: -0.02378121284
A196: 2011-04-05 | B196: 1.7266 | C196: 1.8 | D196: 1.7126 | E196: 1.78 | F196: 0.04040460179 | G196: -0.03935536611
A197: 2011-04-06 | B197: 1.7993 | C197: 1.8006 | D197: 1.72 | E197: 1.766 | F197: -0.005195530726 | G197: -0.02674418605
A198: 2011-04-07 | B198: 1.79 | C198: 1.8626 | D198: 1.7633 | E198: 1.816 | F198: 0.02643315566 | G198: -0.02988714342
A199: 2011-04-08 | B199: 1.8386 | C199: 1.84 | D199: 1.7573 | E199: 1.766 | F199: -0.04193584948 | G199: -0.00495077676
A200: 2011-04-11 | B200: 1.7646 | C200: 1.7686 | D200: 1.668 | E200: 1.6846 | F200: -0.05538277512 | G200: -0.009952038369
... 3116 more rows

Sheet True Score
A1: Trade | B1: Win $ | C1: Loss $ | D1: Win | E1: Loss | H1: w | I1: Win % | J1: =G186 -> 0.5524861878
A2: 1 | B2: 2 | D2: 1 | E2: 0 | H2: 1-w | I2: Loss % | J2: =H186 -> 0.4475138122
A3: 2 | C3: 4.01 | D3: 0 | E3: 1 | I3: Win $ | J3: =B186 -> 1611.61
A4: 3 | B4: 5.01 | D4: 1 | E4: 0 | I4: Loss $ | J4: =C186 -> 1065.015 | L4: Low Risk | M4: Medium | N4: High
A5: 4 | C5: 6.83 | D5: 0 | E5: 1 | I5: r | J5: =J3/J4 -> 1.513227513 | L5: 1/8 | M5: 1/6 | N5: 1/4
A6: 5 | C6: 3.32 | D6: 0 | E6: 1 | I6: Kelly % | J6: =J1-(J2/J5) -> 0.2567515358 | K6: Stake | L6: =$J$6*1/8 -> 0.03209394197 | M6: =$J$6*1/6 -> 0.04279192263 | N6: =$J$6*1/4 -> 0.06418788394
A7: 6 | B7: 5.94 | D7: 1 | E7: 0
A8: 7 | C8: 19.85 | D8: 0 | E8: 1
A9: 8 | B9: 13.96 | D9: 1 | E9: 0
A10: 9 | B10: 10.11 | D10: 1 | E10: 0
A11: 10 | C11: 14.25 | D11: 0 | E11: 1
A12: 11 | B12: 2.61 | D12: 1 | E12: 0 | I12: Win % | J12: =(1/J16) -> 0.3000003 | L12: Win % | M12: =(1/M16) -> 0.25
A13: 12 | C13: 14.33 | D13: 0 | E13: 1 | I13: Loss % | J13: =(1-J12) -> 0.6999997 | L13: Loss % | M13: =(1-M12) -> 0.75
A14: 13 | B14: 7.06 | D14: 1 | E14: 0 | I14: Win $ | J14: 150000 | L14: Win $ | M14: 166500
A15: 14 | C15: 20.01 | D15: 0 | E15: 1 | I15: Loss $ | J15: 50000 | L15: Loss $ | M15: 50000
A16: 15 | C16: 6.48 | D16: 0 | E16: 1 | I16: r | J16: 3.33333 | L16: r | M16: 4
A17: 16 | B17: 17.09 | D17: 1 | E17: 0 | I17: Kelly % | J17: =J12-(J13/J16) -> 0.09000018 | L17: Kelly % | M17: =M12-(M13/M16) -> 0.0625
A18: 17 | C18: 3.65 | D18: 0 | E18: 1
A19: 18 | C19: 3.84 | D19: 0 | E19: 1
A20: 19 | C20: 15.98 | D20: 0 | E20: 1
A21: 20 | B21: 2.86 | D21: 1 | E21: 0
A22: 21 | C22: 8.8 | D22: 0 | E22: 1
A23: 22 | C23: 13.43 | D23: 0 | E23: 1
A24: 23 | C24: 4.69 | D24: 0 | E24: 1
A25: 24 | B25: 103.08 | D25: 1 | E25: 0
A26: 25 | B26: 13.71 | D26: 1 | E26: 0
A27: 26 | C27: 3.38 | D27: 0 | E27: 1
A28: 27 | B28: 14.69 | D28: 1 | E28: 0
A29: 28 | C29: 2.5 | D29: 0 | E29: 1
A30: 29 | C30: 3.48 | D30: 0 | E30: 1
A31: 30 | C31: 4.7 | D31: 0 | E31: 1
A32: 31 | B32: 3.27 | D32: 1 | E32: 0
A33: 32 | B33: 71.55 | D33: 1 | E33: 0
A34: 33 | B34: 19.58 | D34: 1 | E34: 0
A35: 34 | C35: 12.68 | D35: 0 | E35: 1
A36: 35 | C36: 24.2 | D36: 0 | E36: 1
A37: 36 | B37: 0.25 | D37: 1 | E37: 0
A38: 37 | C38: 2.42 | D38: 0 | E38: 1
A39: 38 | B39: 19.33 | D39: 1 | E39: 0
A40: 39 | C40: 10.76 | D40: 0 | E40: 1
A41: 40 | B41: 65.67 | D41: 1 | E41: 0
A42: 41 | C42: 15.03 | D42: 0 | E42: 1
A43: 42 | B43: 117.57 | D43: 1 | E43: 0
A44: 43 | C44: 12.29 | D44: 0 | E44: 1
A45: 44 | B45: 2.87 | D45: 1 | E45: 0
A46: 45 | C46: 4.16 | D46: 0 | E46: 1
A47: 46 | C47: 42.06 | D47: 0 | E47: 1
A48: 47 | C48: 0.36 | D48: 0 | E48: 1
A49: 48 | B49: 10.11 | D49: 1 | E49: 0
A50: 49 | C50: 35.34 | D50: 0 | E50: 1
A51: 50 | B51: 92.91 | D51: 1 | E51: 0
A52: 51 | C52: 31.94 | D52: 0 | E52: 1
A53: 52 | C53: 3.13 | D53: 0 | E53: 1
A54: 53 | C54: 15.35 | D54: 0 | E54: 1
A55: 54 | B55: 10.32 | D55: 1 | E55: 0
A56: 55 | C56: 10.61 | D56: 0 | E56: 1
A57: 56 | C57: 36.35 | D57: 0 | E57: 1
A58: 57 | B58: 7.83 | D58: 1 | E58: 0
A59: 58 | C59: 15.89 | D59: 0 | E59: 1
A60: 59 | C60: 6.69 | D60: 0 | E60: 1
A61: 60 | B61: 2.19 | D61: 1 | E61: 0
A62: 61 | B62: 6.39 | D62: 1 | E62: 0
A63: 62 | B63: 1.8 | D63: 1 | E63: 0
A64: 63 | B64: 4.56 | D64: 1 | E64: 0
A65: 64 | C65: 16.51 | D65: 0 | E65: 1
A66: 65 | B66: 21.21 | D66: 1 | E66: 0
A67: 66 | C67: 10.91 | D67: 0 | E67: 1
A68: 67 | C68: 12.77 | D68: 0 | E68: 1
A69: 68 | B69: 8.72 | D69: 1 | E69: 0
A70: 69 | B70: 2.13 | D70: 1 | E70: 0
A71: 70 | C71: 1.685 | D71: 0 | E71: 1
A72: 71 | C72: 7.61 | D72: 0 | E72: 1
A73: 72 | C73: 45.26 | D73: 0 | E73: 1
A74: 73 | B74: 16.36 | D74: 1 | E74: 0
A75: 74 | B75: 11.57 | D75: 1 | E75: 0
A76: 75 | B76: 3.63 | D76: 1 | E76: 0
A77: 76 | B77: 3.45 | D77: 1 | E77: 0
A78: 77 | B78: 4.34 | D78: 1 | E78: 0
A79: 78 | B79: 162.01 | D79: 1 | E79: 0
A80: 79 | C80: 2.79 | D80: 0 | E80: 1
A81: 80 | B81: 1.83 | D81: 1 | E81: 0
A82: 81 | C82: 7.86 | D82: 0 | E82: 1
A83: 82 | C83: 9.96 | D83: 0 | E83: 1
A84: 83 | C84: 42.52 | D84: 0 | E84: 1
A85: 84 | C85: 14.95 | D85: 0 | E85: 1
A86: 85 | C86: 19.21 | D86: 0 | E86: 1
A87: 86 | C87: 6.2 | D87: 1 | E87: 1
A88: 87 | C88: 5.08 | D88: 0 | E88: 1
A89: 88 | C89: 16.61 | D89: 0 | E89: 1
A90: 89 | B90: 5.68 | D90: 1 | E90: 0
A91: 90 | B91: 4.79 | D91: 1 | E91: 0
A92: 91 | B92: 4.14 | D92: 1 | E92: 0
A93: 92 | C93: 50.15 | D93: 0 | E93: 1
A94: 93 | C94: 6.81 | D94: 0 | E94: 1
A95: 94 | B95: 4.18 | D95: 1 | E95: 0
A96: 95 | C96: 16.17 | D96: 0 | E96: 1
A97: 96 | C97: 3.66 | D97: 0 | E97: 1
A98: 97 | C98: 19.72 | D98: 0 | E98: 1
A99: 98 | B99: 1.7 | D99: 1 | E99: 0
A100: 99 | C100: 6.47 | D100: 0 | E100: 1
A101: 100 | C101: 0.56 | D101: 0 | E101: 1
A102: 101 | B102: 10.3 | D102: 1 | E102: 0
A103: 102 | B103: 3.28 | D103: 1 | E103: 0
A104: 103 | B104: 37.94 | D104: 1 | E104: 0
A105: 104 | C105: 0.92 | D105: 0 | E105: 1
A106: 105 | C106: 4.94 | D106: 0 | E106: 1
A107: 106 | C107: 51.43 | D107: 0 | E107: 1
A108: 107 | B108: 51.39 | D108: 1 | E108: 0
A109: 108 | B109: 7.32 | D109: 1 | E109: 0
A110: 109 | B110: 0.3 | D110: 1 | E110: 0
A111: 110 | B111: 5 | D111: 1 | E111: 0
A112: 111 | B112: 13.86 | D112: 1 | E112: 0
A113: 112 | C113: 10.33 | D113: 0 | E113: 1
A114: 113 | B114: 14.98 | D114: 1 | E114: 0
A115: 114 | B115: 11.04 | D115: 1 | E115: 0
A116: 115 | B116: 0.97 | D116: 1 | E116: 0
A117: 116 | C117: 10.78 | D117: 0 | E117: 1
A118: 117 | B118: 6.06 | D118: 1 | E118: 0
A119: 118 | C119: 2.45 | D119: 0 | E119: 1
A120: 119 | C120: 27.96 | D120: 0 | E120: 1
A121: 120 | B121: 13.53 | D121: 1 | E121: 0
A122: 121 | B122: 0 | D122: 1 | E122: 0
A123: 122 | B123: 61.24 | D123: 1 | E123: 0
A124: 123 | C124: 17.19 | D124: 0 | E124: 1
A125: 124 | C125: 13.46 | D125: 0 | E125: 1
A126: 125 | C126: 16.75 | D126: 0 | E126: 1
A127: 126 | C127: 19.56 | D127: 0 | E127: 1
A128: 127 | B128: 7.13 | D128: 1 | E128: 0
A129: 128 | B129: 13.03 | D129: 1 | E129: 0
A130: 129 | C130: 7.7 | D130: 0 | E130: 1
A131: 130 | C131: 7.44 | D131: 0 | E131: 1
A132: 131 | C132: 11.87 | D132: 0 | E132: 1
A133: 132 | B133: 85.4 | D133: 1 | E133: 0
A134: 133 | C134: 0.62 | D134: 0 | E134: 1
A135: 134 | B135: 9.5 | D135: 1 | E135: 0
A136: 135 | B136: 11.79 | D136: 1 | E136: 0
A137: 136 | B137: 5.01 | D137: 1 | E137: 0
A138: 137 | C138: 11.07 | D138: 0 | E138: 1
A139: 138 | B139: 3.32 | D139: 1 | E139: 0
A140: 139 | C140: 5.89 | D140: 0 | E140: 1
A141: 140 | C141: 8.36 | D141: 0 | E141: 1
A142: 141 | C142: 18.73 | D142: 0 | E142: 1
A143: 142 | B143: 3.25 | D143: 1 | E143: 0
A144: 143 | C144: 4.32 | D144: 0 | E144: 1
A145: 144 | B145: 3.19 | D145: 1 | E145: 0
A146: 145 | C146: 5.63 | D146: 0 | E146: 1
A147: 146 | C147: 24.09 | D147: 0 | E147: 1
A148: 147 | B148: 35.14 | D148: 1 | E148: 0
A149: 148 | C149: 17.11 | D149: 0 | E149: 1
A150: 149 | C150: 0.57 | D150: 0 | E150: 1
A151: 150 | B151: 0.53 | D151: 1 | E151: 0
A152: 151 | C152: 9.59 | D152: 0 | E152: 1
A153: 152 | B153: 31.21 | D153: 1 | E153: 0
A154: 153 | B154: 28.96 | D154: 1 | E154: 0
A155: 154 | B155: 26.01 | D155: 1 | E155: 0
A156: 155 | B156: 20.97 | D156: 1 | E156: 0
A157: 156 | B157: 18.41 | D157: 1 | E157: 0
A158: 157 | B158: 16.63 | D158: 1 | E158: 0
A159: 158 | B159: 15.16 | D159: 1 | E159: 0
A160: 159 | B160: 13.63 | D160: 1 | E160: 0
A161: 160 | B161: 13.03 | D161: 1 | E161: 0
A162: 161 | B162: 11.76 | D162: 1 | E162: 0
A163: 162 | B163: 9.45 | D163: 1 | E163: 0
A164: 163 | B164: 9.33 | D164: 1 | E164: 0
A165: 164 | B165: 8.42 | D165: 1 | E165: 0
A166: 165 | B166: 8.03 | D166: 1 | E166: 0
A167: 166 | B167: 7.26 | D167: 1 | E167: 0
A168: 167 | B168: 4.01 | D168: 1 | E168: 0
A169: 168 | B169: 2.76 | D169: 1 | E169: 0
A170: 169 | B170: 2.61 | D170: 1 | E170: 0
A171: 170 | B171: 1.89 | D171: 1 | E171: 0
A172: 171 | B172: 0.88 | D172: 1 | E172: 0
A173: 172 | B173: 1.09 | D173: 1 | E173: 0
A174: 173 | B174: 2.52 | D174: 1 | E174: 0
A175: 174 | B175: 3.21 | D175: 1 | E175: 0 | L175: ctrl
A176: 175 | B176: 3 | D176: 1 | E176: 0 | L176: ~
A177: 176 | B177: 4.46 | D177: 1 | E177: 0
A178: 177 | B178: 6.39 | D178: 1 | E178: 0
A179: 178 | B179: 7.49 | D179: 1 | E179: 0
A180: 179 | B180: 10.87 | D180: 1 | E180: 0
A181: 180 | B181: 5.47 | D181: 1 | E181: 0
A182: 181 | B182: 12.14 | D182: 1 | E182: 0
B185: $ | C185: $ | G185: W | H185: (1-W)
B186: =SUM(B2:B182) -> 1611.61 | C186: =SUM(C2:C182) -> 1065.015 | D186: =SUM(D2:D182) -> 100 | E186: =SUM(E2:E182) -> 82 | G186: =D186/A182 -> 0.5524861878 | H186: =(1-G186) -> 0.4475138122

Sheet Daily ATR (hidden)
A1: Ticker | B1: =_xlfn._xlws.SORT(_xlfn.STOCKHISTORY(A2,TODAY()-576,TODAY(),0,1,0,3,4),1,-1) -> Date | C1: High | D1: Low | E1: High - Low | F1: Daily ATR
A2: =ATR_Index!A2 -> tsla | B2: 45154 | C2: 233.97 | D2: 225.38 | E2: =C2-D2 -> 8.59 | F2: =(SUM(E2:E3)/2)/C3 -> 0.03426195426 | I2: 1 WEEK | J2: 1 MONTHS | K2: 3 MONTHS | L2: 1 YEAR | M2: 2 YEARS
B3: 45153 | C3: 240.5 | D3: 232.61 | E3: 7.89 | F3: 0.0307487742 | H3: Days | I3: 6 | J3: 24 | K3: 72 | L3: 288 | M3: 576 | N3: Avg Daily ATR | O3: =AVERAGE(I4:M4) -> 0.02878551907
B4: 45152 | C4: 240.66 | D4: 233.75 | E4: 6.91 | F4: 0.02600598876 | I4: =SUM(F2:F7)/6 -> 0.03098331685 | J4: =SUM(F2:F25)/24 -> 0.0351889537 | K4: =SUM(F2:F73)/72 -> 0.0367827507 | L4: =SUM(F2:F289)/288 -> 0.0273150494 | M4: =SUM(F2:F577)/576 -> 0.0136575247
B5: 45149 | C5: 243.79 | D5: 238.02 | E5: 5.77 | F5: 0.02893169182
B6: 45148 | C6: 251.8 | D6: 243 | E6: 8.8 | F6: 0.03584229391
B7: 45147 | C7: 251.1 | D7: 241.9 | E7: 9.2 | F7: 0.03010919815 | N7: 5
B8: 45146 | C8: 250.92 | D8: 245.01 | E8: 5.91 | F8: 0.03311852383
B9: 45145 | C9: 253.6511 | D9: 242.76 | E9: 10.8911 | F9: 0.0425862069
B10: 45142 | C10: 264.77 | D10: 253.11 | E10: 11.66 | F10: 0.03867710853
B11: 45141 | C11: 260.49 | D11: 252 | E11: 8.49 | F11: 0.03375462392
B12: 45140 | C12: 259.52 | D12: 250.49 | E12: 9.03 | F12: 0.02861485345
B13: 45139 | C13: 266.47 | D13: 260.25 | E13: 6.22 | F13: 0.02140627323
B14: 45138 | C14: 269.08 | D14: 263.78 | E14: 5.3 | F14: 0.02678914874
B15: 45135 | C15: 267.25 | D15: 258.2312 | E15: 9.0188 | F15: 0.04244937391
B16: 45134 | C16: 269.13 | D16: 255.3 | E16: 13.83 | F16: 0.03753171168
B17: 45133 | C17: 268.04 | D17: 261.75 | E17: 6.29 | F17: 0.02599853426
B18: 45132 | C18: 272.9 | D18: 265 | E18: 7.9 | F18: 0.04378358347
B19: 45131 | C19: 269.85 | D19: 254.12 | E19: 15.73 | F19: 0.05210820896
B20: 45128 | C20: 268 | D20: 255.8 | E20: 12.2 | F20: 0.05682910334
B21: 45127 | C21: 280.93 | D21: 261.2 | E21: 19.73 | F21: 0.04928313676
B22: 45126 | C22: 299.29 | D22: 289.5201 | E22: 9.7699 | F22: 0.03220873129
B23: 45125 | C23: 295.26 | D23: 286.01 | E23: 9.25 | F23: 0.03064367108
B24: 45124 | C24: 292.23 | D24: 283.57 | E24: 8.66 | F24: 0.03093235191
B25: 45121 | C25: 285.3 | D25: 276.31 | E25: 8.99 | F25: 0.03191984255
B26: 45120 | C26: 279.45 | D26: 270.6 | E26: 8.85 | F26: 0.02515188775
B27: 45119 | C27: 276.52 | D27: 271.46 | E27: 5.06 | F27: 0.0177002584
B28: 45118 | C28: 270.9 | D28: 266.37 | E28: 4.53 | F28: 0.03053833958
B29: 45117 | C29: 277.52 | D29: 265.1 | E29: 12.42 | F29: 0.03460004274
B30: 45114 | C30: 280.78 | D30: 273.77 | E30: 7.01 | F30: 0.02518126942
B31: 45113 | C31: 279.97 | D31: 272.88 | E31: 7.09 | F31: 0.02349832658
B32: 45112 | C32: 283.85 | D32: 277.6 | E32: 6.25 | F32: 0.02707124011
B33: 45110 | C33: 284.25 | D33: 275.11 | E33: 9.14 | F33: 0.02590281717
B34: 45107 | C34: 264.45 | D34: 259.89 | E34: 4.56 | F34: =(SUM(E34:E35)/2)/C35 -> 0.02241696709
B35: 45106 | C35: 260.74 | D35: 253.61 | E35: 7.13 | F35: 0.03486224411
B36: 45105 | C36: 259.88 | D36: 248.89 | E36: 10.99 | F36: 0.04099586285
B37: 45104 | C37: 250.3899 | D37: 240.85 | E37: 9.5399 | F37: 0.05265684871
B38: 45103 | C38: 258.37 | D38: 240.7 | E38: 17.67 | F38: 0.05204800914
B39: 45100 | C39: 262.45 | D39: 252.8 | E39: 9.65 | F39: 0.04981132075
B40: 45099 | C40: 265 | D40: 248.25 | E40: 16.75 | F40: 0.06491209069
B41: 45098 | C41: 276.99 | D41: 257.78 | E41: 19.21 | F41: 0.05976342129
B42: 45097 | C42: 274.75 | D42: 261.12 | E42: 13.63 | F42: 0.03797591047
B43: 45093 | C43: 263.6 | D43: 257.2091 | E43: 6.3909 | F43: 0.03485402587
B44: 45092 | C44: 258.95 | D44: 247.29 | E44: 11.66 | F44: 0.04344917231
B45: 45091 | C45: 261.57 | D45: 250.5 | E45: 11.07 | F45: 0.03737292052
B46: 45090 | C46: 259.68 | D46: 251.34 | E46: 8.34 | F46: 0.02932621429
B47: 45089 | C47: 250.97 | D47: 244.59 | E47: 6.38 | F47: 0.0332382537
B48: 45086 | C48: 252.42 | D48: 242.02 | E48: 10.4 | F48: 0.04808060196
B49: 45085 | C49: 235.23 | D49: 223.01 | E49: 12.22 | F49: 0.04299621886
B50: 45084 | C50: 230.8296 | D50: 223.2 | E50: 7.6296 | F50: 0.03832544725
B51: 45083 | C51: 221.91 | D51: 212.53 | E51: 9.38 | F51: 0.03649057797
B52: 45082 | C52: 221.29 | D52: 214.52 | E52: 6.77 | F52: 0.03283774453
B53: 45079 | C53: 217.25 | D53: 209.752 | E53: 7.498 | F53: 0.0427264061
B54: 45078 | C54: 209.8 | D54: 199.37 | E54: 10.43 | F54: 0.04721745526
B55: 45077 | C55: 203.95 | D55: 195.12 | E55: 8.83 | F55: 0.03858568075
B56: 45076 | C56: 204.48 | D56: 197.53 | E56: 6.95 | F56: 0.0529204431
B57: 45072 | C57: 198.6 | D57: 184.53 | E57: 14.07 | F57: 0.05426169825
B58: 45071 | C58: 186.78 | D58: 180.58 | E58: 6.2 | F58: 0.03311258278
B59: 45070 | C59: 184.22 | D59: 178.22 | E59: 6 | F59: 0.03549958541
B60: 45069 | C60: 192.96 | D60: 185.26 | E60: 7.7 | F60: 0.0446598352
B61: 45068 | C61: 189.32 | D61: 180.11 | E61: 9.21 | F61: 0.04080791426
B62: 45065 | C62: 181.95 | D62: 176.31 | E62: 5.64 | F62: 0.0289449904
B63: 45064 | C63: 177.06 | D63: 172.45 | E63: 4.61 | F63: 0.03416905444
B64: 45063 | C64: 174.5 | D64: 167.185 | E64: 7.315 | F64: 0.03682019179
B65: 45062 | C65: 169.5184 | D65: 164.35 | E65: 5.1684 | F65: 0.03056815504
B66: 45061 | C66: 169.76 | D66: 164.5499 | E66: =C66-D66 -> 5.2101 | F66: 0.04329715864
B67: 45058 | C67: 177.38 | D67: 167.23 | E67: 10.15 | F67: 0.04876994872
B68: 45057 | C68: 173.57 | D68: 166.79 | E68: 6.78 | F68: 0.04164994554
B69: 45056 | C69: 174.43 | D69: 166.68 | E69: 7.75 | F69: 0.03241667648
B70: 45055 | C70: 169.82 | D70: 166.56 | E70: 3.26 | F70: 0.02264096663
B71: 45054 | C71: 173.8 | D71: 169.19 | E71: 4.61 | F71: 0.03480855718
B72: 45051 | C72: 170.7899 | D72: 163.51 | E72: 7.2799 | F72: 0.03246363915
B73: 45050 | C73: 162.95 | D73: 159.65 | E73: 3.3 | F73: 0.02542424242
B74: 45049 | C74: 165 | D74: 159.91 | E74: 5.09 | F74: 0.03519850142
B75: 45048 | C75: 165.49 | D75: 158.93 | E75: 6.56 | F75: 0.03371509064
B76: 45047 | C76: 163.28 | D76: 158.83 | E76: 4.45 | F76: 0.03675757576
B77: 45044 | C77: 165 | D77: 157.32 | E77: 7.68 | F77: 0.04919616152
B78: 45043 | C78: 160.48 | D78: 152.37 | E78: 8.11 | F78: 0.04867118939
B79: 45042 | C79: 160.67 | D79: 153.14 | E79: 7.53 | F79: 0.03746864868
B80: 45041 | C80: 163.47 | D80: 158.75 | E80: 4.72 | F80: 0.03549652883
B81: 45040 | C81: 165.65 | D81: 158.61 | E81: 7.04 | F81: 0.03529879518
B82: 45037 | C82: 166 | D82: 161.3208 | E82: 4.6792 | F82: 0.04071655863
B83: 45036 | C83: 169.7 | D83: 160.56 | E83: 9.14 | F83: 0.04084468665
B84: 45035 | C84: 183.5 | D84: 177.65 | E84: 5.85 | F84: 0.02653977303
B85: 45034 | C85: 187.69 | D85: 183.5775 | E85: 4.1125 | F85: 0.02929121198
B86: 45033 | C86: 189.69 | D86: 182.69 | E86: 7 | F86: 0.03025016105
B87: 45030 | C87: 186.28 | D87: 182.01 | E87: 4.27 | F87: 0.0263538874
B88: 45029 | C88: 186.5 | D88: 180.94 | E88: 5.56 | F88: 0.04393515972
B89: 45028 | C89: 191.5846 | D89: 180.31 | E89: 11.2746 | F89: 0.03915931075
B90: 45027 | C90: 189.19 | D90: 185.6475 | E90: 3.5425 | F90: 0.03385332253
B91: 45026 | C91: 185.1 | D91: 176.11 | E91: 8.99 | F91: 0.04195504051
B92: 45022 | C92: 186.39 | D92: 179.74 | E92: 6.65 | F92: 0.035583176
B93: 45021 | C93: 190.68 | D93: 183.76 | E93: 6.92 | F93: 0.03860381615
B94: 45020 | C94: 198.7446 | D94: 190.32 | E94: 8.4246 | F94: 0.04665826631
B95: 45019 | C95: 202.6897 | D95: 192.2 | E95: 10.4897 | F95: 0.05072356706
B96: 45016 | C96: 207.79 | D96: 197.2 | E96: 10.59 | F96: 0.0342066589
B97: 45015 | C97: 197.33 | D97: 194.42 | E97: 2.91 | F97: 0.02242818373
B98: 45014 | C98: 195.29 | D98: 189.44 | E98: 5.85 | F98: =(SUM(E98:E99)/2)/C99 -> 0.03319469717
B99: 45013 | C99: 192.35 | D99: 185.43 | E99: 6.92 | F99: 0.03640002026
B100: 45012 | C100: 197.39 | D100: 189.94 | E100: 7.45 | F100: 0.03290704928
B101: 45009 | C101: 192.36 | D101: 187.15 | E101: 5.21 | F101: 0.03981235262
B102: 45008 | C102: 199.31 | D102: 188.65 | E102: 10.66 | F102: 0.05075750025
B103: 45007 | C103: 200.66 | D103: 190.95 | E103: 9.71 | F103: 0.04967171717
B104: 45006 | C104: 198 | D104: 188.04 | E104: 9.96 | F104: 0.05377065008
B105: 45005 | C105: 186.44 | D105: 176.35 | E105: 10.09 | F105: 0.05096098752
B106: 45002 | C106: 186.2199 | D106: 177.33 | E106: 8.8899 | F106: 0.04267773532
B107: 45001 | C107: 185.81 | D107: 178.84 | E107: 6.97 | F107: 0.03641548755
B108: 45000 | C108: 182.34 | D108: 176.03 | E108: 6.31 | F108: 0.03528264418
B109: 44999 | C109: 183.8 | D109: 177.1401 | E109: 6.6599 | F109: 0.0566673245
B110: 44998 | C110: 177.35 | D110: 163.91 | E110: 13.44 | F110: 0.06531493634
B111: 44995 | C111: 178.29 | D111: 168.44 | E111: 9.85 | F111: 0.06079922238
B112: 44994 | C112: 185.18 | D112: 172.5124 | E112: 12.6676 | F112: 0.05138766756
B113: 44993 | C113: 186.5 | D113: 180 | E113: 6.5 | F113: 0.03759011329
B114: 44992 | C114: 194.2 | D114: 186.1 | E114: 8.1 | F114: 0.03625377644
B115: 44991 | C115: 198.6 | D115: 192.3 | E115: 6.3 | F115: 0.03466679968
B116: 44988 | C116: 200.48 | D116: 192.88 | E116: 7.6 | F116: 0.03958685914
B117: 44987 | C117: 193.7499 | D117: 186.01 | E117: 7.7399 | F117: 0.03962331081
B118: 44986 | C118: 207.2 | D118: 198.52 | E118: 8.68 | F118: 0.03825214221
B119: 44985 | C119: 211.23 | D119: 203.75 | E119: 7.48 | F119: 0.03734122815
B120: 44984 | C120: 209.42 | D120: 201.26 | E120: 8.16 | F120: 0.03295779066
B121: 44981 | C121: 197.6695 | D121: 192.8 | E121: 4.8695 | F121: 0.03334186409
B122: 44980 | C122: 205.14 | D122: 196.33 | E122: 8.81 | F122: 0.04708153869
B123: 44979 | C123: 201.99 | D123: 191.78 | E123: 10.21 | F123: 0.05412235945
B124: 44978 | C124: 209.71 | D124: 197.22 | E124: 12.49 | F124: 0.05620322395
B125: 44974 | C125: 208.44 | D125: 197.5 | E125: 10.94 | F125: 0.06145187227
B126: 44973 | C126: 217.65 | D126: 201.84 | E126: 15.81 | F126: 0.05674089257
B127: 44972 | C127: 214.66 | D127: 206.11 | E127: 8.55 | F127: 0.06894004385
B128: 44971 | C128: 209.82 | D128: 189.44 | E128: 20.38 | F128: 0.07404482934
B129: 44970 | C129: 196.3 | D129: 187.61 | E129: 8.69 | F129: 0.05334626576
B130: 44967 | C130: 206.2 | D130: 192.89 | E130: =C130-D130 -> 13.31 | F130: 0.0526635514
B131: 44966 | C131: 214 | D131: 204.77 | E131: 9.23 | F131: 0.04413793103
B132: 44965 | C132: 203 | D132: 194.31 | E132: 8.69 | F132: 0.04212658228
B133: 44964 | C133: 197.5 | D133: 189.55 | E133: 7.95 | F133: 0.04087399707
B134: 44963 | C134: 198.17 | D134: 189.92 | E134: 8.25 | F134: 0.0591959799
B135: 44960 | C135: 199 | D135: 183.69 | E135: 15.31 | F135: 0.07484138509
B136: 44959 | C136: 196.7501 | D136: 182.61 | E136: 14.1401 | F136: 0.07620875384
B137: 44958 | C137: 183.805 | D137: 169.93 | E137: 13.875 | F137: 0.07284853701
B138: 44957 | C138: 174.3 | D138: 162.78 | E138: 11.52 | F138: 0.06894921288
B139: 44956 | C139: 179.77 | D139: 166.5 | E139: 13.27 | F139: 0.09071286252
B140: 44953 | C140: 180.68 | D140: 161.17 | E140: 19.51 | F140: 0.08106182629
B141: 44952 | C141: 161.42 | D141: 154.76 | E141: 6.66 | F141: 0.05122600915
B142: 44951 | C142: 146.41 | D142: 138.07 | E142: 8.34 | F142: 0.04689419795
B143: 44950 | C143: 146.5 | D143: 141.1 | E143: 5.4 | F143: 0.0567800918
B144: 44949 | C144: 145.3793 | D144: 134.27 | E144: 11.1093 | F144: 0.06468691484
B145: 44946 | C145: 133.51 | D145: 127.3466 | E145: 6.1634 | F145: 0.04556196631
B146: 44945 | C146: 129.99 | D146: 124.3082 | E146: 5.6818 | F146: 0.05615964296
B147: 44944 | C147: 136.68 | D147: 127.01 | E147: 9.67 | F147: 0.06207289294
B148: 44943 | C148: 131.7 | D148: 125.02 | E148: 6.68 | F148: 0.05589986137
B149: 44939 | C149: 122.63 | D149: 115.6 | E149: 7.03 | F149: 0.05704090272
B150: 44938 | C150: 124.1311 | D150: 117 | E150: 7.1311 | F150: 0.04990512108
B151: 44937 | C151: 125.95 | D151: 120.51 | E151: 5.44 | F151: 0.0540892799
B152: 44936 | C152: 122.76 | D152: 114.92 | E152: 7.84 | F152: 0.05768296632
B153: 44935 | C153: 123.52 | D153: 117.11 | E153: 6.41 | F153: 0.08300550747
B154: 44932 | C154: 114.39 | D154: 101.81 | E154: 12.58 | F154: 0.07682281879
B155: 44931 | C155: 111.75 | D155: 107.1601 | E155: 4.5899 | F155: 0.05087660354
B156: 44930 | C156: 114.59 | D156: 107.52 | E156: 7.07 | F156: 0.08935185185
B157: 44929 | C157: 118.8 | D157: 104.64 | E157: 14.16 | F157: 0.07587564267
B158: 44925 | C158: 124.48 | D158: 119.75 | E158: 4.73 | F158: 0.04372015861
B159: 44924 | C159: 123.57 | D159: 117.495 | E159: 6.075 | F159: 0.06065623119
B160: 44923 | C160: 116.27 | D160: 108.24 | E160: 8.03 | F160: 0.07913428595
B161: 44922 | C161: 119.67 | D161: 108.76 | E161: 10.91 | F161: 0.07194716418
B162: 44918 | C162: 128.6173 | D162: 121.02 | E162: 7.5973 | F162: =(SUM(E162:E163)/2)/C163 -> 0.08038973871
B163: 44917 | C163: 136.63 | D163: 122.26 | E163: 14.37 | F163: 0.06987115956
B164: 44916 | C164: 141.26 | D164: 135.89 | E164: 5.37 | F164: 0.05448912238
B165: 44915 | C165: 148.47 | D165: 137.66 | E165: 10.81 | F165: 0.06518518519
B166: 44914 | C166: 155.25 | D166: 145.82 | E166: 9.43 | F166: 0.06329585689
B167: 44911 | C167: 160.99 | D167: 150.04 | E167: 10.95 | F167: 0.05778882607
B168: 44910 | C168: 160.9299 | D168: 153.28 | E168: 7.6499 | F168: 0.04318741492
B169: 44909 | C169: 161.62 | D169: 155.31 | E169: 6.31 | F169: 0.06983718937
B170: 44908 | C170: 175.05 | D170: 156.91 | E170: 18.14 | F170: 0.07890285843
B171: 44907 | C171: 177.37 | D171: 167.52 | E171: 9.85 | F171: 0.05202739726
B172: 44904 | C172: 182.5 | D172: 173.36 | E172: 9.14 | F172: 0.04360730594
B173: 44903 | C173: 175.2 | D173: 169.06 | E173: 6.14 | F173: 0.03707771212
B174: 44902 | C174: 179.38 | D174: 172.218 | E174: 7.162 | F174: 0.04215083038
B175: 44901 | C175: 183.65 | D175: 175.33 | E175: 8.32 | F175: 0.0497725728
B176: 44900 | C176: 191.27 | D176: 180.55 | E176: 10.72 | F176: 0.02731210191
B177: 44897 | C177: 196.25 | D177: 191.11
B178: 44896 | C178: 198.92 | D178: 191.8
B179: 44895 | C179: 194.76 | D179: 180.6301
B180: 44894 | C180: 186.38 | D180: 178.75
B181: 44893 | C181: 188.5 | D181: 179
B182: 44890 | C182: 185.2 | D182: 180.63
B183: 44888 | C183: 183.62 | D183: 172.5
B184: 44887 | C184: 170.92 | D184: 166.185
B185: 44886 | C185: 176.77 | D185: 167.54
B186: 44883 | C186: 185.19 | D186: 176.55
B187: 44882 | C187: 186.16 | D187: 180.9
B188: 44881 | C188: 192.57 | D188: 185.66
B189: 44880 | C189: 200.8237 | D189: 192.06
B190: 44879 | C190: 195.73 | D190: 186.34
B191: 44876 | C191: 196.52 | D191: 182.59
B192: 44875 | C192: 191 | D192: 180.03
B193: 44874 | C193: 195.89 | D193: 177.12
B194: 44873 | C194: 195.2 | D194: 186.75
B195: 44872 | C195: 208.9 | D195: 196.66
B196: 44869 | C196: 223.8 | D196: 203.08
B197: 44868 | C197: 221.2 | D197: 210.14
B198: 44867 | C198: 227.8699 | D198: 214.82
B199: 44866 | C199: 237.3951 | D199: 227.28
B200: 44865 | C200: 229.85 | D200: 221.94
... 198 more rows

Sheet Weekly ATR (hidden)
A1: Ticker | B1: =_xlfn._xlws.SORT(_xlfn.STOCKHISTORY(A2,TODAY()-1100,TODAY(),1,1,0,3,4),1,-1) -> Date | C1: High | D1: Low | E1: High - Low | F1: Weekly ATR
A2: =ATR_Index!A2 -> tsla | B2: 45152 | C2: 240.66 | D2: 225.38 | E2: =C2-D2 -> 15.28 | F2: =(SUM(E2:E3)/2)/C3 -> 0.06093232003 | I2: 3 MONTHS | J2: 6 MONTHS | K2: 1 YEAR | L2: 2 YEARS | M2: 3 YEARS
B3: 45145 | C3: 253.6511 | D3: 238.02 | E3: 15.6311 | F3: 0.06358908131 | H3: Weeks | I3: 12 | J3: 26 | K3: 52 | L3: 104 | M3: 156 | N3: Avg Weekly ATR | O3: =AVERAGE(I4:M4) -> 0.1055905925
B4: 45138 | C4: 269.08 | D4: 250.49 | E4: 18.59 | F4: 0.06846830341 | I4: =SUM(F2:F13)/12 -> 0.09019414884 | J4: =SUM(F2:F27)/26 -> 0.09843958515 | K4: =SUM(F2:F53)/52 -> 0.1119683966 | L4: =SUM(F2:F105)/104 -> 0.1125903695 | M4: =SUM(F2:F157)/156 -> 0.1147604623
B5: 45131 | C5: 272.9 | D5: 254.12 | E5: 18.78 | F5: 0.1040295366
B6: 45124 | C6: 299.29 | D6: 255.8 | E6: 43.49 | F6: 0.1116193481
B7: 45117 | C7: 285.3 | D7: 265.1 | E7: 20.2 | F7: 0.05553210202
B8: 45110 | C8: 284.25 | D8: 272.88 | E8: 11.37 | F8: 0.06640196635
B9: 45103 | C9: 264.45 | D9: 240.7 | E9: 23.75 | F9: 0.09475071302
B10: 45097 | C10: 276.99 | D10: 248.25 | E10: 28.74 | F10: 0.09057283763
B11: 45089 | C11: 263.6 | D11: 244.59 | E11: 19.01 | F11: 0.1166706283
B12: 45082 | C12: 252.42 | D12: 212.53 | E12: 39.89 | F12: 0.1427387802
B13: 45076 | C13: 217.25 | D13: 195.12 | E13: 22.13 | F13: 0.1070241692
B14: 45068 | C14: 198.6 | D14: 178.22 | E14: 20.38 | F14: 0.1043693322
B15: 45061 | C15: 181.95 | D15: 164.35 | E15: 17.6 | F15: 0.08011049724
B16: 45054 | C16: 177.38 | D16: 166.56 | E16: 10.82 | F16: 0.06668983353
B17: 45047 | C17: 170.7899 | D17: 158.83 | E17: 11.9599 | F17: 0.07618442499
B18: 45040 | C18: 165.65 | D18: 152.37 | E18: 13.28 | F18: 0.1117876535
B19: 45033 | C19: 189.69 | D19: 160.56 | E19: 29.13 | F19: 0.1164096697
B20: 45026 | C20: 191.5846 | D20: 176.11 | E20: 15.4746 | F20: 0.09478602021
B21: 45019 | C21: 202.6897 | D21: 179.74 | E21: 22.9497 | F21: 0.109027624
B22: 45012 | C22: 207.79 | D22: 185.43 | E22: 22.36 | F22: 0.1162912389
B23: 45005 | C23: 200.66 | D23: 176.35 | E23: 24.31 | F23: 0.1251743235
B24: 44998 | C24: 186.2199 | D24: 163.91 | E24: 22.3099 | F24: 0.1320994461
B25: 44991 | C25: 198.6 | D25: 168.44 | E25: 30.16 | F25: 0.1310893339
B26: 44984 | C26: 211.23 | D26: 186.01 | E26: 25.22 | F26: 0.1028801679
B27: 44978 | C27: 209.71 | D27: 191.78 | E27: 17.93 | F27: 0.1101998622
B28: 44970 | C28: 217.65 | D28: 187.61 | E28: 30.04 | F28: 0.1273130841
B29: 44963 | C29: 214 | D29: 189.55 | E29: 24.45 | F29: 0.1524371859
B30: 44956 | C30: 199 | D30: 162.78 | E30: 36.22 | F30: 0.2286639362
B31: 44949 | C31: 180.68 | D31: 134.27 | E31: 46.41 | F31: 0.2150343869
B32: 44943 | C32: 136.68 | D32: 124.3082 | E32: 12.3718 | F32: 0.09290115125
B33: 44935 | C33: 125.95 | D33: 114.92 | E33: 11.03 | F33: 0.1179292929
B34: 44929 | C34: 118.8 | D34: 101.81 | E34: 16.99 | F34: =(SUM(E34:E35)/2)/C35 -> 0.1334752571
B35: 44922 | C35: 124.48 | D35: 108.24 | E35: 16.24 | F35: 0.1625442834
B36: 44914 | C36: 155.25 | D36: 121.02 | E36: 34.23 | F36: 0.1735355472
B37: 44907 | C37: 177.37 | D37: 150.04 | E37: 27.33 | F37: 0.1295027971
B38: 44900 | C38: 191.27 | D38: 169.06 | E38: 22.21 | F38: 0.1065252363
B39: 44893 | C39: 198.92 | D39: 178.75 | E39: 20.17 | F39: 0.1057910367
B40: 44886 | C40: 185.2 | D40: 166.185 | E40: 19.015 | F40: 0.1077778669
B41: 44879 | C41: 200.8237 | D41: 176.55 | E41: 24.2737 | F41: 0.134163954
B42: 44872 | C42: 208.9 | D42: 177.12 | E42: 31.78 | F42: 0.1392090654
B43: 44865 | C43: 237.3951 | D43: 203.08 | E43: 34.3151 | F43: 0.1487079252
B44: 44858 | C44: 233.81 | D44: 198.5863 | E44: 35.2237 | F44: 0.1371588635
B45: 44851 | C45: 229.82 | D45: 202 | E45: 27.82 | F45: 0.1115687916
B46: 44844 | C46: 226.99 | D46: 204.16 | E46: 22.83 | F46: 0.113223301
B47: 44837 | C47: 257.5 | D47: 222.02 | E47: 35.48 | F47: 0.107283737
B48: 44830 | C48: 289 | D48: 262.47 | E48: 26.53 | F48: 0.107568515
B49: 44823 | C49: 313.8 | D49: 272.82 | E49: 40.98 | F49: 0.09656444099
B50: 44816 | C50: 309.12 | D50: 290.4 | E50: 18.72 | F50: 0.08809404702
B51: 44810 | C51: 299.85 | D51: 265.74 | E51: 34.11 | F51: 0.09782307266
B52: 44802 | C52: 288.48 | D52: 266.15 | E52: 22.33 | F52: 0.06533943083
B53: 44795 | C53: 303.6436 | D53: 286.2938 | E53: 17.3498 | F53: 0.06279120394
B54: 44788 | C54: 314.6635 | D54: 292.4971 | E54: 22.1664 | F54: 0.07865872818
B55: 44781 | C55: 305.1969 | D55: 279.3505 | E55: 25.8464 | F55: 0.08594945528
B56: 44774 | C56: 313.6035 | D56: 285.5418 | E56: 28.0617 | F56: 0.1175224677
B57: 44767 | C57: 298.317 | D57: 256.2608 | E57: 42.0562 | F57: 0.1529037099
B58: 44760 | C58: 280.7839 | D58: 236.9743 | E58: 43.8096 | F58: 0.1419407905
B59: 44753 | C59: 253.0608 | D59: 225.0311 | E59: 28.0297 | F59: 0.1310755385
B60: 44747 | C60: 254.9774 | D60: 216.1645 | E60: 38.8129 | F60: 0.1428571712
B61: 44739 | C61: 252.0675 | D61: 218.8611 | E61: 33.2064 | F61: 0.112842841
B62: 44733 | C62: 246.8309 | D62: 224.3311 | E62: 22.4998 | F62: 0.1049590747
B63: 44725 | C63: 235.6609 | D63: 208.6912 | E63: 26.9697 | F63: 0.1068361586
B64: 44718 | C64: 255.5441 | D64: 227.9111 | E64: 27.633 | F64: 0.1105663581
B65: 44712 | C65: 264.2074 | D65: 233.4155 | E65: 30.7919 | F65: 0.152412837
B66: 44704 | C66: 253.2641 | D66: 206.8546 | E66: =C66-D66 -> 46.4095 | F66: 0.1792700717
B67: 44697 | C67: 256.5841 | D67: 210.9979 | E67: 45.5862 | F67: 0.178795617
B68: 44690 | C68: 281.8738 | D68: 226.6644 | E68: 55.2094 | F68: 0.1454865481
B69: 44683 | C69: 318.4968 | D69: 281.0322 | E69: 37.4646 | F69: 0.148378377
B70: 44676 | C70: 336.2033 | D70: 273.8973 | E70: 62.306 | F70: 0.1399579531
B71: 44669 | C71: 364.0697 | D71: 324.4668 | E71: 39.6029 | F71: 0.08377816548
B72: 44662 | C72: 342.0766 | D72: 324.3624 | E72: 17.7142 | F72: 0.08000599553
B73: 44655 | C73: 384.2862 | D73: 340.51 | E73: 43.7762 | F73: 0.08634064281
B74: 44648 | C74: 371.5863 | D74: 351.1965 | E74: 20.3898 | F74: 0.09358122668
B75: 44641 | C75: 346.8965 | D75: 302.3603 | E75: 44.5362 | F75: 0.1571955127
B76: 44634 | C76: 302.6136 | D76: 252.0108 | E76: 50.6028 | F76: 0.1361095755
B77: 44627 | C77: 288.7104 | D77: 260.7207 | E77: 27.9897 | F77: 0.08941783816
B78: 44620 | C78: 296.6237 | D78: 271.5665 | E78: 25.0572 | F78: 0.1353432074
B79: 44614 | C79: 285.5751 | D79: 233.331 | E79: 52.2441 | F79: 0.1325269934
B80: 44606 | C80: 308.8069 | D80: 279.2005 | E80: 29.6064 | F80: 0.09806717013
B81: 44599 | C81: 315.9202 | D81: 283.5638 | E81: 32.3564 | F81: 0.09469121497
B82: 44592 | C82: 314.5635 | D82: 287.3471 | E82: 27.2164 | F82: 0.1403932306
B83: 44585 | C83: 329.2267 | D83: 264.0007 | E83: 65.226 | F83: 0.1522099514
B84: 44579 | C84: 356.9264 | D84: 313.4969 | E84: 43.4295 | F84: 0.1191689195
B85: 44571 | C85: 371.8629 | D85: 326.6634 | E85: 45.1995 | F85: 0.1380793746
B86: 44564 | C86: 402.6626 | D86: 336.6633 | E86: 65.9993 | F86: 0.117895303
B87: 44557 | C87: 372.9962 | D87: 351.0465 | E87: 21.9497 | F87: 0.117759474
B88: 44550 | C88: 357.6553 | D88: 295.3704 | E88: 62.2849 | F88: 0.1407048189
B89: 44543 | C89: 334.9967 | D89: 303.0103 | E89: 31.9864 | F89: 0.101568471
B90: 44536 | C90: 357.4564 | D90: 316.8302 | E90: 40.6262 | F90: 0.1255540774
B91: 44529 | C91: 390.9427 | D91: 333.4 | E91: 57.5427 | F91: 0.1300302511
B92: 44522 | C92: 400.646 | D92: 353.9965 | E92: 46.6495 | F92: 0.1317575569
B93: 44515 | C93: 379.5695 | D93: 326.1967 | E93: 53.3728 | F93: 0.1544737291
B94: 44508 | C94: 398.996 | D94: 329.1 | E94: 69.896 | F94: 0.1345085858
B95: 44501 | C95: 414.4925 | D95: 372.8829 | E95: 41.6096 | F95: 0.13263865
B96: 44494 | C96: 371.7329 | D96: 314.7302 | E96: 57.0027 | F96: 0.1261207667
B97: 44487 | C97: 303.3303 | D97: 283.8205 | E97: 19.5098 | F97: 0.06892711067
B98: 44480 | C98: 281.0672 | D98: 261.8307 | E98: 19.2365 | F98: =(SUM(E98:E99)/2)/C99 -> 0.05666884645
B99: 44473 | C99: 268.9873 | D99: 257.7374 | E99: 11.2499 | F99: 0.04327908874
B100: 44466 | C100: 266.3307 | D100: 254.5275 | E100: 11.8032 | F100: 0.05910248463
B101: 44459 | C101: 258.2641 | D101: 239.5392 | E101: 18.7249 | F101: 0.07119551399
B102: 44452 | C102: 253.6775 | D102: 236.281 | E102: 17.3965 | F102: 0.05371170591
B103: 44446 | C103: 254.8141 | D103: 244.8376 | E103: 9.9765 | F103: 0.03988577898
B104: 44438 | C104: 247.3275 | D104: 237.5743 | E104: 9.7532 | F104: 0.04566387545
B105: 44431 | C105: 238.9876 | D105: 226.9146 | E105: 12.073 | F105: 0.06827299727
B106: 44424 | C106: 236.4976 | D106: 216.2778 | E106: 20.2198 | F106: 0.06244697852
B107: 44417 | C107: 243.2976 | D107: 233.131 | E107: 10.1666 | F107: 0.04113826493
B108: 44410 | C108: 242.3109 | D108: 232.541 | E108: 9.7699 | F108: 0.07139483983
B109: 44403 | C109: 232.5077 | D109: 209.0779 | E109: 23.4298 | F109: 0.08562714728
B110: 44396 | C110: 221.6178 | D110: 207.0946 | E110: 14.5232 | F110: 0.07137815839
B111: 44389 | C111: 231.091 | D111: 212.6245 | E111: 18.4665 | F111: 0.08694451742
B112: 44383 | C112: 227.9977 | D112: 206.8179 | E112: 21.1798 | F112: 0.06658566586
B113: 44375 | C113: 233.331 | D113: 223.4378 | E113: 9.8932 | F113: 0.08487419459
B114: 44368 | C114: 232.5377 | D114: 202.958 | E114: 29.5797 | F114: 0.09834474349
B115: 44361 | C115: 209.4479 | D115: 197.8314 | E115: 11.6165 | F115: 0.06023194633
B116: 44354 | C116: 207.6946 | D116: 194.2914 | E116: 13.4032 | F116: 0.08109025364
B117: 44348 | C117: 211.2646 | D117: 190.4048 | E117: 20.8598 | F117: 0.09795611466
B118: 44340 | C118: 211.8612 | D118: 191.2148 | E118: 20.6464 | F118: 0.09355084913
B119: 44333 | C119: 198.8913 | D119: 182.3248 | E119: 16.5665 | F119: 0.1166078209
B120: 44326 | C120: 221.6811 | D120: 186.5481 | E120: 35.133 | F120: 0.11430602
B121: 44319 | C121: 235.331 | D121: 216.6645 | E121: 18.6665 | F121: 0.09286018573
B122: 44312 | C122: 249.7642 | D122: 222.0444 | E122: 27.7198 | F122: 0.0962696345
B123: 44305 | C123: 251.2542 | D123: 230.5977 | E123: 20.6565 | F123: 0.1028893337
B124: 44298 | C124: 260.2607 | D124: 227.3611 | E124: 32.8996 | F124: 0.09815569517
B125: 44291 | C125: 236.051 | D125: 222.6111 | E125: 13.4399 | F125: 0.1023441917
B126: 44284 | C126: 230.8045 | D126: 197.0014 | E126: 33.8031 | F126: 0.1437497079
B127: 44277 | C127: 233.2043 | D127: 199.9613 | E127: 33.243 | F127: 0.1320073295
B128: 44270 | C128: 237.7243 | D128: 208.2046 | E128: 29.5197 | F128: 0.1724732313
B129: 44263 | C129: 239.2809 | D129: 186.2615 | E129: 53.0194 | F129: 0.2362190245
B130: 44256 | C130: 240.3676 | D130: 179.8282 | E130: =C130-D130 -> 60.5394 | F130: 0.2154326075
B131: 44249 | C131: 256.1641 | D131: 206.3313 | E131: 49.8328 | F131: 0.1269730863
B132: 44243 | C132: 273.6639 | D132: 254.0008 | E132: 19.6631 | F132: 0.08625807495
B133: 44235 | C133: 292.5871 | D133: 261.7742 | E133: 30.8129 | F133: 0.1007267193
B134: 44228 | C134: 293.4971 | D134: 265.184 | E134: 28.3131 | F134: 0.113971665
B135: 44221 | C135: 300.1303 | D135: 260.0307 | E135: 40.0996 | F135: 0.08794643995
B136: 44215 | C136: 286.4971 | D136: 276.2039 | E136: 10.2932 | F136: 0.05487186967
B137: 44207 | C137: 289.3304 | D137: 267.8714 | E137: 21.459 | F137: 0.130967099
B138: 44200 | C138: 294.8271 | D138: 239.0608 | E138: 55.7663 | F138: 0.1607165144
B139: 44193 | C139: 239.5709 | D139: 218.3312 | E139: 21.2397 | F139: 0.08824957558
B140: 44186 | C140: 222.8311 | D140: 204.7413 | E140: 18.0898 | F140: 0.1037913033
B141: 44179 | C141: 231.6644 | D141: 201.6647 | E141: 29.9997 | F141: 0.1360038422
B142: 44172 | C142: 218.1045 | D142: 188.7781 | E142: 29.3264 | F142: 0.1271555001
B143: 44165 | C143: 202.598 | D143: 180.4015 | E143: 22.1965 | F143: 0.1365943806
B144: 44158 | C144: 199.5913 | D144: 167.2617 | E144: 32.3296 | F144: 0.1981022842
B145: 44151 | C145: 169.5354 | D145: 134.6943 | E145: 34.8411 | F145: 0.1778941841
B146: 44144 | C146: 150.8318 | D146: 132.0087 | E146: 18.8231 | F146: 0.1183747065
B147: 44137 | C147: 146.6652 | D147: 130.7654 | E147: 15.8998 | F147: 0.1150871855
B148: 44130 | C148: 143.4986 | D148: 126.3687 | E148: 17.1299 | F148: 0.1018010248
B149: 44123 | C149: 148.9985 | D149: 135.792 | E149: 13.2065 | F149: 0.07396405887
B150: 44116 | C150: 155.2984 | D150: 145.5319 | E150: 9.7665 | F150: 0.0708997833
B151: 44109 | C151: 146.3319 | D151: 135.3486 | E151: 10.9833 | F151: 0.07822846686
B152: 44102 | C152: 149.6252 | D152: 137.1986 | E152: 12.4266 | F152: 0.1554382791
B153: 44095 | C153: 151.8918 | D153: 117.0988 | E153: 34.793 | F153: 0.2089233237
B154: 44088 | C154: 153.9785 | D154: 124.4321 | E154: 29.5464 | F154: 0.1976866852
B155: 44082 | C155: 132.9953 | D155: 109.9589 | E155: 23.0364 | F155: 0.1985907042
B156: 44074 | C156: 167.495 | D156: 124.0055 | E156: 43.4895 | F156: 0.2249999191
B157: 44067 | C157: 154.5645 | D157: 128.5 | E157: 26.0645 | F157: 0.1941385661
B158: 44060 | C158: 139.6979 | D158: 111.5209 | E158: 28.177
B159: 44053 | C159: 111.2522 | D159: 90.9991

Sheet Monthly ATR (hidden)
A1: Ticker | B1: =_xlfn._xlws.SORT(_xlfn.STOCKHISTORY(A2,TODAY()-14400,TODAY(),2,1,0,3,4),1,-1) -> Date | C1: High | D1: Low | E1: High - Low | F1: Monthy ATR
A2: =ATR_Index!A2 -> tsla | B2: 45139 | C2: 266.47 | D2: 225.38 | E2: =C2-D2 -> 41.09 | F2: =(SUM(E2:E3)/2)/C3 -> 0.1441077216 | I2: 6 MONTHS | J2: 1 YEAR | K2: 2 YEARS | L2: 3 YEARS | M2: 5 YEARS
B3: 45108 | C3: 299.29 | D3: 254.12 | E3: =C3-D3 -> 45.17 | F3: 0.2216506011 | H3: Months | I3: 6 | J3: 12 | K3: 24 | L3: 36 | M3: 60 | N3: Avg Monthly ATR | O3: =AVERAGE(I4:M4) -> 0.2478131882
B4: 45078 | C4: 276.99 | D4: 199.37 | E4: 77.62 | F4: 0.3014231221 | I4: =SUM(F2:F7)/6 -> 0.2235036527 | J4: =SUM(F2:F13)/12 -> 0.2530391542 | K4: =SUM(F2:F25)/24 -> 0.2566208552 | L4: =SUM(F2:F37)/36 -> 0.2520969565 | M4: =SUM(F2:F59)/60 -> 0.2538053224
B5: 45047 | C5: 204.48 | D5: 158.83 | E5: 45.65 | F5: 0.2367404461
B6: 45017 | C6: 202.6897 | D6: 152.37 | E6: 50.3197 | F6: 0.2266704365
B7: 44986 | C7: 207.79 | D7: 163.91 | E7: 43.88 | F7: 0.2104295888
B8: 44958 | C8: 217.65 | D8: 169.93 | E8: 47.72 | F8: 0.3503154749
B9: 44927 | C9: 180.68 | D9: 101.81 | E9: 78.87 | F9: 0.4261763523
B10: 44896 | C10: 198.92 | D10: 108.24 | E10: 90.68 | F10: 0.340971865
B11: 44866 | C11: 237.3951 | D11: 166.185 | E11: 71.2101 | F11: 0.2526675728
B12: 44835 | C12: 257.5 | D12: 198.5863 | E12: 58.9137 | F12: 0.1756591778
B13: 44805 | C13: 313.8 | D13: 262.47 | E13: 51.33 | F13: 0.1496574913
B14: 44774 | C14: 314.6635 | D14: 271.81 | E14: 42.8535 | F14: 0.2095187334
B15: 44743 | C15: 298.317 | D15: 216.1645 | E15: 82.1525 | F15: 0.2605314991
B16: 44713 | C16: 264.2074 | D16: 208.6912 | E16: 55.5162 | F16: 0.2624177072
B17: 44682 | C17: 318.4968 | D17: 206.8546 | E17: 111.6422 | F17: 0.2888876832
B18: 44652 | C18: 384.2862 | D18: 273.8973 | E18: 110.3889 | F18: 0.3094360583
B19: 44621 | C19: 371.5863 | D19: 252.0108 | E19: 119.5755 | F19: 0.3199616549
B20: 44593 | C20: 315.9202 | D20: 233.331 | E20: 82.5892 | F20: 0.2747351008
B21: 44562 | C21: 402.6626 | D21: 264.0007 | E21: 138.6619 | F21: 0.2995761271
B22: 44531 | C22: 390.9427 | D22: 295.3704 | E22: 95.5723 | F22: 0.2217990675
B23: 44501 | C23: 414.4925 | D23: 326.1967 | E23: 88.2958 | F23: 0.2764097555
B24: 44470 | C24: 371.7329 | D24: 254.5275 | E24: 117.2054 | F24: 0.276451607
B25: 44440 | C25: 266.3307 | D25: 236.281 | E25: 30.0497 | F25: 0.1227056795
B26: 44409 | C26: 246.7942 | D26: 216.2778 | E26: 30.5164 | F26: 0.1222072935
B27: 44378 | C27: 233.331 | D27: 206.8179 | E27: 26.5131 | F27: 0.1476018727
B28: 44348 | C28: 232.5377 | D28: 190.4048 | E28: 42.1329 | F28: 0.2021389022
B29: 44317 | C29: 235.331 | D29: 182.3248 | E29: 53.0062 | F29: 0.1795553459
B30: 44287 | C30: 260.2607 | D30: 219.8045 | E30: 40.4562 | F30: 0.2100857187
B31: 44256 | C31: 240.3676 | D31: 179.8282 | E31: 60.5394 | F31: 0.2516297435
B32: 44228 | C32: 293.4971 | D32: 206.3313 | E32: 87.1658 | F32: 0.246951574
B33: 44197 | C33: 300.1303 | D33: 239.0608 | E33: 61.0695 | F33: 0.2509463795
B34: 44166 | C34: 239.5709 | D34: 180.4015 | E34: 59.1694 | F34: 0.3233052646
B35: 44136 | C35: 202.598 | D35: 130.7654 | E35: 71.8326 | F35: 0.324415126
B36: 44105 | C36: 155.2984 | D36: 126.3687 | E36: 28.9297 | F36: 0.2581145706
B37: 44075 | C37: 167.495 | D37: 109.9589 | E37: 57.5361 | F37: 0.3996381178
B38: 44044 | C38: 166.7117 | D38: 90.9991 | E38: 75.7126 | F38: 0.5153762844
B39: 44013 | C39: 119.6648 | D39: 72.0326 | E39: 47.6322 | F39: 0.4358229477
B40: 43983 | C40: 72.5119 | D40: 56.9394 | E40: 15.5725 | F40: 0.2335144115
B41: 43952 | C41: 56.2188 | D41: 45.5355 | E41: 10.6833 | F41: 0.3355125424
B42: 43922 | C42: 57.9874 | D42: 29.7597 | E42: 28.2277 | F42: 0.5451744578
B43: 43891 | C43: 53.7981 | D43: 23.3671 | E43: 30.431 | F43: 0.419993746
B44: 43862 | C44: 64.5987 | D44: 40.7676 | E44: 23.8311 | F44: 0.4508119147
B45: 43831 | C45: 43.5329 | D45: 28.1137 | E45: 15.4192 | F45: 0.3897809817
B46: 43800 | C46: 29.0204 | D46: 21.8164 | E46: 7.204 | F46: 0.2214864741
B47: 43770 | C47: 24.0798 | D47: 20.6171 | E47: 3.4627 | F47: 0.2471833961
B48: 43739 | C48: 22.7224 | D48: 14.9519 | E48: 7.7705 | F48: 0.2992076829
B49: 43709 | C49: 16.8998 | D49: 14.5572 | E49: 2.3426 | F49: 0.1403821969
B50: 43678 | C50: 16.3005 | D50: 14.0665 | E50: 2.234 | F50: =(SUM(E50:E51)/2)/C51 -> 0.1453759767
B51: 43647 | C51: 17.7378 | D51: 14.8145 | E51: 2.9233 | F51: 0.2164072285
B52: 43617 | C52: 15.6492 | D52: 11.7993 | E52: 3.8499 | F52: 0.2554664638
B53: 43586 | C53: 17.2232 | D53: 12.2732 | E53: 4.95 | F53: 0.2351540935
B54: 43556 | C54: 19.7445 | D54: 15.4085 | E54: 4.336 | F54: 0.1916303217
B55: 43525 | C55: 20.4751 | D55: 16.9638 | E55: 3.5113 | F55: 0.1359190962
B56: 43497 | C56: 21.6158 | D56: 19.2511 | E56: 2.3647 | F56: 0.1536750418
B57: 43466 | C57: 23.4664 | D57: 18.6187 | E57: 4.8477 | F57: 0.208327569
B58: 43435 | C58: 25.2991 | D58: 19.6058 | E58: 5.6933 | F58: 0.1733470212
B59: 43405 | C59: 24.4498 | D59: 21.6665 | E59: 2.7833 | F59: 0.2032790639
B60: 43374 | C60: 23.1438 | D60: 16.5178 | E60: 6.626 | F60: 0.257328393
B61: 43344 | C61: 20.9971 | D61: 16.8168 | E61: 4.1803 | F61: 0.2090095391
B62: 43313 | C62: 25.8304 | D62: 19.2131 | E62: 6.6173 | F62: 0.2438606158
B63: 43282 | C63: 24.3184 | D63: 19.0751 | E63: 5.2433 | F63: 0.2254857496
B64: 43252 | C64: 24.9151 | D64: 18.9224 | E64: 5.9927 | F64: 0.2068097078
B65: 43221 | C65: 20.8658 | D65: 18.228 | E65: 2.6378 | F65: 0.1687846228
B66: 43191 | C66: 20.6331 | D66: 16.3058 | E66: 4.3273 | F66: 0.2371431399
B67: 43160 | C67: 23.2444 | D67: 16.5472 | E67: =C67-D67 -> 6.6972 | F67: 0.2301294632
B68: 43132 | C68: 23.9991 | D68: 19.6505 | E68: 4.3486 | F68: 0.166503697
B69: 43101 | C69: 24.0331 | D69: 20.3785 | E69: 3.6546 | F69: 0.147160916
B70: 43070 | C70: 23.1624 | D70: 19.9998 | E70: 3.1626 | F70: 0.1314124391
B71: 43040 | C71: 22.1737 | D71: 19.5085 | E71: 2.6652 | F71: 0.1188956107
B72: 43009 | C72: 24.1998 | D72: 21.1105 | E72: 3.0893 | F72: 0.1290382194
B73: 42979 | C73: 25.9737 | D73: 22.3598 | E73: 3.6139 | F73: 0.1526874615
B74: 42948 | C74: 24.6664 | D74: 20.7478 | E74: 3.9186 | F74: 0.1709961868
B75: 42917 | C75: 24.7564 | D75: 20.2085 | E75: 4.5479 | F75: 0.1563349109
B76: 42887 | C76: 25.7991 | D76: 22.2804 | E76: 3.5187 | F76: 0.152980651
B77: 42856 | C77: 22.8591 | D77: 19.3838 | E77: 3.4753 | F77: 0.1307983704
B78: 42826 | C78: 20.9865 | D78: 18.9718 | E78: 2.0147 | F78: 0.1231209906
B79: 42795 | C79: 18.7998 | D79: 16.1852 | E79: 2.6146 | F79: 0.1471859325
B80: 42767 | C80: 19.1591 | D80: 16.1338 | E80: 3.0253 | F80: 0.1796784771
B81: 42736 | C81: 17.2305 | D81: 14.0639 | E81: 3.1666 | F81: 0.203975898
B82: 42705 | C82: 14.9199 | D82: 11.9999 | E82: 2.92 | F82: 0.162932001
B83: 42675 | C83: 13.2899 | D83: 11.8792 | E83: 1.4107 | F83: 0.1039310604
B84: 42644 | C84: 14.3778 | D84: 12.7999 | E84: 1.5779 | F84: 0.09786686752
B85: 42614 | C85: 14.0732 | D85: 12.8965 | E85: 1.1767 | F85: 0.09641716111
B86: 42583 | C86: 15.7752 | D86: 13.9099 | E86: 1.8653 | F86: 0.1216847729
B87: 42552 | C87: 15.6852 | D87: 13.7332 | E87: 1.952 | F87: 0.1707658101
B88: 42522 | C88: 16.0562 | D88: 12.5245 | E88: 3.5317 | F88: 0.1901989206
B89: 42491 | C89: 16.2125 | D89: 13.577 | E89: 2.6355 | F89: 0.1403863933
B90: 42461 | C90: 17.9558 | D90: 15.5498 | E90: 2.406 | F90: 0.1969102915
B91: 42430 | C91: 15.9918 | D91: 12.0999 | E91: 3.8919 | F91: 0.292826963
B92: 42401 | C92: 13.3012 | D92: 9.4032 | E92: 3.898 | F92: 0.2321752716
B93: 42370 | C93: 15.4252 | D93: 12.1605 | E93: 3.2647 | F93: 0.1595329422
B94: 42339 | C94: 16.2421 | D94: 14.3245 | E94: 1.9176 | F94: 0.122659667
B95: 42309 | C95: 15.6388 | D95: 13.7199 | E95: 1.9189 | F95: 0.1533459816
B96: 42278 | C96: 16.6558 | D96: 13.4665 | E96: 3.1893 | F96: 0.1517854677
B97: 42248 | C97: 18.1045 | D97: 15.7978 | E97: 2.3067 | F97: 0.2040600006
B98: 42217 | C98: 18.0665 | D98: 12.9999 | E98: 5.0666 | F98: 0.1951145486
B99: 42186 | C99: 19.1098 | D99: 16.7192 | E99: 2.3906 | F99: 0.1134615172
B100: 42156 | C100: 18.0938 | D100: 16.3785 | E100: 1.7153 | F100: 0.1153716106
B101: 42125 | C101: 16.8577 | D101: 14.6832 | E101: 2.1745 | F101: 0.1786762165
B102: 42095 | C102: 15.9165 | D102: 12.4032 | E102: 3.5133 | F102: 0.187910577
B103: 42064 | C103: 13.7459 | D103: 12.0932 | E103: 1.6527 | F103: 0.1263754174
B104: 42036 | C104: 15.0318 | D104: 12.8852 | E104: 2.1466 | F104: 0.1577819286
B105: 42005 | C105: 14.8832 | D105: 12.3332 | E105: 2.55 | F105: 0.1816109375
B106: 41974 | C106: 16.1645 | D106: 12.8432 | E106: 3.3213 | F106: 0.1563709794
B107: 41944 | C107: 17.3325 | D107: 15.2332 | E107: 2.0993 | F107: 0.1500889705
B108: 41913 | C108: 17.7025 | D108: 14.4879 | E108: 3.2146 | F108: 0.1707398676
B109: 41883 | C109: 19.4278 | D109: 16.0082 | E109: 3.4196 | F109: 0.1788514989
B110: 41852 | C110: 18.1332 | D110: 15.0665 | E110: 3.0667 | F110: 0.1557686146
B111: 41821 | C111: 16.2292 | D111: 14.2399 | E111: 1.9893 | F111: 0.1535412781
B112: 41791 | C112: 16.2992 | D112: 13.2833 | E112: 3.0159 | F112: 0.1982067887
B113: 41760 | C113: 14.5772 | D113: 11.8145 | E113: 2.7627 | F113: 0.1969430869
B114: 41730 | C114: 15.7152 | D114: 12.2879 | E114: 3.4273 | F114: =(SUM(E114:E115)/2)/C115 -> 0.2084814114
B115: 41699 | C115: 17.3332 | D115: 13.5332 | E115: 3.8 | F115: 0.2879998868
B116: 41671 | C116: 17.6665 | D116: 11.2906 | E116: 6.3759 | F116: 0.3897007234
B117: 41640 | C117: 12.3999 | D117: 9.1113 | E117: 3.2886 | F117: 0.2639178977
B118: 41609 | C118: 10.5332 | D118: 8.262 | E118: 2.2712 | F118: 0.2739309809
B119: 41579 | C119: 12.0952 | D119: 7.7399 | E119: 4.3553 | F119: 0.2743136271
B120: 41548 | C120: 12.9485 | D120: 10.1999 | E120: 2.7486 | F120: 0.1985076929
B121: 41518 | C121: 12.9665 | D121: 10.5672 | E121: 2.3993 | F121: 0.2214736587
B122: 41487 | C122: 11.5332 | D122: 8.8239 | E122: 2.7093 | F122: 0.267764213
B123: 41456 | C123: 9.1659 | D123: 6.9666 | E123: 2.1993 | F123: 0.2493843454
B124: 41426 | C124: 7.3499 | D124: 5.8833 | E124: 1.4666 | F124: 0.3650961501
B125: 41395 | C125: 7.6599 | D125: 3.5333 | E125: 4.1266 | F125: 0.6863945754
B126: 41365 | C126: 3.8786 | D126: 2.6807 | E126: 1.1979 | F126: 0.2938539847
B127: 41334 | C127: 2.6326 | D127: 2.2833 | E127: 0.3493 | F127: 0.1429910748
B128: 41306 | C128: 2.6666 | D128: 2.2533 | E128: 0.4133 | F128: 0.1653297683
B129: 41275 | C129: 2.5806 | D129: 2.1406 | E129: 0.44 | F129: 0.1347733177
B130: 41244 | C130: 2.3866 | D130: 2.1833 | E130: 0.2033 | F130: 0.1332677165
B131: 41214 | C131: 2.286 | D131: 1.88 | E131: =C131-D131 -> 0.406 | F131: 0.1549885378
B132: 41183 | C132: 2.0066 | D132: 1.7906 | E132: 0.216 | F132: 0.1330938544
B133: 41153 | C133: 2.1853 | D133: 1.8196 | E133: 0.3657 | F133: 0.1799578261
B134: 41122 | C134: 2.0866 | D134: 1.7013 | E134: 0.3853 | F134: 0.2023541667
B135: 41091 | C135: 2.4 | D135: 1.814 | E135: 0.586 | F135: 0.2345
B136: 41061 | C136: 2.3 | D136: 1.8073 | E136: 0.4927 | F136: 0.2197448097
B137: 41030 | C137: 2.312 | D137: 1.7886 | E137: 0.5234 | F137: 0.1991343679
B138: 41000 | C138: 2.5646 | D138: 2.0666 | E138: 0.498 | F138: 0.1852401156
B139: 40969 | C139: 2.6633 | D139: 2.1746 | E139: 0.4887 | F139: 0.1901728649
B140: 40940 | C140: 2.3313 | D140: 1.9333 | E140: 0.398 | F140: 0.222175
B141: 40909 | C141: 2 | D141: 1.5093 | E141: 0.4907 | F141: 0.2332961899
B142: 40878 | C142: 2.3333 | D142: 1.7353 | E142: 0.598 | F142: 0.2281532593
B143: 40848 | C143: 2.3333 | D143: 1.8666 | E143: 0.4667 | F143: 0.2345
B144: 40817 | C144: 2 | D144: 1.5287 | E144: 0.4713 | F144: 0.2180292336
B145: 40787 | C145: 1.7993 | D145: 1.486 | E145: 0.3133 | F145: 0.212318915
B146: 40756 | C146: 1.9466 | D146: 1.4333 | E146: 0.5133 | F146: 0.1890553393
B147: 40725 | C147: 2.0293 | D147: 1.7753 | E147: 0.254 | F147: 0.1557142857
B148: 40695 | C148: 2.1 | D148: 1.7 | E148: 0.4 | F148: 0.1776726444
B149: 40664 | C149: 2.0186 | D149: 1.7013 | E149: 0.3173 | F149: 0.1550622804
B150: 40634 | C150: 1.8786 | D150: 1.6133 | E150: 0.2653 | F150: 0.1901776385
B151: 40603 | C151: 1.914 | D151: 1.4513 | E151: 0.4627 | F151: 0.2220620255
B152: 40575 | C152: 1.6993 | D152: 1.4073 | E152: 0.292 | F152: 0.1867032393
B153: 40544 | C153: 1.914 | D153: 1.4913 | E153: 0.4227 | F153: 0.2438220758
B154: 40513 | C154: 2.428 | D154: 1.6667 | E154: 0.7613 | F154: 0.36625
B155: 40483 | C155: 2.4 | D155: 1.4033 | E155: 0.9967 | F155: 0.3845679012
B156: 40452 | C156: 1.458 | D156: 1.3333 | E156: 0.1247 | F156: 0.1193976684
B157: 40422 | C157: 1.544 | D157: 1.3 | E157: 0.244 | F157: 0.1905051735
B158: 40391 | C158: 1.4787 | D158: 1.1593 | E158: 0.3194 | F158: 0.303443287
B159: 40360 | C159: 1.728 | D159: 0.9987 | E159: 0.7293 | F159: 0.3915133882
B160: 40330 | C160: 2.0279 | D160: 1.1693 | E160: 0.8586
E161: 0
E162: 0
E163: 0
E164: 0
E165: 0
E166: 0
E167: 0
E168: 0
E169: 0
E170: 0
E171: 0
E172: 0
E173: 0
E174: 0
E175: 0
E176: 0
E177: 0
E178: 0 | F178: =(SUM(E178:E179)/2)/C179 -> 
E179: 0
E180: 0
E181: 0
E182: 0
E183: 0
E184: 0
E185: 0
E186: 0
E187: 0
E188: 0
E189: 0
E190: 0
E191: 0
E192: 0
E193: 0
E194: 0
E195: =C195-D195 -> 0
E196: 0
E197: 0
E198: 0
E199: 0
E200: 0
... 248 more rows
